{"text_format":"1","workbook":"xlsx","n_sheets":8,"sheets":["Avantages perçus","Conventions signées","AVANTAGES","CONVENTIONS","FIRMES","Conception","Cochin, Rhumato B","Tableaux de synthèse"],"not_rendered":{"charts":0,"images":2,"macros":1,"external_links":1,"defined_names":6,"comments":1,"pivot_tables":0},"unopened":[],"bounds":{"document_bytes":16777216,"sheet_cells":100000,"rows_first":2000,"rows_last":500,"rows_between":2000,"halvings":0,"cell_chars":16384,"cell_head_chars":4096},"cells_cut":0,"cells_raw":0,"read":"whole","date_system":"1900"}

{"sheet":"Avantages perçus","index":0,"n_rows":784,"n_cols":6,"rows_kept":784,"cut":false,"hidden":false,"merged":[]}
["Bénéficiaire","Type de bénéficiaire","Entreprise","Date","Nature","Montant"]
["Xavier AYRAL","Médecin ","Laboratoires Expanscience","2014-04-10","Repas ",38]
["Xavier AYRAL","Médecin ","AbbVie","28/03/2014","REPAS ",46]
["Xavier AYRAL","Médecin ","TRB CHEMEDICA","19/11/2013","AUTRE : REUNION ",18]
["Xavier AYRAL","Médecin ","PFIZER SAS","23/05/2014","REPAS ",56]
["Xavier AYRAL","Médecin ","ICOMED","21/05/2015","Autre: [Enquête] ",30]
["Xavier AYRAL","Médecin ","MSD France","24/10/2012","HOSPITALITÉ ",94]
["Xavier AYRAL","Médecin ","UCB Pharma SA","25/09/2015","REPAS ",44]
["Xavier AYRAL","Médecin ","ROCHE SAS","2014-02-05","Repas ",60]
["Xavier AYRAL","Médecin ","ROCHE SAS","2014-02-12","Repas ",23]
["Xavier AYRAL","Médecin ","AbbVie","2015-03-03","REPAS ",48]
["Xavier AYRAL","Médecin ","PFIZER SAS","2015-02-06","Repas ",16]
["Xavier AYRAL","Médecin ","TRB CHEMEDICA","2015-06-06","INSCRIPTION ",470]
["Xavier AYRAL","Médecin ","UCB Pharma SA","2015-05-12","Repas ",20]
["Xavier AYRAL","Médecin ","TRB CHEMEDICA","2015-11-04","AUTRE : CONGRES ",1021]
["Xavier AYRAL","Médecin ","BRISTOL-MYERS SQUIBB","22/11/2013","Repas ",16]
["Xavier AYRAL","Médecin ","BRISTOL-MYERS SQUIBB","19/07/2013","Repas ",43]
["Xavier AYRAL","Médecin ","AbbVie","2013-07-02","Repas ",41]
["Xavier AYRAL","Médecin ","ICOMED","22/05/2013","Autre: [Enquête] ",30]
["Xavier AYRAL","Médecin ","PFIZER SAS","2014-02-08","REPAS ",84]
["Xavier AYRAL","Médecin ","PFIZER SAS","20/12/2013","Repas ",16]
["Xavier AYRAL","Médecin ","UCB Pharma SA","29/11/2013","Repas ",20]
["Xavier AYRAL","Médecin ","MSD France","2013-12-01","HOSPITALITÉ ",290]
["Xavier AYRAL","Médecin ","MSD France","16/09/2015","REPAS ",58]
["Xavier AYRAL","Médecin ","ICOMED","2014-06-05","Autre: [Enquête] ",25]
["Anne BLANCHAIS (BEHR)","Médecin ","MSD France","14/06/2012","REPAS ",26]
["Anne BLANCHAIS (BEHR)","Médecin ","AbbVie","2012-12-10","AUTRE : [HOSPITALITE] ",60]
["Anne BLANCHAIS (BEHR)","Médecin ","AbbVie","2012-12-10","AUTRE : [HOSPITALITE] ",65]
["Anne BLANCHAIS (BEHR)","Médecin ","AbbVie","2013-07-02","Repas ",41]
["Anne BLANCHAIS (BEHR)","Médecin ","UCB Pharma SA","2013-07-12","Repas ",34]
["Anne BLANCHAIS (BEHR)","Médecin ","BRISTOL-MYERS SQUIBB","19/07/2013","Repas ",43]
["Anne BLANCHAIS (BEHR)","Médecin ","UCB Pharma SA","15/10/2013","Repas ",50]
["Anne BLANCHAIS (BEHR)","Médecin ","MSD France","23/10/2013","REPAS ",51]
["Anne BLANCHAIS (BEHR)","Médecin ","ROCHE SAS","25/10/2013","Hébergement ",224]
["Anne BLANCHAIS (BEHR)","Médecin ","ROCHE SAS","25/10/2013","Inscription ",600]
["Anne BLANCHAIS (BEHR)","Médecin ","ROCHE SAS","25/10/2013","Transport ",14]
["Anne BLANCHAIS (BEHR)","Médecin ","ROCHE SAS","25/10/2013","Transport ",26]
["Anne BLANCHAIS (BEHR)","Médecin ","ROCHE SAS","25/10/2013","Transport ",62]
["Anne BLANCHAIS (BEHR)","Médecin ","ROCHE SAS","25/10/2013","Repas ",55]
["Anne BLANCHAIS (BEHR)","Médecin ","ROCHE SAS","25/10/2013","Transport ",770]
["Anne BLANCHAIS (BEHR)","Médecin ","ROCHE SAS","25/10/2013","Repas ",41]
["Anne BLANCHAIS (BEHR)","Médecin ","ROCHE SAS","26/10/2013","Repas ",59]
["Anne BLANCHAIS (BEHR)","Médecin ","ROCHE SAS","26/10/2013","Hébergement ",224]
["Anne BLANCHAIS (BEHR)","Médecin ","ROCHE SAS","26/10/2013","Transport ",14]
["Anne BLANCHAIS (BEHR)","Médecin ","ROCHE SAS","26/10/2013","Transport ",26]
["Anne BLANCHAIS (BEHR)","Médecin ","ROCHE SAS","27/10/2013","Hébergement ",224]
["Anne BLANCHAIS (BEHR)","Médecin ","ROCHE SAS","27/10/2013","Repas ",51]
["Anne BLANCHAIS (BEHR)","Médecin ","ROCHE SAS","28/10/2013","Hébergement ",224]
["Anne BLANCHAIS (BEHR)","Médecin ","ROCHE SAS","28/10/2013","Repas ",59]
["Anne BLANCHAIS (BEHR)","Médecin ","ROCHE SAS","29/10/2013","Hébergement ",224]
["Anne BLANCHAIS (BEHR)","Médecin ","BRISTOL-MYERS SQUIBB","22/11/2013","Repas ",16]
["Anne BLANCHAIS (BEHR)","Médecin ","UCB Pharma SA","29/11/2013","Repas ",20]
["Anne BLANCHAIS (BEHR)","Médecin ","PFIZER SAS","2013-12-03","AUTRE: INSCRIPTION ",450]
["Anne BLANCHAIS (BEHR)","Médecin ","PFIZER SAS","20/12/2013","Repas ",16]
["Anne BLANCHAIS (BEHR)","Médecin ","UCB Pharma SA","2014-01-03","Repas ",21]
["Anne BLANCHAIS (BEHR)","Médecin ","ROCHE SAS","2014-02-05","Repas ",60]
["Anne BLANCHAIS (BEHR)","Médecin ","BRISTOL-MYERS SQUIBB","21/02/2014","Repas ",43]
["Anne BLANCHAIS (BEHR)","Médecin ","Laboratoires Expanscience","2014-04-10","Repas ",38]
["Anne BLANCHAIS (BEHR)","Médecin ","UCB Pharma SA","2014-12-12","Repas ",50]
["Anne BLANCHAIS (BEHR)","Médecin ","BRISTOL-MYERS SQUIBB","2015-02-06","Repas ",23]
["Anne BLANCHAIS (BEHR)","Médecin ","AbbVie","2015-03-03","REPAS ",48]
["Anne BLANCHAIS (BEHR)","Médecin ","Lilly France SAS","20/03/2015","REPAS ",43]
["Anne BLANCHAIS (BEHR)","Médecin ","MSD France","16/09/2015","REPAS ",58]
["Anne BLANCHAIS (BEHR)","Médecin ","UCB Pharma SA","25/09/2015","REPAS ",44]
["Anne BLANCHAIS (BEHR)","Médecin ","AbbVie","25/11/2015","REPAS ",46]
["Anne BLANCHAIS (BEHR)","Médecin ","MSD France","2015-12-10","REPAS ",59]
["Karine BRIOT","Médecin ","MSD France","29/03/2012","HOSPITALITÉ ",53]
["Karine BRIOT","Médecin ","MSD France","2012-09-04","HOSPITALITÉ ",55]
["Karine BRIOT","Médecin ","PFIZER SAS","29/06/2013","HEBERGEMENT ",130]
["Karine BRIOT","Médecin ","PFIZER SAS","29/06/2013","REPAS ",111]
["Karine BRIOT","Médecin ","AbbVie","2013-07-02","Repas ",41]
["Karine BRIOT","Médecin ","Lilly France SAS","2013-10-03","REPAS ",16]
["Karine BRIOT","Médecin ","Lilly France SAS","2013-10-03","REPAS ",16]
["Karine BRIOT","Médecin ","Lilly France SAS","2013-10-05","REPAS ",10]
["Karine BRIOT","Médecin ","Lilly France SAS","2013-10-05","REPAS ",11]
["Karine BRIOT","Médecin ","MSD France","23/10/2013","REPAS ",51]
["Karine BRIOT","Médecin ","ROCHE SAS","25/10/2013","Transport ",770]
["Karine BRIOT","Médecin ","ROCHE SAS","25/10/2013","Hébergement ",224]
["Karine BRIOT","Médecin ","ROCHE SAS","25/10/2013","Inscription ",460]
["Karine BRIOT","Médecin ","ROCHE SAS","25/10/2013","Transport ",14]
["Karine BRIOT","Médecin ","ROCHE SAS","25/10/2013","Transport ",26]
["Karine BRIOT","Médecin ","ROCHE SAS","25/10/2013","Repas ",41]
["Karine BRIOT","Médecin ","ROCHE SAS","25/10/2013","Repas ",55]
["Karine BRIOT","Médecin ","ROCHE SAS","26/10/2013","Transport ",14]
["Karine BRIOT","Médecin ","ROCHE SAS","26/10/2013","Hébergement ",224]
["Karine BRIOT","Médecin ","ROCHE SAS","26/10/2013","Repas ",59]
["Karine BRIOT","Médecin ","ROCHE SAS","26/10/2013","Repas ",59]
["Karine BRIOT","Médecin ","ROCHE SAS","27/10/2013","Repas ",51]
["Karine BRIOT","Médecin ","ROCHE SAS","27/10/2013","Hébergement ",224]
["Karine BRIOT","Médecin ","ROCHE SAS","28/10/2013","Hébergement ",224]
["Karine BRIOT","Médecin ","ROCHE SAS","28/10/2013","Repas ",59]
["Karine BRIOT","Médecin ","ROCHE SAS","29/10/2013","Hébergement ",224]
["Karine BRIOT","Médecin ","Lilly France SAS","2013-11-08","TRANSPORT ",384]
["Karine BRIOT","Médecin ","AMGEN SAS","19/11/2013","REPAS ",48]
["Karine BRIOT","Médecin ","Lilly France SAS","22/11/2013","REPAS ",60]
["Karine BRIOT","Médecin ","Lilly France SAS","22/11/2013","REPAS ",10]
["Karine BRIOT","Médecin ","Lilly France SAS","22/11/2013","AUTRE : [REMBOURSEMENT FRAIS LOGISTIQUE] ",10]
["Karine BRIOT","Médecin ","Lilly France SAS","22/11/2013","AUTRE : [REMBOURSEMENT FRAIS LOGISTIQUE] ",60]
["Karine BRIOT","Médecin ","LIVE ! BY GL EVENTS","17/01/2014","REPAS ",65]
["Karine BRIOT","Médecin ","ROCHE SAS","2014-02-05","Repas ",60]
["Karine BRIOT","Médecin ","Lilly France SAS","19/02/2014","REPAS ",39]
["Karine BRIOT","Médecin ","AMGEN SAS","2014-04-11","AUTRE [PAUSE] ",10]
["Karine BRIOT","Médecin ","AMGEN SAS","2014-04-11","REPAS REUNION ",48]
["Karine BRIOT","Médecin ","PFIZER SAS","16/05/2014","REPAS ",76]
["Karine BRIOT","Médecin ","Lilly France SAS","24/05/2014","REPAS ",10]
["Karine BRIOT","Médecin ","Lilly France SAS","24/05/2014","TRANSPORT ",10]
["Karine BRIOT","Médecin ","Lilly France SAS","24/05/2014","REPAS ",60]
["Karine BRIOT","Médecin ","Lilly France SAS","24/05/2014","REPAS ",60]
["Karine BRIOT","Médecin ","Lilly France SAS","25/05/2014","REPAS ",10]
["Karine BRIOT","Médecin ","AMGEN SAS","2014-06-12","REPAS REUNION ",60]
["Karine BRIOT","Médecin ","Lilly France SAS","24/06/2014","REPAS ",60]
["Karine BRIOT","Médecin ","Lilly France SAS","24/06/2014","REPAS ",60]
["Karine BRIOT","Médecin ","AMGEN SAS","2014-10-11","REPAS REUNION ",60]
["Karine BRIOT","Médecin ","Lilly France SAS","21/11/2014","REPAS ",10]
["Karine BRIOT","Médecin ","AMGEN SAS","22/11/2014","REPAS REUNION ",10]
["Karine BRIOT","Médecin ","AMGEN SAS","22/11/2014","REPAS REUNION ",10]
["Karine BRIOT","Médecin ","AMGEN SAS","2014-12-02","REPAS IMPROMPTU ",20]
["Karine BRIOT","Médecin ","Lilly France SAS","2014-12-09","AUTRE : [INSCRIPTION CONGRÈS SCIENTIFIQUE] ",290]
["Karine BRIOT","Médecin ","AbbVie","2015-03-03","REPAS ",48]
["Karine BRIOT","Médecin ","AMGEN SAS","2015-03-05","REPAS REUNION ",60]
["Karine BRIOT","Médecin ","AMGEN SAS","2015-03-05","HEBERGEMENT ",96]
["Karine BRIOT","Médecin ","AMGEN SAS","2015-03-05","TRANSPORT ",166]
["Karine BRIOT","Médecin ","Lilly France SAS","2015-05-06","HÉBERGEMENT ",91]
["Karine BRIOT","Médecin ","AMGEN SAS","26/05/2015","REPAS REUNION ",56]
["Karine BRIOT","Médecin ","AMGEN SAS","26/05/2015","HEBERGEMENT ",96]
["Karine BRIOT","Médecin ","AMGEN SAS","26/05/2015","TRANSPORT ",166]
["Karine BRIOT","Médecin ","Lilly France SAS","29/05/2015","REPAS ",10]
["Karine BRIOT","Médecin ","Lilly France SAS","30/05/2015","REPAS ",10]
["Karine BRIOT","Médecin ","Lilly France SAS","2015-06-04","TRANSPORT ",163]
["Karine BRIOT","Médecin ","Lilly France SAS","2015-06-04","REPAS ",60]
["Karine BRIOT","Médecin ","AMGEN SAS","2015-06-09","REPAS REUNION ",60]
["Karine BRIOT","Médecin ","MSD France","2015-06-10","TRANSPORT ",309]
["Karine BRIOT","Médecin ","MSD France","2015-06-10","TRANSPORT ",427]
["Karine BRIOT","Médecin ","MSD France","2015-06-10","REPAS ",60]
["Karine BRIOT","Médecin ","MSD France","2015-06-10","INSCRIPTION ",765]
["Karine BRIOT","Médecin ","MSD France","2015-06-10","HÉBERGEMENT ",528]
["Karine BRIOT","Médecin ","MSD France","2015-06-11","REPAS ",60]
["Karine BRIOT","Médecin ","MSD France","2015-06-12","REPAS ",60]
["Karine BRIOT","Médecin ","ICOMED","15/06/2015","Autre: [Enquête] ",31]
["Karine BRIOT","Médecin ","MSD France","21/07/2015","REPAS ",22]
["Karine BRIOT","Médecin ","MSD France","16/09/2015","REPAS ",58]
["Karine BRIOT","Médecin ","AMGEN SAS","2015-11-05","REPAS REUNION ",50]
["Karine BRIOT","Médecin ","AMGEN SAS","2015-11-05","TRANSPORT ",73]
["Karine BRIOT","Médecin ","AMGEN SAS","2015-11-05","HEBERGEMENT ",119]
["Karine BRIOT","Médecin ","MSD France","2015-12-10","REPAS ",59]
["Joël DAMIANO","Médecin ","MSD France","26/01/2012","HOSPITALITÉ ",18]
["Joël DAMIANO","Médecin ","MSD France","26/03/2012","REPAS ",21]
["Joël DAMIANO","Médecin ","MSD France","17/09/2012","REPAS ",33]
["Joël DAMIANO","Médecin ","MUNDIPHARMA","26/11/2012","AUTRE : RELATIONS NORMALES DE TRAVAIL ",11]
["Joël DAMIANO","Médecin ","AbbVie","2013-12-01","AUTRE: [INSCRIPTION] ",290]
["Joël DAMIANO","Médecin ","ROCHE SAS","14/02/2014","Repas ",23]
["Joël DAMIANO","Médecin ","MSD France","2014-06-06","REPAS ",25]
["Joël DAMIANO","Médecin ","AbbVie","2014-06-11","INSCRIPTION ",646]
["Joël DAMIANO","Médecin ","TRB CHEMEDICA","2015-01-09","CADEAUX ",89]
["Joël DAMIANO","Médecin ","TRB CHEMEDICA","2015-06-06","INSCRIPTION ",350]
["Joël DAMIANO","Médecin ","FH ORTHOPEDICS","17/06/2015","REPAS ",23]
["Jacques FECHTENBAUM","Médecin ","PIERRE FABRE MEDICAMENT","27/03/2012","Restauration ",30]
["Jacques FECHTENBAUM","Médecin ","LABORATOIRE GLAXOSMITHKLINE","2012-06-05","Hospitalité ",62]
["Jacques FECHTENBAUM","Médecin ","ICOMED","21/05/2013","Autre: [Enquête] ",25]
["Jacques FECHTENBAUM","Médecin ","ROCHE SAS","2013-06-12","Inscription ",650]
["Jacques FECHTENBAUM","Médecin ","ROCHE SAS","2013-06-12","Hébergement ",226]
["Jacques FECHTENBAUM","Médecin ","ROCHE SAS","2013-06-12","Transport ",326]
["Jacques FECHTENBAUM","Médecin ","ROCHE SAS","13/06/2013","Restauration ",60]
["Jacques FECHTENBAUM","Médecin ","ROCHE SAS","13/06/2013","Hébergement ",226]
["Jacques FECHTENBAUM","Médecin ","ROCHE SAS","15/06/2013","Restauration ",60]
["Jacques FECHTENBAUM","Médecin ","PFIZER SAS","26/06/2013","Repas ",50]
["Jacques FECHTENBAUM","Médecin ","AbbVie","2013-07-02","Repas ",41]
["Jacques FECHTENBAUM","Médecin ","MSD France","2013-07-02","REPAS ",22]
["Jacques FECHTENBAUM","Médecin ","MSD France","23/10/2013","REPAS ",51]
["Jacques FECHTENBAUM","Médecin ","PFIZER SAS","20/11/2013","Repas ",60]
["Jacques FECHTENBAUM","Médecin ","MSD France","2013-12-01","HOSPITALITÉ ",290]
["Jacques FECHTENBAUM","Médecin ","LIVE ! BY GL EVENTS","17/01/2014","REPAS ",65]
["Jacques FECHTENBAUM","Médecin ","LIVE ! BY GL EVENTS","17/01/2014","INSCRIPTION ",20]
["Jacques FECHTENBAUM","Médecin ","ROCHE SAS","2014-02-05","Repas ",60]
["Jacques FECHTENBAUM","Médecin ","AMGEN SAS","2014-02-05","REPAS IMPROMPTU ",34]
["Jacques FECHTENBAUM","Médecin ","Lilly France SAS","26/02/2014","REPAS ",18]
["Jacques FECHTENBAUM","Médecin ","Lilly France SAS","26/02/2014","REPAS ",18]
["Jacques FECHTENBAUM","Médecin ","AMGEN SAS","18/03/2014","REPAS IMPROMPTU ",35]
["Jacques FECHTENBAUM","Médecin ","Laboratoires Expanscience","2014-04-10","Repas ",38]
["Jacques FECHTENBAUM","Médecin ","MSD France","20/05/2014","REPAS ",56]
["Jacques FECHTENBAUM","Médecin ","AbbVie","23/05/2014","REPAS ",59]
["Jacques FECHTENBAUM","Médecin ","ICOMED","2014-06-05","Autre: [Enquête] ",25]
["Jacques FECHTENBAUM","Médecin ","PFIZER SAS","2014-06-10","REPAS ",44]
["Jacques FECHTENBAUM","Médecin ","Lilly France SAS","2014-07-09","REPAS ",34]
["Jacques FECHTENBAUM","Médecin ","Laboratoires Expanscience","26/09/2014","Hébergement ",540]
["Jacques FECHTENBAUM","Médecin ","Laboratoires Expanscience","26/09/2014","Transport ",545]
["Jacques FECHTENBAUM","Médecin ","Laboratoires Expanscience","26/09/2014","Hospitalité ",150]
["Jacques FECHTENBAUM","Médecin ","Lilly France SAS","27/09/2014","TRANSPORT ",85]
["Jacques FECHTENBAUM","Médecin ","Lilly France SAS","27/09/2014","HÉBERGEMENT ",160]
["Jacques FECHTENBAUM","Médecin ","Lilly France SAS","27/09/2014","REPAS ",41]
["Jacques FECHTENBAUM","Médecin ","Lilly France SAS","27/09/2014","REPAS ",60]
["Jacques FECHTENBAUM","Médecin ","Lilly France SAS","28/09/2014","REPAS ",38]
["Jacques FECHTENBAUM","Médecin ","Lilly France SAS","28/09/2014","TRANSPORT ",85]
["Jacques FECHTENBAUM","Médecin ","ROTTAPHARM SAS","2014-10-09","EPU ",55]
["Jacques FECHTENBAUM","Médecin ","MSD France","2014-12-07","INSCRIPTION ",350]
["Jacques FECHTENBAUM","Médecin ","PFIZER SAS","18/01/2015","Repas ",30]
["Jacques FECHTENBAUM","Médecin ","MSD France","2015-02-05","REPAS ",60]
["Jacques FECHTENBAUM","Médecin ","AbbVie","2015-03-03","REPAS ",48]
["Jacques FECHTENBAUM","Médecin ","BRISTOL-MYERS SQUIBB","19/03/2015","Repas ",60]
["Jacques FECHTENBAUM","Médecin ","AMGEN SAS","2015-04-07","REPAS REUNION ",39]
["Jacques FECHTENBAUM","Médecin ","Lilly France SAS","29/05/2015","REPAS ",10]
["Jacques FECHTENBAUM","Médecin ","Lilly France SAS","30/05/2015","REPAS ",10]
["Jacques FECHTENBAUM","Médecin ","Laboratoires Expanscience","2015-06-02","Repas ",53]
["Jacques FECHTENBAUM","Médecin ","MSD France","16/09/2015","REPAS ",58]
["Jacques FECHTENBAUM","Médecin ","AbbVie","18/09/2015","REPAS ",60]
["Jacques FECHTENBAUM","Médecin ","AMGEN SAS","2015-10-08","REPAS REUNION ",60]
["Jacques FECHTENBAUM","Médecin ","MSD France","2015-12-10","REPAS ",59]
["Véronique GAUD-LISTRAT","Médecin ","PIERRE FABRE MEDICAMENT","22/03/2012","Restauration ",27]
["Véronique GAUD-LISTRAT","Médecin ","ROTTAPHARM SAS","2012-06-06","Hébergement ",153]
["Véronique GAUD-LISTRAT","Médecin ","ROTTAPHARM SAS","2012-06-06","Transport ",365]
["Véronique GAUD-LISTRAT","Médecin ","ROTTAPHARM SAS","2012-06-06","Inscription ",715]
["Véronique GAUD-LISTRAT","Médecin ","MSD France","24/10/2012","HOSPITALITÉ ",94]
["Véronique GAUD-LISTRAT","Médecin ","Laboratoires Expanscience","19/02/2013","Repas ",45]
["Véronique GAUD-LISTRAT","Médecin ","Laboratoires Expanscience","2013-04-08","Repas ",36]
["Véronique GAUD-LISTRAT","Médecin ","AbbVie","2013-04-11","AUTRE : [HOSPITALITE] ",110]
["Véronique GAUD-LISTRAT","Médecin ","Laboratoires Expanscience","2013-06-04","Repas ",40]
["Véronique GAUD-LISTRAT","Médecin ","AbbVie","13/06/2013","AUTRE : [HOSPITALITE] ",47]
["Véronique GAUD-LISTRAT","Médecin ","AbbVie","27/06/2013","AUTRE : [HOSPITALITE] ",63]
["Véronique GAUD-LISTRAT","Médecin ","AbbVie","2013-07-02","Repas ",41]
["Véronique GAUD-LISTRAT","Médecin ","Lilly France SAS","2013-08-01","AUTRE : [REMBOURSEMENT FRAIS LOGISTIQUE] ",42]
["Véronique GAUD-LISTRAT","Médecin ","ASTRAZENECA","2013-09-10","Repas ",57]
["Véronique GAUD-LISTRAT","Médecin ","UCB Pharma SA","20/09/2013","Autre : [ Forfait journée d\u0092étude ] ",139]
["Véronique GAUD-LISTRAT","Médecin ","UCB Pharma SA","15/10/2013","Repas ",50]
["Véronique GAUD-LISTRAT","Médecin ","BRISTOL-MYERS SQUIBB","18/10/2013","Repas ",60]
["Véronique GAUD-LISTRAT","Médecin ","MSD France","23/10/2013","REPAS ",51]
["Véronique GAUD-LISTRAT","Médecin ","AbbVie","13/11/2013","REPAS ",59]
["Véronique GAUD-LISTRAT","Médecin ","TRB CHEMEDICA","19/11/2013","AUTRE : REUNION ",18]
["Véronique GAUD-LISTRAT","Médecin ","Lilly France SAS","22/11/2013","REPAS ",10]
["Véronique GAUD-LISTRAT","Médecin ","Lilly France SAS","22/11/2013","REPAS ",10]
["Véronique GAUD-LISTRAT","Médecin ","ROTTAPHARM SAS","2013-12-01","CONGRES/INSCRIPTION ",290]
["Véronique GAUD-LISTRAT","Médecin ","MSD France","20/01/2014","REPAS ",16]
["Véronique GAUD-LISTRAT","Médecin ","ROCHE SAS","2014-02-05","Repas ",60]
["Véronique GAUD-LISTRAT","Médecin ","UCB Pharma SA","2014-02-05","Repas ",49]
["Véronique GAUD-LISTRAT","Médecin ","BRISTOL-MYERS SQUIBB","2014-02-06","Repas ",56]
["Véronique GAUD-LISTRAT","Médecin ","AbbVie","2014-02-12","REPAS ",39]
["Véronique GAUD-LISTRAT","Médecin ","ROCHE SAS","2014-02-12","Repas ",23]
["Véronique GAUD-LISTRAT","Médecin ","Laboratoires Expanscience","2014-04-10","Repas ",38]
["Véronique GAUD-LISTRAT","Médecin ","ASTRAZENECA","13/05/2014","Repas ",57]
["Véronique GAUD-LISTRAT","Médecin ","BRISTOL-MYERS SQUIBB","15/05/2014","Repas ",27]
["Véronique GAUD-LISTRAT","Médecin ","AbbVie","16/05/2014","REPAS ",33]
["Véronique GAUD-LISTRAT","Médecin ","MSD France","20/05/2014","REPAS ",56]
["Véronique GAUD-LISTRAT","Médecin ","AbbVie","23/05/2014","REPAS ",59]
["Véronique GAUD-LISTRAT","Médecin ","BRISTOL-MYERS SQUIBB","23/05/2014","Repas ",71]
["Véronique GAUD-LISTRAT","Médecin ","Lilly France SAS","24/05/2014","REPAS ",10]
["Véronique GAUD-LISTRAT","Médecin ","Lilly France SAS","24/05/2014","REPAS ",60]
["Véronique GAUD-LISTRAT","Médecin ","Lilly France SAS","25/05/2014","REPAS ",10]
["Véronique GAUD-LISTRAT","Médecin ","TRB CHEMEDICA","20/06/2014","AUTRE : CONGRES ",450]
["Véronique GAUD-LISTRAT","Médecin ","ASTRAZENECA","2014-09-09","repas ",57]
["Véronique GAUD-LISTRAT","Médecin ","BRISTOL-MYERS SQUIBB","2014-10-03","Repas ",20]
["Véronique GAUD-LISTRAT","Médecin ","ROTTAPHARM SAS","2014-12-07","Inscription ",290]
["Véronique GAUD-LISTRAT","Médecin ","AbbVie","2014-12-09","REPAS ",25]
["Véronique GAUD-LISTRAT","Médecin ","PFIZER SAS","2015-02-06","Repas ",16]
["Véronique GAUD-LISTRAT","Médecin ","AbbVie","2015-03-03","REPAS ",48]
["Véronique GAUD-LISTRAT","Médecin ","BRISTOL-MYERS SQUIBB","19/03/2015","Repas ",60]
["Véronique GAUD-LISTRAT","Médecin ","AbbVie","24/03/2015","REPAS ",60]
["Véronique GAUD-LISTRAT","Médecin ","MYLAN MEDICAL SAS","14/04/2015","REPAS ",60]
["Véronique GAUD-LISTRAT","Médecin ","TRB CHEMEDICA","2015-06-02","AUTRE : REUNION ",38]
["Véronique GAUD-LISTRAT","Médecin ","PIERRE FABRE MEDICAMENT","23/06/2015","RESTAURATION ",45]
["Véronique GAUD-LISTRAT","Médecin ","UPSA SAS","27/08/2015","Repas ",22]
["Véronique GAUD-LISTRAT","Médecin ","UCB Pharma SA","14/09/2015","REPAS ",20]
["Véronique GAUD-LISTRAT","Médecin ","MSD France","16/09/2015","REPAS ",58]
["Véronique GAUD-LISTRAT","Médecin ","UCB Pharma SA","18/09/2015","REPAS ",140]
["Véronique GAUD-LISTRAT","Médecin ","UCB Pharma SA","18/09/2015","REPAS ",140]
["Véronique GAUD-LISTRAT","Médecin ","PIERRE FABRE MEDICAMENT","2015-10-08","RESTAURATION ",56]
["Véronique GAUD-LISTRAT","Médecin ","AbbVie","2015-11-06","TRANSPORT ",1063]
["Véronique GAUD-LISTRAT","Médecin ","AbbVie","2015-11-06","REPAS ",60]
["Véronique GAUD-LISTRAT","Médecin ","AbbVie","2015-11-06","TRANSPORT ",91]
["Véronique GAUD-LISTRAT","Médecin ","AbbVie","2015-11-06","HEBERGEMENT ",275]
["Véronique GAUD-LISTRAT","Médecin ","AbbVie","2015-11-07","HEBERGEMENT ",275]
["Véronique GAUD-LISTRAT","Médecin ","AbbVie","2015-11-07","REPAS ",33]
["Véronique GAUD-LISTRAT","Médecin ","AbbVie","2015-11-07","INSCRIPTION ",608]
["Véronique GAUD-LISTRAT","Médecin ","AbbVie","2015-11-07","REPAS ",60]
["Véronique GAUD-LISTRAT","Médecin ","AbbVie","2015-11-08","HEBERGEMENT ",275]
["Véronique GAUD-LISTRAT","Médecin ","AbbVie","2015-11-08","REPAS ",59]
["Véronique GAUD-LISTRAT","Médecin ","AbbVie","2015-11-08","REPAS ",31]
["Véronique GAUD-LISTRAT","Médecin ","AbbVie","2015-11-09","REPAS ",60]
["Véronique GAUD-LISTRAT","Médecin ","AbbVie","2015-11-09","HEBERGEMENT ",275]
["Véronique GAUD-LISTRAT","Médecin ","AbbVie","2015-11-10","HEBERGEMENT ",275]
["Véronique GAUD-LISTRAT","Médecin ","AbbVie","2015-11-12","TRANSPORT ",89]
["Véronique GAUD-LISTRAT","Médecin ","ASTRAZENECA","17/11/2015","Repas ",57]
["Véronique GAUD-LISTRAT","Médecin ","UCB Pharma SA","18/11/2015","REPAS ",48]
["Véronique GAUD-LISTRAT","Médecin ","ROCHE SAS","13/12/2015","Inscription ",350]
["Christophe HUDRY","Médecin ","MSD France","2012-06-12","REPAS ",64]
["Christophe HUDRY","Médecin ","MSD France","24/10/2012","HOSPITALITÉ ",94]
["Christophe HUDRY","Médecin ","AbbVie","20/03/2013","AUTRE : [HOSPITALITE] ",56]
["Christophe HUDRY","Médecin ","PFIZER SAS","15/06/2013","TRANSPORT ",1253]
["Christophe HUDRY","Médecin ","PFIZER SAS","15/06/2013","HEBERGEMENT ",675]
["Christophe HUDRY","Médecin ","PFIZER SAS","15/06/2013","REPAS ",180]
["Christophe HUDRY","Médecin ","PFIZER SAS","15/06/2013","AUTRE: INSCRIPTION ",700]
["Christophe HUDRY","Médecin ","AbbVie","2013-07-02","Repas ",41]
["Christophe HUDRY","Médecin ","AbbVie","2013-07-04","Hébergement ",153]
["Christophe HUDRY","Médecin ","AbbVie","2013-07-04","Repas ",44]
["Christophe HUDRY","Médecin ","AbbVie","2013-07-04","Repas ",60]
["Christophe HUDRY","Médecin ","BRISTOL-MYERS SQUIBB","2013-07-09","Repas ",70]
["Christophe HUDRY","Médecin ","MSD France","2013-07-10","REPAS ",53]
["Christophe HUDRY","Médecin ","AbbVie","16/07/2013","Transport ",182]
["Christophe HUDRY","Médecin ","ICOMED","18/07/2013","Autre: [Enquête] ",29]
["Christophe HUDRY","Médecin ","AbbVie","20/09/2013","HÉBERGEMENT ",153]
["Christophe HUDRY","Médecin ","AbbVie","20/09/2013","REPAS ",60]
["Christophe HUDRY","Médecin ","AbbVie","21/09/2013","TRANSPORT ",182]
["Christophe HUDRY","Médecin ","PFIZER SAS","21/09/2013","TRANSPORT ",100]
["Christophe HUDRY","Médecin ","MSD France","23/10/2013","REPAS ",51]
["Christophe HUDRY","Médecin ","MSD France","13/11/2013","REPAS ",60]
["Christophe HUDRY","Médecin ","TRB CHEMEDICA","19/11/2013","AUTRE : REUNION ",18]
["Christophe HUDRY","Médecin ","AbbVie","2013-12-12","REPAS ",40]
["Christophe HUDRY","Médecin ","PFIZER SAS","19/12/2013","Repas ",46]
["Christophe HUDRY","Médecin ","NORDIC PHARMA SAS","2014-01-10","Inscription ",290]
["Christophe HUDRY","Médecin ","ROCHE SAS","2014-02-05","Repas ",60]
["Christophe HUDRY","Médecin ","BRISTOL-MYERS SQUIBB","2014-02-06","Repas ",56]
["Christophe HUDRY","Médecin ","ROCHE SAS","2014-02-12","Repas ",23]
["Christophe HUDRY","Médecin ","PFIZER SAS","2014-03-12","REPAS ",47]
["Christophe HUDRY","Médecin ","Laboratoires Expanscience","2014-04-10","Repas ",38]
["Christophe HUDRY","Médecin ","MEDEXACT","14/04/2014","Autre: [Enquête] ",24]
["Christophe HUDRY","Médecin ","PFIZER SAS","30/04/2014","REPAS ",37]
["Christophe HUDRY","Médecin ","AbbVie","23/05/2014","REPAS ",59]
["Christophe HUDRY","Médecin ","MSD France","2014-06-11","INSCRIPTION ",765]
["Christophe HUDRY","Médecin ","MSD France","17/06/2014","REPAS ",50]
["Christophe HUDRY","Médecin ","MEDEXACT","14/08/2014","Autre: [Enquête] ",15]
["Christophe HUDRY","Médecin ","LABORATOIRES GENEVRIER","26/09/2014","REPAS ",34]
["Christophe HUDRY","Médecin ","CELGENE","26/11/2014","REPAS REUNION SCIENTIFIQUE ",24]
["Christophe HUDRY","Médecin ","AbbVie","2014-12-01","REPAS ",21]
["Christophe HUDRY","Médecin ","PFIZER SAS","17/02/2015","Repas ",37]
["Christophe HUDRY","Médecin ","AbbVie","2015-03-03","REPAS ",48]
["Christophe HUDRY","Médecin ","BRISTOL-MYERS SQUIBB","2015-03-07","Repas ",80]
["Christophe HUDRY","Médecin ","PFIZER SAS","2015-03-10","Repas ",60]
["Christophe HUDRY","Médecin ","ROCHE SAS","2015-03-10","Repas ",146]
["Christophe HUDRY","Médecin ","PFIZER SAS","19/05/2015","Repas ",37]
["Christophe HUDRY","Médecin ","AbbVie","2015-06-09","HEBERGEMENT ",185]
["Christophe HUDRY","Médecin ","AbbVie","2015-06-10","TRANSPORT ",344]
["Christophe HUDRY","Médecin ","AbbVie","2015-06-10","TRANSPORT ",19]
["Christophe HUDRY","Médecin ","AbbVie","2015-06-10","HEBERGEMENT ",223]
["Christophe HUDRY","Médecin ","AbbVie","2015-06-10","INSCRIPTION ",700]
["Christophe HUDRY","Médecin ","AbbVie","2015-06-10","REPAS ",44]
["Christophe HUDRY","Médecin ","AbbVie","2015-06-10","TRANSPORT ",32]
["Christophe HUDRY","Médecin ","AbbVie","2015-06-11","HEBERGEMENT ",223]
["Christophe HUDRY","Médecin ","NORDIC PHARMA SAS","2015-06-11","Repas ",48]
["Christophe HUDRY","Médecin ","AbbVie","2015-06-11","REPAS ",60]
["Christophe HUDRY","Médecin ","AbbVie","2015-06-12","HEBERGEMENT ",223]
["Christophe HUDRY","Médecin ","AbbVie","2015-06-12","TRANSPORT ",17]
["Christophe HUDRY","Médecin ","AbbVie","2015-06-12","REPAS ",60]
["Christophe HUDRY","Médecin ","AbbVie","13/06/2015","TRANSPORT ",20]
["Christophe HUDRY","Médecin ","PFIZER SAS","2015-09-11","Repas ",128]
["Christophe HUDRY","Médecin ","PFIZER SAS","2015-09-11","Hébergement ",171]
["Christophe HUDRY","Médecin ","MSD France","16/09/2015","REPAS ",58]
["Christophe HUDRY","Médecin ","BRISTOL-MYERS SQUIBB","24/09/2015","Repas ",60]
["Christophe HUDRY","Médecin ","BRISTOL-MYERS SQUIBB","2015-10-05","Repas ",60]
["Christophe HUDRY","Médecin ","UCB Pharma SA","13/12/2015","REPAS ",50]
["José-Yves JUHEL","Médecin ","LABORATOIRE GLAXOSMITHKLINE","20/09/2012","Hospitalité ",20]
["José-Yves JUHEL","Médecin ","ABBOTT PRODUCTS SAS","14/11/2014","REPAS ",13]
["José-Yves JUHEL","Médecin ","TEVA SANTE SAS","17/09/2015","Autre : [Restauration] ",23]
["Sami KOLTA","Médecin ","MSD France","2013-07-02","REPAS ",22]
["Sami KOLTA","Médecin ","AbbVie","2013-07-02","Repas ",41]
["Sami KOLTA","Médecin ","AMGEN SAS","14/10/2013","REPAS IMPROMPTU ",23]
["Sami KOLTA","Médecin ","MSD France","23/10/2013","REPAS ",51]
["Sami KOLTA","Médecin ","TRB CHEMEDICA","19/11/2013","AUTRE : REUNION ",18]
["Sami KOLTA","Médecin ","LIVE ! BY GL EVENTS","17/01/2014","INSCRIPTION ",20]
["Sami KOLTA","Médecin ","LIVE ! BY GL EVENTS","17/01/2014","REPAS ",65]
["Sami KOLTA","Médecin ","ROCHE SAS","2014-02-05","Repas ",60]
["Sami KOLTA","Médecin ","Laboratoires Expanscience","2014-04-10","Repas ",38]
["Sami KOLTA","Médecin ","MSD France","20/05/2014","REPAS ",56]
["Sami KOLTA","Médecin ","BRISTOL-MYERS SQUIBB","2014-06-11","Hospitalité ",700]
["Sami KOLTA","Médecin ","Lilly France SAS","2014-07-09","REPAS ",34]
["Sami KOLTA","Médecin ","AbbVie","2015-03-03","REPAS ",48]
["Matthieu LAVIELLE","Médecin ","AbbVie","18/01/2013","AUTRE : [HOSPITALITE] ",168]
["Matthieu LAVIELLE","Médecin ","AbbVie","18/01/2013","AUTRE : [HOSPITALITE] ",140]
["Matthieu LAVIELLE","Médecin ","AbbVie","2013-12-02","HOSPITALITE ",61]
["Matthieu LAVIELLE","Médecin ","AbbVie","16/01/2014","TRANSPORT ",31]
["Matthieu LAVIELLE","Médecin ","AbbVie","17/01/2014","HEBERGEMENT ",140]
["Matthieu LAVIELLE","Médecin ","AbbVie","17/01/2014","REPAS ",51]
["Matthieu LAVIELLE","Médecin ","AbbVie","18/01/2014","REPAS ",60]
["Matthieu LAVIELLE","Médecin ","AbbVie","19/01/2014","TRANSPORT ",32]
["Matthieu LAVIELLE","Médecin ","AbbVie","2014-10-02","REPAS ",49]
["Matthieu LAVIELLE","Médecin ","AbbVie","2014-10-09","REPAS ",47]
["Matthieu LAVIELLE","Médecin ","AbbVie","2014-12-08","REPAS ",59]
["Agnès LEBRUN-FOISNET","Médecin ","PFIZER SAS","15/06/2013","TRANSPORT ",881]
["Agnès LEBRUN-FOISNET","Médecin ","PFIZER SAS","15/06/2013","REPAS ",60]
["Agnès LEBRUN-FOISNET","Médecin ","PFIZER SAS","15/06/2013","AUTRE: INSCRIPTION ",700]
["Agnès LEBRUN-FOISNET","Médecin ","PFIZER SAS","15/06/2013","HEBERGEMENT ",675]
["Agnès LEBRUN-FOISNET","Médecin ","AbbVie","2013-07-02","Repas ",41]
["Agnès LEBRUN-FOISNET","Médecin ","MSD France","2013-07-10","REPAS ",53]
["Agnès LEBRUN-FOISNET","Médecin ","MEDTRONIC France S.A.S","2013-10-05","HOSPITALITE ",19]
["Agnès LEBRUN-FOISNET","Médecin ","MSD France","23/10/2013","REPAS ",51]
["Agnès LEBRUN-FOISNET","Médecin ","AMGEN SAS","19/11/2013","REPAS ",48]
["Agnès LEBRUN-FOISNET","Médecin ","PFIZER SAS","19/12/2013","Repas ",46]
["Agnès LEBRUN-FOISNET","Médecin ","PFIZER SAS","2014-02-08","REPAS ",84]
["Agnès LEBRUN-FOISNET","Médecin ","Lilly France SAS","30/09/2014","REPAS ",13]
["Agnès LEBRUN-FOISNET","Médecin ","BRISTOL-MYERS SQUIBB","24/10/2014","Repas ",83]
["Agnès LEBRUN-FOISNET","Médecin ","AbbVie","2015-03-03","REPAS ",48]
["Agnès LEBRUN-FOISNET","Médecin ","MSD France","16/09/2015","REPAS ",58]
["Anna MOLTO","Médecin ","MSD France","24/10/2012","HOSPITALITÉ ",94]
["Anna MOLTO","Médecin ","PFIZER SAS","15/06/2013","HEBERGEMENT ",675]
["Anna MOLTO","Médecin ","PFIZER SAS","15/06/2013","REPAS ",180]
["Anna MOLTO","Médecin ","PFIZER SAS","15/06/2013","AUTRE: INSCRIPTION ",700]
["Anna MOLTO","Médecin ","PFIZER SAS","15/06/2013","TRANSPORT ",343]
["Anna MOLTO","Médecin ","UCB Pharma SA","2013-07-12","Repas ",34]
["Anna MOLTO","Médecin ","BRISTOL-MYERS SQUIBB","19/07/2013","Repas ",43]
["Anna MOLTO","Médecin ","ConsuMed Research","2013-09-12","Autre : Indemnite ",160]
["Anna MOLTO","Médecin ","AbbVie","20/09/2013","REPAS ",46]
["Anna MOLTO","Médecin ","MSD France","23/10/2013","REPAS ",51]
["Anna MOLTO","Médecin ","ROCHE SAS","25/10/2013","Hébergement ",224]
["Anna MOLTO","Médecin ","ROCHE SAS","25/10/2013","Inscription ",460]
["Anna MOLTO","Médecin ","ROCHE SAS","25/10/2013","Transport ",14]
["Anna MOLTO","Médecin ","ROCHE SAS","25/10/2013","Repas ",55]
["Anna MOLTO","Médecin ","ROCHE SAS","25/10/2013","Repas ",41]
["Anna MOLTO","Médecin ","ROCHE SAS","25/10/2013","Transport ",770]
["Anna MOLTO","Médecin ","ROCHE SAS","25/10/2013","Transport ",26]
["Anna MOLTO","Médecin ","ROCHE SAS","25/10/2013","Transport ",60]
["Anna MOLTO","Médecin ","ROCHE SAS","26/10/2013","Transport ",26]
["Anna MOLTO","Médecin ","ROCHE SAS","26/10/2013","Hébergement ",224]
["Anna MOLTO","Médecin ","ROCHE SAS","26/10/2013","Transport ",14]
["Anna MOLTO","Médecin ","ROCHE SAS","26/10/2013","Transport ",26]
["Anna MOLTO","Médecin ","ROCHE SAS","27/10/2013","Hébergement ",224]
["Anna MOLTO","Médecin ","ROCHE SAS","27/10/2013","Repas ",51]
["Anna MOLTO","Médecin ","ROCHE SAS","28/10/2013","Repas ",59]
["Anna MOLTO","Médecin ","ROCHE SAS","28/10/2013","Hébergement ",224]
["Anna MOLTO","Médecin ","ROCHE SAS","29/10/2013","Hébergement ",224]
["Anna MOLTO","Médecin ","AbbVie","13/11/2013","REPAS ",57]
["Anna MOLTO","Médecin ","AbbVie","19/11/2013","REPAS ",47]
["Anna MOLTO","Médecin ","PFIZER SAS","2013-12-03","AUTRE: INSCRIPTION ",450]
["Anna MOLTO","Médecin ","ROCHE SAS","2014-02-05","Repas ",60]
["Anna MOLTO","Médecin ","AbbVie","17/03/2014","REPAS ",26]
["Anna MOLTO","Médecin ","AbbVie","18/03/2014","REPAS ",53]
["Anna MOLTO","Médecin ","PFIZER SAS","16/05/2014","REPAS ",76]
["Anna MOLTO","Médecin ","MSD France","20/05/2014","REPAS ",56]
["Anna MOLTO","Médecin ","AbbVie","23/10/2014","REPAS ",60]
["Anna MOLTO","Médecin ","AbbVie","23/10/2014","HEBERGEMENT ",141]
["Anna MOLTO","Médecin ","AbbVie","23/10/2014","TRANSPORT ",354]
["Anna MOLTO","Médecin ","AbbVie","24/10/2014","INSCRIPTION ",600]
["Anna MOLTO","Médecin ","AbbVie","24/10/2014","HEBERGEMENT ",141]
["Anna MOLTO","Médecin ","AbbVie","2014-12-07","INSCRIPTION ",450]
["Anna MOLTO","Médecin ","AbbVie","2014-12-09","TRANSPORT ",11]
["Anna MOLTO","Médecin ","UCB Pharma SA","2014-12-12","Repas ",50]
["Anna MOLTO","Médecin ","Lilly France SAS","20/03/2015","REPAS ",43]
["Anna MOLTO","Médecin ","UCB Pharma SA","2015-05-12","Repas ",20]
["Anna MOLTO","Médecin ","UCB Pharma SA","13/05/2015","Repas ",19]
["Anna MOLTO","Médecin ","MSD France","27/11/2015","REPAS ",10]
["Anna MOLTO","Médecin ","MSD France","28/11/2015","REPAS ",10]
["Anna MOLTO","Médecin ","MSD France","28/11/2015","REPAS ",55]
["Anna MOLTO","Médecin ","BRISTOL-MYERS SQUIBB","13/12/2015","Hospitalité ",290]
["Séverine NEVEU","Médecin ","MSD France","24/10/2012","HOSPITALITÉ ",94]
["Séverine NEVEU","Médecin ","PFIZER SAS","15/06/2013","TRANSPORT ",454]
["Séverine NEVEU","Médecin ","PFIZER SAS","15/06/2013","HEBERGEMENT ",450]
["Séverine NEVEU","Médecin ","PFIZER SAS","15/06/2013","AUTRE: INSCRIPTION ",700]
["Séverine NEVEU","Médecin ","AbbVie","2013-07-02","Repas ",41]
["Séverine NEVEU","Médecin ","MSD France","2013-07-10","REPAS ",53]
["Séverine NEVEU","Médecin ","UCB Pharma SA","2013-07-12","Repas ",34]
["Séverine NEVEU","Médecin ","UCB Pharma SA","15/10/2013","Repas ",50]
["Séverine NEVEU","Médecin ","MSD France","23/10/2013","REPAS ",51]
["Séverine NEVEU","Médecin ","TRB CHEMEDICA","19/11/2013","AUTRE : REUNION ",18]
["Séverine NEVEU","Médecin ","BRISTOL-MYERS SQUIBB","22/11/2013","Repas ",16]
["Séverine NEVEU","Médecin ","UCB Pharma SA","29/11/2013","Repas ",20]
["Séverine NEVEU","Médecin ","PFIZER SAS","2013-12-03","AUTRE: INSCRIPTION ",450]
["Séverine NEVEU","Médecin ","BRISTOL-MYERS SQUIBB","27/06/2014","Repas ",43]
["Séverine NEVEU","Médecin ","MSD France","16/09/2015","REPAS ",58]
["Séverine NEVEU","Médecin ","MSD France","2015-12-10","REPAS ",59]
["Minh NGUYEN","Médecin ","MSD France","2012-10-11","HOSPITALITÉ ",129]
["Minh NGUYEN","Médecin ","MSD France","2012-10-11","HÉBERGEMENT ",120]
["Minh NGUYEN","Médecin ","MSD France","2012-10-11","TRANSPORT ",1048]
["Minh NGUYEN","Médecin ","MSD France","24/10/2012","HOSPITALITÉ ",94]
["Minh NGUYEN","Médecin ","ICOMED","19/03/2013","Autre: [Enquête] ",30]
["Minh NGUYEN","Médecin ","MSD France","17/04/2013","AUTRE ",106]
["Minh NGUYEN","Médecin ","AbbVie","2013-07-02","Repas ",41]
["Minh NGUYEN","Médecin ","MSD France","23/10/2013","REPAS ",51]
["Minh NGUYEN","Médecin ","TRB CHEMEDICA","19/11/2013","AUTRE : REUNION ",18]
["Minh NGUYEN","Médecin ","BRISTOL-MYERS SQUIBB","2013-12-01","Hospitalité ",290]
["Minh NGUYEN","Médecin ","ROCHE SAS","2014-02-05","Repas ",60]
["Minh NGUYEN","Médecin ","ICOMED","29/04/2014","Autre: [Enquête] ",26]
["Minh NGUYEN","Médecin ","MSD France","20/05/2014","REPAS ",56]
["Minh NGUYEN","Médecin ","MEDEXACT","18/08/2014","Autre: [Enquête] ",19]
["Minh NGUYEN","Médecin ","BRISTOL-MYERS SQUIBB","24/10/2014","Repas ",83]
["Minh NGUYEN","Médecin ","MEDEXACT","2014-12-03","Autre: [Enquête] ",17]
["Minh NGUYEN","Médecin ","PRECIPHAR","17/02/2015","Repas ",43]
["Minh NGUYEN","Médecin ","AbbVie","2015-03-03","REPAS ",48]
["Minh NGUYEN","Médecin ","MSD France","16/09/2015","REPAS ",58]
["Minh NGUYEN","Médecin ","PAREXEL International","22/10/2015","TRANSPORT ALLER/RETOUR -REPAS(DINERS-DEJEUNERS-PAUSES)-HEBERGEMENT-TRANSFERT ",807]
["Minh NGUYEN","Médecin ","AbbVie","2015-12-10","REPAS ",24]
["Axelle SALCION-MATOUB","Médecin ","AbbVie","29/11/2012","AUTRE : [HOSPITALITE] ",53]
["Axelle SALCION-MATOUB","Médecin ","AbbVie","2013-07-05","Repas ",21]
["Axelle SALCION-MATOUB","Médecin ","MSD France","26/09/2013","REPAS ",56]
["Axelle SALCION-MATOUB","Médecin ","AbbVie","30/11/2013","Repas ",33]
["Axelle SALCION-MATOUB","Médecin ","AbbVie","2013-12-02","Repas ",61]
["Axelle SALCION-MATOUB","Médecin ","CHUGAI PHARMA FRANCE","2013-12-06","REPAS ",23]
["Axelle SALCION-MATOUB","Etudiant ","BRISTOL-MYERS SQUIBB","13/12/2013","Repas ",40]
["Axelle SALCION-MATOUB","Médecin ","AbbVie","2014-01-02","REPAS ",50]
["Axelle SALCION-MATOUB","Etudiant ","BRISTOL-MYERS SQUIBB","17/01/2014","Repas ",21]
["Axelle SALCION-MATOUB","Etudiant ","BRISTOL-MYERS SQUIBB","13/02/2014","Repas ",60]
["Axelle SALCION-MATOUB","Etudiant ","BRISTOL-MYERS SQUIBB","2014-04-04","Repas ",22]
["Axelle SALCION-MATOUB","Etudiant ","BRISTOL-MYERS SQUIBB","2014-04-10","Repas ",24]
["Axelle SALCION-MATOUB","Etudiant ","MUNDIPHARMA","23/05/2014","REPAS ",32]
["Axelle SALCION-MATOUB","Médecin ","BRISTOL-MYERS SQUIBB","2014-06-11","Hospitalité ",700]
["Axelle SALCION-MATOUB","Médecin ","Takeda France","26/09/2014","REPAS ",26]
["Axelle SALCION-MATOUB","Médecin ","UCB Pharma SA","2014-12-12","Repas ",50]
["Axelle SALCION-MATOUB","Médecin ","UCB Pharma SA","23/01/2015","Autre : [ Inscription ] ",115]
["Axelle SALCION-MATOUB","Médecin ","BRISTOL-MYERS SQUIBB","2015-02-06","Repas ",23]
["Axelle SALCION-MATOUB","Médecin ","AbbVie","2015-03-03","REPAS ",48]
["Axelle SALCION-MATOUB","Médecin ","ROCHE SAS","2015-06-10","Transport ",30]
["Axelle SALCION-MATOUB","Médecin ","ROCHE SAS","2015-06-10","Inscription ",700]
["Axelle SALCION-MATOUB","Médecin ","ROCHE SAS","2015-06-10","H‚bergement ",220]
["Axelle SALCION-MATOUB","Médecin ","ROCHE SAS","2015-06-11","H‚bergement ",220]
["Axelle SALCION-MATOUB","Médecin ","ROCHE SAS","2015-06-11","Transport ",19]
["Axelle SALCION-MATOUB","Médecin ","ROCHE SAS","2015-06-12","H‚bergement ",220]
["Axelle SALCION-MATOUB","Médecin ","MSD France","16/09/2015","REPAS ",58]
["Axelle SALCION-MATOUB","Médecin ","UCB Pharma SA","25/09/2015","REPAS ",44]
["Axelle SALCION-MATOUB","Médecin ","UCB Pharma SA","28/10/2015","REPAS ",19]
["Axelle SALCION-MATOUB","Médecin ","AbbVie","25/11/2015","REPAS ",46]
["Axelle SALCION-MATOUB","Médecin ","BRISTOL-MYERS SQUIBB","13/12/2015","Hospitalité ",450]
["Maxime DOUGADOS","Médecin ","BRISTOL-MYERS SQUIBB","2013-01-09","Hospitalité ",293]
["Maxime DOUGADOS","Médecin ","AbbVie","16/01/2013","AUTRE : [HOSPITALITE] ",56]
["Maxime DOUGADOS","Médecin ","MSD France","16/01/2013","TRANSPORT ",68]
["Maxime DOUGADOS","Médecin ","MSD France","14/02/2013","TRANSPORT ",104]
["Maxime DOUGADOS","Médecin ","ROCHE SAS","26/02/2013","Restauration ",55]
["Maxime DOUGADOS","Médecin ","ROCHE SAS","26/02/2013","Restauration ",10]
["Maxime DOUGADOS","Médecin ","AbbVie","2013-03-08","AUTRE : [HOSPITALITE] ",47]
["Maxime DOUGADOS","Médecin ","MSD France","2013-04-02","TRANSPORT ",104]
["Maxime DOUGADOS","Médecin ","MSD France","20/04/2013","TRANSPORT ",22]
["Maxime DOUGADOS","Médecin ","AbbVie","18/06/2013","AUTRE : [HOSPITALITE] ",44]
["Maxime DOUGADOS","Médecin ","AbbVie","27/06/2013","AUTRE : [HOSPITALITE] ",63]
["Maxime DOUGADOS","Médecin ","AbbVie","2013-07-02","Repas ",41]
["Maxime DOUGADOS","Médecin ","Bristol-Myers Squibb EMEA","2013-10-10","Repas ",98]
["Maxime DOUGADOS","Médecin ","Bristol-Myers Squibb EMEA","2013-10-10","Hébergement ",168]
["Maxime DOUGADOS","Médecin ","Bristol-Myers Squibb EMEA","2013-10-10","Transport ",123]
["Maxime DOUGADOS","Médecin ","AbbVie","2013-10-11","TRANSPORT ",458]
["Maxime DOUGADOS","Médecin ","AbbVie","2013-10-11","REPAS ",60]
["Maxime DOUGADOS","Médecin ","AbbVie","2013-10-11","REPAS ",42]
["Maxime DOUGADOS","Médecin ","AbbVie","2013-10-11","HOSPITALITE ",23]
["Maxime DOUGADOS","Médecin ","MSD France","23/10/2013","REPAS ",51]
["Maxime DOUGADOS","Médecin ","AbbVie","29/10/2013","Repas ",36]
["Maxime DOUGADOS","Médecin ","PFIZER SAS","30/10/2013","TRANSPORT ",8720]
["Maxime DOUGADOS","Médecin ","PFIZER SAS","30/10/2013","REPAS ",53]
["Maxime DOUGADOS","Médecin ","TRB CHEMEDICA","19/11/2013","AUTRE : REUNION ",18]
["Maxime DOUGADOS","Médecin ","PFIZER SAS","2013-12-03","AUTRE: INSCRIPTION ",290]
["Maxime DOUGADOS","Médecin ","NOVO NORDISK","2014-01-12","HÃ‰BERGEMENT ",343]
["Maxime DOUGADOS","Médecin ","NOVO NORDISK","2014-01-12","TRANSPORT ",446]
["Maxime DOUGADOS","Médecin ","ROCHE SAS","2014-02-05","Repas ",60]
["Maxime DOUGADOS","Médecin ","ROCHE SAS","2014-02-12","Repas ",23]
["Maxime DOUGADOS","Médecin ","AbbVie","17/03/2014","REPAS ",38]
["Maxime DOUGADOS","Médecin ","BRISTOL-MYERS SQUIBB","2014-04-01","Repas ",11]
["Maxime DOUGADOS","Médecin ","Laboratoires Expanscience","2014-04-10","Repas ",38]
["Maxime DOUGADOS","Médecin ","MSD France","2014-05-07","TRANSPORT ",61]
["Maxime DOUGADOS","Médecin ","MSD France","2014-05-07","TRANSPORT ",376]
["Maxime DOUGADOS","Médecin ","MSD France","2014-05-07","INSCRIPTION ",2883]
["Maxime DOUGADOS","Médecin ","PFIZER SAS","16/05/2014","REPAS ",76]
["Maxime DOUGADOS","Médecin ","BRISTOL-MYERS SQUIBB","23/05/2014","Repas ",71]
["Maxime DOUGADOS","Médecin ","AbbVie","30/06/2014","REPAS ",53]
["Maxime DOUGADOS","Médecin ","AbbVie","30/06/2014","TRANSPORT ",30]
["Maxime DOUGADOS","Médecin ","AbbVie","30/06/2014","TRANSPORT ",29]
["Maxime DOUGADOS","Médecin ","MSD France","2014-07-03","REPAS ",140]
["Maxime DOUGADOS","Médecin ","AbbVie","2014-07-04","AUTRE : [PAUSE] ",10]
["Maxime DOUGADOS","Médecin ","AbbVie","2014-07-04","REPAS ",51]
["Maxime DOUGADOS","Médecin ","AbbVie","2014-07-04","TRANSPORT ",21]
["Maxime DOUGADOS","Médecin ","AbbVie","2014-07-05","AUTRE : [PAUSE] ",10]
["Maxime DOUGADOS","Médecin ","AbbVie","2014-07-05","TRANSPORT ",22]
["Maxime DOUGADOS","Médecin ","AbbVie","2014-07-05","REPAS ",51]
["Maxime DOUGADOS","Médecin ","MSD France","2014-07-08","TRANSPORT ",80]
["Maxime DOUGADOS","Médecin ","MSD France","2014-09-02","REPAS ",30]
["Maxime DOUGADOS","Médecin ","UCB Pharma SA","2014-10-02","Repas ",50]
["Maxime DOUGADOS","Médecin ","UCB Pharma SA","2014-10-02","Autre : [ Forfait journée d\u0092étude ou forfait congrès ] ",130]
["Maxime DOUGADOS","Médecin ","Bristol-Myers Squibb EMEA","2014-10-03","Repas ",46]
["Maxime DOUGADOS","Médecin ","Bristol-Myers Squibb EMEA","2014-10-03","Transport ",143]
["Maxime DOUGADOS","Médecin ","Regeneron Pharmaceuticals, Inc.","30/10/2014","Transport ",126]
["Maxime DOUGADOS","Médecin ","Regeneron Pharmaceuticals, Inc.","30/10/2014","Transport ",674]
["Maxime DOUGADOS","Médecin ","Regeneron Pharmaceuticals, Inc.","30/10/2014","Logement ",244]
["Maxime DOUGADOS","Médecin ","Regeneron Pharmaceuticals, Inc.","30/10/2014","Repas ",53]
["Maxime DOUGADOS","Médecin ","Regeneron Pharmaceuticals, Inc.","31/10/2014","Transport ",64]
["Maxime DOUGADOS","Médecin ","Regeneron Pharmaceuticals, Inc.","31/10/2014","conseil ",3838]
["Maxime DOUGADOS","Médecin ","Regeneron Pharmaceuticals, Inc.","31/10/2014","Repas ",88]
["Maxime DOUGADOS","Médecin ","Regeneron Pharmaceuticals, Inc.","2014-11-01","Transport ",158]
["Maxime DOUGADOS","Médecin ","AbbVie","2014-12-01","REPAS ",36]
["Maxime DOUGADOS","Médecin ","AbbVie","2014-12-03","REPAS ",54]
["Maxime DOUGADOS","Médecin ","MSD France","2014-12-11","TRANSPORT ",80]
["Maxime DOUGADOS","Médecin ","AbbVie","13/01/2015","REPAS ",48]
["Maxime DOUGADOS","Médecin ","Regeneron Pharmaceuticals, Inc.","26/01/2015","conseil ",4318]
["Maxime DOUGADOS","Médecin ","Regeneron Pharmaceuticals, Inc.","26/01/2015","Transport ",177]
["Maxime DOUGADOS","Médecin ","NOVARTIS PHARMA SAS","2015-02-02","Repas ",60]
["Maxime DOUGADOS","Médecin ","MSD France","27/02/2015","TRANSPORT ",337]
["Maxime DOUGADOS","Médecin ","MSD France","27/02/2015","TRANSPORT ",39]
["Maxime DOUGADOS","Médecin ","MSD France","27/02/2015","TRANSPORT ",26]
["Maxime DOUGADOS","Médecin ","AbbVie","2015-03-02","REPAS ",30]
["Maxime DOUGADOS","Médecin ","AbbVie","2015-03-03","REPAS ",48]
["Maxime DOUGADOS","Médecin ","MSD France","2015-03-06","REPAS ",42]
["Maxime DOUGADOS","Médecin ","BRISTOL-MYERS SQUIBB","24/03/2015","Repas ",37]
["Maxime DOUGADOS","Médecin ","AbbVie","25/03/2015","REPAS ",43]
["Maxime DOUGADOS","Médecin ","AbbVie","25/03/2015","REPAS ",43]
["Maxime DOUGADOS","Médecin ","NOVARTIS PHARMA SAS","2015-04-02","REPAS ",59]
["Maxime DOUGADOS","Médecin ","PFIZER SAS","2015-04-03","Repas ",67]
["Maxime DOUGADOS","Médecin ","AbbVie","14/05/2015","TRANSPORT ",68]
["Maxime DOUGADOS","Médecin ","Regeneron Pharmaceuticals, Inc.","14/05/2015","transport ",3420]
["Maxime DOUGADOS","Médecin ","AbbVie","17/05/2015","TRANSPORT ",64]
["Maxime DOUGADOS","Médecin ","AbbVie","18/05/2015","TRANSPORT ",2821]
["Maxime DOUGADOS","Médecin ","BRISTOL-MYERS SQUIBB","28/05/2015","Repas ",55]
["Maxime DOUGADOS","Médecin ","MSD France","2015-06-10","REPAS ",19]
["Maxime DOUGADOS","Médecin ","Regeneron Pharmaceuticals, Inc.","18/06/2015","hébergement ",267]
["Maxime DOUGADOS","Médecin ","Regeneron Pharmaceuticals, Inc.","18/06/2015","repas ",17]
["Maxime DOUGADOS","Médecin ","Regeneron Pharmaceuticals, Inc.","18/06/2015","transport ",195]
["Maxime DOUGADOS","Médecin ","Regeneron Pharmaceuticals, Inc.","19/06/2015","repas ",12]
["Maxime DOUGADOS","Médecin ","Regeneron Pharmaceuticals, Inc.","19/06/2015","repas ",12]
["Maxime DOUGADOS","Médecin ","Regeneron Pharmaceuticals, Inc.","19/06/2015","repas ",37]
["Maxime DOUGADOS","Médecin ","Regeneron Pharmaceuticals, Inc.","19/06/2015","repas ",29]
["Maxime DOUGADOS","Médecin ","AbbVie","24/06/2015","REPAS ",35]
["Maxime DOUGADOS","Médecin ","AbbVie","16/07/2015","REPAS ",38]
["Maxime DOUGADOS","Médecin ","AbbVie","20/07/2015","TRANSPORT ",53]
["Maxime DOUGADOS","Médecin ","Regeneron Pharmaceuticals, Inc.","23/07/2015","transport ",135]
["Maxime DOUGADOS","Médecin ","Regeneron Pharmaceuticals, Inc.","23/07/2015","conseil ",4430]
["Maxime DOUGADOS","Médecin ","AbbVie","26/07/2015","TRANSPORT ",65]
["Maxime DOUGADOS","Médecin ","UCB Pharma SA","2015-08-10","REPAS ",185]
["Maxime DOUGADOS","Médecin ","JANSSEN-CILAG","2015-09-01","AUTRE : REMBOURSEMENT DE FRAIS ",56]
["Maxime DOUGADOS","Médecin ","MSD France","16/09/2015","REPAS ",58]
["Maxime DOUGADOS","Médecin ","AbbVie","17/09/2015","TRANSPORT ",48]
["Maxime DOUGADOS","Médecin ","AbbVie","19/09/2015","TRANSPORT ",94]
["Maxime DOUGADOS","Médecin ","AbbVie","19/09/2015","TRANSPORT ",6260]
["Maxime DOUGADOS","Médecin ","AbbVie","19/09/2015","TRANSPORT ",80]
["Maxime DOUGADOS","Médecin ","AbbVie","20/09/2015","TRANSPORT ",80]
["Maxime DOUGADOS","Médecin ","NORDIC PHARMA SAS","29/09/2015","Repas ",36]
["Maxime DOUGADOS","Médecin ","NOVARTIS PHARMA SAS","14/10/2015","REPAS ",59]
["Maxime DOUGADOS","Médecin ","AbbVie","22/10/2015","TRANSPORT ",50]
["Maxime DOUGADOS","Médecin ","UCB Pharma SA","23/10/2015","TRANSPORT ",13]
["Maxime DOUGADOS","Médecin ","UCB Pharma SA","23/10/2015","TRANSPORT ",13]
["Maxime DOUGADOS","Médecin ","UCB Pharma SA","23/10/2015","TRANSPORT ",26]
["Maxime DOUGADOS","Médecin ","AbbVie","25/10/2015","TRANSPORT ",50]
["Maxime DOUGADOS","Médecin ","MSD France","13/12/2015","INSCRIPTION ",290]
["Corinne MICELI-RICHARD","Médecin ","AbbVie","2012-11-07","AUTRE : [HOSPITALITE] ",13]
["Corinne MICELI-RICHARD","Médecin ","AbbVie","28/11/2012","AUTRE : [HOSPITALITE] ",60]
["Corinne MICELI-RICHARD","Médecin ","CSL BEHRING SA","24/01/2013","REPAS ",14]
["Corinne MICELI-RICHARD","Médecin ","AbbVie","29/03/2013","AUTRE : [HOSPITALITE] ",10]
["Corinne MICELI-RICHARD","Médecin ","MSD France","2013-04-04","REPAS ",17]
["Corinne MICELI-RICHARD","Médecin ","AbbVie","2013-04-09","AUTRE : [HOSPITALITE] ",53]
["Corinne MICELI-RICHARD","Médecin ","PFIZER SAS","2013-06-07","HEBERGEMENT ",167]
["Corinne MICELI-RICHARD","Médecin ","PFIZER SAS","2013-06-07","AUTRES: INSCRIPTION ",240]
["Corinne MICELI-RICHARD","Médecin ","PFIZER SAS","2013-06-07","TRANSPORT ",470]
["Corinne MICELI-RICHARD","Médecin ","PFIZER SAS","15/06/2013","TRANSPORT ",236]
["Corinne MICELI-RICHARD","Médecin ","PFIZER SAS","15/06/2013","HEBERGEMENT ",675]
["Corinne MICELI-RICHARD","Médecin ","PFIZER SAS","15/06/2013","AUTRE: INSCRIPTION ",700]
["Corinne MICELI-RICHARD","Médecin ","PFIZER SAS","15/06/2013","REPAS ",180]
["Corinne MICELI-RICHARD","Médecin ","PFIZER SAS","27/06/2013","Repas ",14]
["Corinne MICELI-RICHARD","Médecin ","AbbVie","27/06/2013","AUTRE : [HOSPITALITE] ",63]
["Corinne MICELI-RICHARD","Médecin ","PFIZER SAS","29/06/2013","REPAS ",87]
["Corinne MICELI-RICHARD","Médecin ","PFIZER SAS","29/06/2013","HEBERGEMENT ",130]
["Corinne MICELI-RICHARD","Médecin ","AbbVie","2013-07-02","Repas ",55]
["Corinne MICELI-RICHARD","Médecin ","SWEDISH ORPHAN BIOVITRUM","29/08/2013","HOSPITALITE - RELATIONS NORMALES DE TRAVAIL ",12]
["Corinne MICELI-RICHARD","Médecin ","PFIZER SAS","21/09/2013","HEBERGEMENT ",175]
["Corinne MICELI-RICHARD","Médecin ","PFIZER SAS","21/09/2013","REPAS ",69]
["Corinne MICELI-RICHARD","Médecin ","AbbVie","2013-10-11","TRANSPORT ",493]
["Corinne MICELI-RICHARD","Médecin ","AbbVie","2013-10-11","REPAS ",60]
["Corinne MICELI-RICHARD","Médecin ","AbbVie","2013-10-11","HOSPITALITE ",23]
["Corinne MICELI-RICHARD","Médecin ","AbbVie","2013-10-11","REPAS ",42]
["Corinne MICELI-RICHARD","Médecin ","AbbVie","2013-10-11","HÉBERGEMENT ",182]
["Corinne MICELI-RICHARD","Médecin ","AbbVie","2013-10-12","HÉBERGEMENT ",182]
["Corinne MICELI-RICHARD","Médecin ","AbbVie","13/10/2013","REPAS ",55]
["Corinne MICELI-RICHARD","Médecin ","SWEDISH ORPHAN BIOVITRUM","13/11/2013","HOSPITALITE - RELATIONS NORMALES DE TRAVAIL ",11]
["Corinne MICELI-RICHARD","Médecin ","AbbVie","19/11/2013","REPAS ",40]
["Corinne MICELI-RICHARD","Médecin ","JANSSEN-CILAG","2013-12-10","REPAS ",265]
["Corinne MICELI-RICHARD","Médecin ","JANSSEN-CILAG","2013-12-10","TRANSPORT ",1306]
["Corinne MICELI-RICHARD","Médecin ","JANSSEN-CILAG","2013-12-10","AUTRE : REMBOURSEMENT DE FRAIS ",140]
["Corinne MICELI-RICHARD","Médecin ","JANSSEN-CILAG","2013-12-10","HEBERGEMENT ",439]
["Corinne MICELI-RICHARD","Médecin ","JANSSEN-CILAG","2013-12-10","INSCRIPTION ",720]
["Corinne MICELI-RICHARD","Médecin ","PFIZER SAS","16/01/2014","REPAS ",21]
["Corinne MICELI-RICHARD","Médecin ","ROTTAPHARM SAS","22/01/2014","EPU ",59]
["Corinne MICELI-RICHARD","Médecin ","CELGENE","30/01/2014","REPAS RELATION NORMALE DE TRAVAIL ",18]
["Corinne MICELI-RICHARD","Médecin ","LES LABORATOIRES OSTEAL MEDICAL","2014-02-04","REPAS ",13]
["Corinne MICELI-RICHARD","Médecin ","ROCHE SAS","2014-02-06","Repas ",13]
["Corinne MICELI-RICHARD","Médecin ","PFIZER SAS","2014-02-08","REPAS ",212]
["Corinne MICELI-RICHARD","Médecin ","PFIZER SAS","2014-03-04","REPAS ",60]
["Corinne MICELI-RICHARD","Médecin ","ROCHE SAS","2014-03-05","Repas ",11]
["Corinne MICELI-RICHARD","Médecin ","LIVE ! BY GL EVENTS","20/03/2014","Repas ",40]
["Corinne MICELI-RICHARD","Médecin ","LIVE ! BY GL EVENTS","20/03/2014","Inscription ",35]
["Corinne MICELI-RICHARD","Médecin ","AbbVie","2014-04-03","TRANSPORT ",2452]
["Corinne MICELI-RICHARD","Médecin ","AbbVie","2014-04-03","TRANSPORT ",1226]
["Corinne MICELI-RICHARD","Médecin ","AbbVie","2014-04-04","HEBERGEMENT ",168]
["Corinne MICELI-RICHARD","Médecin ","AbbVie","2014-04-04","REPAS ",59]
["Corinne MICELI-RICHARD","Médecin ","AbbVie","2014-04-04","REPAS ",50]
["Corinne MICELI-RICHARD","Médecin ","AbbVie","2014-04-04","REPAS ",51]
["Corinne MICELI-RICHARD","Etudiant ","AbbVie","2014-04-05","REPAS ",50]
["Corinne MICELI-RICHARD","Médecin ","AbbVie","2014-04-05","REPAS ",32]
["Corinne MICELI-RICHARD","Médecin ","AbbVie","2014-04-05","REPAS ",15]
["Corinne MICELI-RICHARD","Médecin ","AbbVie","2014-04-05","HEBERGEMENT ",168]
["Corinne MICELI-RICHARD","Médecin ","AbbVie","2014-04-06","REPAS ",39]
["Corinne MICELI-RICHARD","Médecin ","AbbVie","2014-04-06","TRANSPORT ",1226]
["Corinne MICELI-RICHARD","Médecin ","PFIZER SAS","2014-04-12","TRANSPORT ",671]
["Corinne MICELI-RICHARD","Médecin ","PFIZER SAS","2014-04-12","HEBERGEMENT ",180]
["Corinne MICELI-RICHARD","Médecin ","PFIZER SAS","2014-04-12","REPAS ",171]
["Corinne MICELI-RICHARD","Médecin ","AbbVie","14/05/2014","REPAS ",12]
["Corinne MICELI-RICHARD","Médecin ","PFIZER SAS","16/05/2014","REPAS ",76]
["Corinne MICELI-RICHARD","Médecin ","PFIZER SAS","20/05/2014","REPAS ",20]
["Corinne MICELI-RICHARD","Médecin ","PFIZER SAS","20/05/2014","REPAS ",13]
["Corinne MICELI-RICHARD","Médecin ","PFIZER SAS","21/05/2014","REPAS ",17]
["Corinne MICELI-RICHARD","Médecin ","SWEDISH ORPHAN BIOVITRUM","17/06/2014","REPAS ",43]
["Corinne MICELI-RICHARD","Médecin ","SWEDISH ORPHAN BIOVITRUM","17/06/2014","TRANSPORT ",144]
["Corinne MICELI-RICHARD","Médecin ","SWEDISH ORPHAN BIOVITRUM","17/06/2014","TRANSPORT ",60]
["Corinne MICELI-RICHARD","Médecin ","SWEDISH ORPHAN BIOVITRUM","17/06/2014","REPAS ",14]
["Corinne MICELI-RICHARD","Médecin ","SWEDISH ORPHAN BIOVITRUM","17/06/2014","HÉBERGEMENT ",74]
["Corinne MICELI-RICHARD","Médecin ","AbbVie","15/10/2014","REPAS ",60]
["Corinne MICELI-RICHARD","Médecin ","AbbVie","16/10/2014","REPAS ",42]
["Corinne MICELI-RICHARD","Médecin ","CELGENE","23/10/2014","HEBERGEMENT ",295]
["Corinne MICELI-RICHARD","Médecin ","CELGENE","23/10/2014","INSCRIPTION ",600]
["Corinne MICELI-RICHARD","Médecin ","ROCHE SAS","23/10/2014","Repas ",30]
["Corinne MICELI-RICHARD","Médecin ","CELGENE","23/10/2014","TRANSPORT ",151]
["Corinne MICELI-RICHARD","Médecin ","CELGENE","23/10/2014","REPAS CONGRES ",24]
["Corinne MICELI-RICHARD","Médecin ","CELGENE","23/10/2014","TRANSPORT ",331]
["Corinne MICELI-RICHARD","Médecin ","CELGENE","23/10/2014","TRANSPORT ",302]
["Corinne MICELI-RICHARD","Médecin ","CELGENE","25/10/2014","TRANSPORT ",151]
["Corinne MICELI-RICHARD","Médecin ","ROCHE SAS","28/11/2014","Repas ",14]
["Corinne MICELI-RICHARD","Médecin ","ROCHE SAS","2014-12-02","Repas ",18]
["Corinne MICELI-RICHARD","Médecin ","MSD France","2014-12-07","INSCRIPTION ",350]
["Corinne MICELI-RICHARD","Médecin ","AbbVie","17/12/2014","REPAS ",10]
["Corinne MICELI-RICHARD","Médecin ","AbbVie","2015-02-10","REPAS ",13]
["Corinne MICELI-RICHARD","Médecin ","AbbVie","2015-03-03","REPAS ",48]
["Corinne MICELI-RICHARD","Médecin ","ROCHE SAS","2015-03-10","Repas ",146]
["Corinne MICELI-RICHARD","Médecin ","NOVARTIS PHARMA SAS","2015-04-02","REPAS ",59]
["Corinne MICELI-RICHARD","Médecin ","PFIZER SAS","2015-04-03","Repas ",67]
["Corinne MICELI-RICHARD","Médecin ","JANSSEN-CILAG","27/05/2015","REPAS ",12]
["Corinne MICELI-RICHARD","Médecin ","NOVARTIS PHARMA SAS","2015-09-08","REPAS ",59]
["Corinne MICELI-RICHARD","Médecin ","PFIZER SAS","2015-09-11","Hébergement ",171]
["Corinne MICELI-RICHARD","Médecin ","PFIZER SAS","2015-09-11","Repas ",128]
["Corinne MICELI-RICHARD","Médecin ","AbbVie","17/09/2015","REPAS ",24]
["Corinne MICELI-RICHARD","Médecin ","BRISTOL-MYERS SQUIBB","2015-10-05","Repas ",60]
["Corinne MICELI-RICHARD","Médecin ","NOVARTIS PHARMA SAS","14/10/2015","REPAS ",59]
["Corinne MICELI-RICHARD","Médecin ","UCB Pharma SA","28/10/2015","REPAS ",19]
["Corinne MICELI-RICHARD","Médecin ","NOVARTIS PHARMA SAS","30/10/2015","REPAS ",59]
["Corinne MICELI-RICHARD","Médecin ","MSD France","27/11/2015","REPAS ",60]
["Corinne MICELI-RICHARD","Médecin ","MSD France","27/11/2015","REPAS ",10]
["Corinne MICELI-RICHARD","Médecin ","MSD France","28/11/2015","REPAS ",55]
["Corinne MICELI-RICHARD","Médecin ","MSD France","28/11/2015","REPAS ",10]
["Christian ROUX","Médecin ","MSD France","22/06/2012","REPAS ",54]
["Christian ROUX","Médecin ","MSD France","24/10/2012","HOSPITALITÉ ",94]
["Christian ROUX","Médecin ","MSD France","20/02/2013","HOSPITALITÉ ",113]
["Christian ROUX","Médecin ","MSD France","2013-06-12","HOSPITALITÉ ",1724]
["Christian ROUX","Médecin ","AbbVie","2013-07-02","Repas ",41]
["Christian ROUX","Médecin ","Lilly France SAS","2013-08-01","AUTRE : [REMBOURSEMENT FRAIS LOGISTIQUE] ",47]
["Christian ROUX","Médecin ","MSD France","2013-09-06","HOSPITALITÉ ",194]
["Christian ROUX","Médecin ","MSD France","24/09/2013","REPAS ",22]
["Christian ROUX","Médecin ","NOVARTIS PHARMA SAS","2013-10-04","Transport ",3169]
["Christian ROUX","Médecin ","NOVARTIS PHARMA SAS","2013-10-04","Autre : [Inscription Evenement Scientifique] ",275]
["Christian ROUX","Médecin ","NOVARTIS PHARMA SAS","2013-10-04","Hébergement ",920]
["Christian ROUX","Médecin ","NOVARTIS PHARMA SAS","2013-10-04","Repas ",62]
["Christian ROUX","Médecin ","MSD France","23/10/2013","REPAS ",51]
["Christian ROUX","Médecin ","TRB CHEMEDICA","19/11/2013","AUTRE : REUNION ",18]
["Christian ROUX","Médecin ","LIVE ! BY GL EVENTS","17/01/2014","REPAS ",65]
["Christian ROUX","Médecin ","MSD France","25/03/2014","REPAS ",36]
["Christian ROUX","Médecin ","Lilly France SAS","28/03/2014","HÉBERGEMENT ",165]
["Christian ROUX","Médecin ","Lilly France SAS","28/03/2014","REPAS ",38]
["Christian ROUX","Médecin ","Lilly France SAS","28/03/2014","TRANSPORT ",135]
["Christian ROUX","Médecin ","Lilly France SAS","29/03/2014","REPAS ",38]
["Christian ROUX","Médecin ","Lilly France SAS","29/03/2014","TRANSPORT ",18]
["Christian ROUX","Médecin ","Lilly France SAS","30/03/2014","TRANSPORT ",100]
["Christian ROUX","Médecin ","MSD France","2014-04-10","TRANSPORT ",21]
["Christian ROUX","Médecin ","AMGEN SAS","2014-04-11","AUTRE [PAUSE] ",10]
["Christian ROUX","Médecin ","AMGEN SAS","2014-04-11","AUTRE [PAUSE] ",10]
["Christian ROUX","Médecin ","AMGEN SAS","2014-04-11","REPAS REUNION ",48]
["Christian ROUX","Médecin ","MSD France","29/04/2014","REPAS ",54]
["Christian ROUX","Médecin ","AMGEN SAS","2014-05-12","TRANSPORT ",27]
["Christian ROUX","Médecin ","PFIZER SAS","16/05/2014","REPAS ",76]
["Christian ROUX","Médecin ","MSD France","20/05/2014","REPAS ",56]
["Christian ROUX","Médecin ","Lilly France SAS","21/05/2014","AUTRE : [REMBOURSEMENT FRAIS LOGISTIQUE] ",22]
["Christian ROUX","Médecin ","Lilly France SAS","24/05/2014","TRANSPORT ",10]
["Christian ROUX","Médecin ","Lilly France SAS","24/05/2014","REPAS ",10]
["Christian ROUX","Médecin ","Lilly France SAS","24/05/2014","REPAS ",60]
["Christian ROUX","Médecin ","Lilly France SAS","24/05/2014","REPAS ",60]
["Christian ROUX","Médecin ","Lilly France SAS","25/05/2014","REPAS ",60]
["Christian ROUX","Médecin ","Lilly France SAS","25/05/2014","REPAS ",10]
["Christian ROUX","Médecin ","MSD France","2014-06-11","TRANSPORT ",25]
["Christian ROUX","Médecin ","MSD France","2014-07-10","TRANSPORT ",89]
["Christian ROUX","Médecin ","OVERCOME","19/09/2014","Transport pris en charge par UCB ",15]
["Christian ROUX","Médecin ","IMPACT MEDICOM","19/09/2014","Droits d'auteur pris en charge par UCB ",1200]
["Christian ROUX","Médecin ","Lilly France SAS","2014-10-02","TRANSPORT ",588]
["Christian ROUX","Médecin ","Lilly France SAS","2014-10-02","REPAS ",20]
["Christian ROUX","Médecin ","Lilly France SAS","2014-10-02","HÉBERGEMENT ",138]
["Christian ROUX","Médecin ","MSD France","2014-10-03","TRANSPORT ",30]
["Christian ROUX","Médecin ","AMGEN SAS","30/10/2014","REPAS REUNION ",60]
["Christian ROUX","Médecin ","AMGEN SAS","30/10/2014","TRANSPORT ",296]
["Christian ROUX","Médecin ","AbbVie","2015-03-03","REPAS ",48]
["Christian ROUX","Médecin ","Lilly France SAS","29/05/2015","REPAS ",10]
["Christian ROUX","Médecin ","Lilly France SAS","30/05/2015","REPAS ",10]
["Christian ROUX","Médecin ","GILEAD SCIENCES","2015-09-03","REPAS ",58]
["Christian ROUX","Médecin ","MSD France","16/09/2015","REPAS ",58]
["Christian ROUX","Médecin ","UCB Pharma SA","24/09/2015","TRANSPORT ",192]
["Christian ROUX","Médecin ","UCB Pharma SA","24/09/2015","REPAS ",66]
["Christian ROUX","Médecin ","UCB Pharma SA","24/09/2015","HÉBERGEMENT ",160]
["Christian ROUX","Médecin ","UCB Pharma SA","24/09/2015","REPAS ",67]
["Christian ROUX","Médecin ","AMGEN SAS","14/10/2015","TRANSPORT ",159]
["Christian ROUX","Médecin ","MSD France","27/11/2015","TRANSPORT ",12]
["Christian ROUX","Médecin ","MSD France","27/11/2015","REPAS ",10]
["Christian ROUX","Médecin ","MSD France","27/11/2015","TRANSPORT ",19]
["Christian ROUX","Médecin ","MSD France","28/11/2015","REPAS ",10]
["Christian ROUX","Médecin ","MSD France","28/11/2015","REPAS ",55]

{"sheet":"Conventions signées","index":1,"n_rows":482,"n_cols":6,"rows_kept":482,"cut":false,"hidden":false,"merged":[]}
["Bénéficiaire","Type de bénéficiaire","Entreprise","Date","Période","Objet"]
["Xavier AYRAL","Médecin ","PFIZER SAS","07/12/2014","07/12/2014 - 09/12/2014 ","Congrès / Symposium "]
["Xavier AYRAL","Médecin ","ROCHE SAS","05/02/2014","05/02/2014 - 05/02/2014 ","Autre : [ R‚union professionnelle ] "]
["Xavier AYRAL","Médecin ","MSD France","24/10/2012","24/10/2012 - ","CONVENTION D HOSPITALITE "]
["Xavier AYRAL","Médecin ","PFIZER SAS","06/02/2015","06/02/2015 - 07/02/2015 ","Autre : Reunion professionnelle ou scientifique "]
["Xavier AYRAL","Médecin ","UCB Pharma SA","12/05/2015","12/05/2015 - 12/05/2015 ","Autre : [ hospitalité liée à une manifestation scientifique ] "]
["Xavier AYRAL","Médecin ","MSD France","16/09/2015","16/09/2015 - ","CONVENTION D’HOSPITALITÉ "]
["Xavier AYRAL","Médecin ","MSD France","01/12/2013","01/12/2013 - 03/12/2013 ","CONVENTION D HOSPITALITE "]
["Xavier AYRAL","Médecin ","PFIZER SAS","07/02/2014","07/02/2014 - 08/02/2014 ","HOSPITALITE RP/CONGRES / SYMPO "]
["Xavier AYRAL","Médecin ","PFIZER SAS","07/02/2014","07/02/2014 - 08/02/2014 ","HOSPITALITE RP/CONGRES / SYMPO "]
["Xavier AYRAL","Médecin ","Laboratoires Expanscience","25/03/2014","25/03/2014 - 25/03/2014 ","Formation"]
["Anne BLANCHAIS (BEHR)","Médecin ","ROCHE SAS","12/04/2012","12/04/2012 - ","RECHERCHE "]
["Anne BLANCHAIS (BEHR)","Médecin ","PAREXEL International","25/06/2012","25/06/2012 - ","Recherche Clinique "]
["Anne BLANCHAIS (BEHR)","Médecin ","ROCHE SAS","11/10/2013","25/10/2013 - 30/10/2013 ","congrès / symposium "]
["Anne BLANCHAIS (BEHR)","Médecin ","UCB Pharma SA","15/10/2013","15/10/2013 - 15/10/2013 ","Autre : [ hospitalité liée à une manifestation scientifique ] "]
["Anne BLANCHAIS (BEHR)","Médecin ","MSD France","23/10/2013","23/10/2013 - ","CONVENTION D’HOSPITALITÉ "]
["Anne BLANCHAIS (BEHR)","Médecin ","PFIZER SAS","01/12/2013","01/12/2013 - 03/12/2013 ","HOSPITALITE RP/CONGRES / SYMPO "]
["Anne BLANCHAIS (BEHR)","Médecin ","ROCHE SAS","05/02/2014","05/02/2014 - 05/02/2014 ","Autre : [ R‚union professionnelle ] "]
["Anne BLANCHAIS (BEHR)","Médecin ","Laboratoires Expanscience","25/03/2014","25/03/2014 - 25/03/2014 ","Formation "]
["Anne BLANCHAIS (BEHR)","Médecin ","UCB Pharma SA","16/10/2014","16/10/2014 - 16/10/2014 ","Autre : [ hospitalité liée à une manifestation scientifique ] "]
["Anne BLANCHAIS (BEHR)","Médecin ","PFIZER SAS","07/12/2014","07/12/2014 - 09/12/2014 ","Congrès / Symposium "]
["Anne BLANCHAIS (BEHR)","Médecin ","UCB Pharma SA","19/06/2015","19/06/2015 - 19/06/2015 ","Autre : [ hospitalité liée à une manifestation scientifique ] "]
["Anne BLANCHAIS (BEHR)","Médecin ","MSD France","16/09/2015","16/09/2015 - ","CONVENTION D’HOSPITALITÉ "]
["Anne BLANCHAIS (BEHR)","Médecin ","MSD France","10/12/2015","10/12/2015 - ","CONVENTION D’HOSPITALITÉ"]
["Karine BRIOT","Médecin ","MSD France","29/03/2012","29/03/2012 - ","CONVENTION D’HOSPITALITÉ "]
["Karine BRIOT","Médecin ","MSD France","04/09/2012","04/09/2012 - ","CONVENTION D HOSPITALITE "]
["Karine BRIOT","Médecin ","MSD France","24/10/2012","24/10/2012 - ","CONVENTION D HOSPITALITE "]
["Karine BRIOT","Médecin ","PFIZER SAS","13/05/2013","13/05/2013 - ","ORATEUR RP/CONGRES/SYMPOSIUM "]
["Karine BRIOT","Médecin ","A+A","26/06/2013","26/06/2013 - ","ETUDE DE MARCHE "]
["Karine BRIOT","Médecin ","PFIZER SAS","28/06/2013","28/06/2013 - 29/06/2013 ","Orateur RP/Congres/Sympo "]
["Karine BRIOT","Médecin ","Lilly France SAS","20/09/2013","03/10/2013 - 03/10/2013 ","CONVENTION DE CONSULTANT "]
["Karine BRIOT","Médecin ","AMGEN SAS","26/09/2013","04/11/2013 - 07/11/2013 ","AUTRE [CONTRAT DE CONSULTANT] "]
["Karine BRIOT","Médecin ","AMGEN SAS","10/10/2013","12/11/2013 - 30/12/2013 ","AUTRE [CONVENTION D EXPERT] "]
["Karine BRIOT","Médecin ","ROCHE SAS","11/10/2013","25/10/2013 - 30/10/2013 ","congrès / symposium "]
["Karine BRIOT","Médecin ","Lilly France SAS","23/10/2013","23/10/2013 - 19/10/2013 ","INVITATION "]
["Karine BRIOT","Médecin ","MSD France","23/10/2013","23/10/2013 - ","CONVENTION D HOSPITALITE "]
["Karine BRIOT","Médecin ","Lilly France SAS","11/11/2013","11/11/2013 - 09/11/2013 ","INVITATION "]
["Karine BRIOT","Médecin ","AMGEN SAS","19/11/2013","19/11/2013 - 19/11/2013 ","AUTRE [CONVENTION D EXPERT] "]
["Karine BRIOT","Médecin ","AMGEN SAS","19/11/2013","19/11/2013 - 19/11/2013 ","AUTRE [CONVENTION D HOSPITALITE] "]
["Karine BRIOT","Médecin ","AMGEN SAS","19/11/2013","19/11/2013 - 19/11/2013 ","AUTRE [CONVENTION D EXPERT] "]
["Karine BRIOT","Médecin ","Lilly France SAS","22/11/2013","22/11/2013 - 22/11/2013 ","INVITATION "]
["Karine BRIOT","Médecin ","Lilly France SAS","03/12/2013","01/12/2013 - 03/12/2013 ","INVITATION "]
["Karine BRIOT","Médecin ","MSD France","26/12/2013","04/02/2014 - 30/06/2014 ","EXPERT "]
["Karine BRIOT","Médecin ","MSD France","26/12/2013","26/12/2013 - ","EXPERT"]
["Karine BRIOT","Médecin ","MSD France","26/12/2013","04/02/2014 - 30/06/2014 ","EXPERT "]
["Karine BRIOT","Médecin ","AMGEN SAS","15/01/2014","06/02/2014 - 30/12/2014 ","AUTRE [CONVENTION D EXPERT] "]
["Karine BRIOT","Médecin ","NOVARTIS PHARMA SAS","17/01/2014","17/01/2014 - 17/01/2014 ","Autre : [Orateur] "]
["Karine BRIOT","Médecin ","Lilly France SAS","21/01/2014","12/02/2014 - 13/02/2014 ","AUTRE : [CONTRAT D'ORATEUR] "]
["Karine BRIOT","Médecin ","ROCHE SAS","05/02/2014","05/02/2014 - 05/02/2014 ","Autre : [ R‚union professionnelle ] "]
["Karine BRIOT","Médecin ","AMGEN SAS","27/02/2014","01/05/2014 - 31/05/2014 ","AUTRE [CONTRAT DE CONSULTANT] "]
["Karine BRIOT","Médecin ","AMGEN SAS","27/02/2014","01/05/2014 - 31/05/2014 ","AUTRE [CONTRAT DE CONSULTANT] "]
["Karine BRIOT","Médecin ","AMGEN SAS","04/03/2014","11/04/2014 - 11/04/2014 ","AUTRE [CONVENTION D HOSPITALITE] "]
["Karine BRIOT","Médecin ","AMGEN SAS","29/04/2014","10/06/2014 - 13/06/2014 ","AUTRE [CONVENTION D ORATEUR] "]
["Karine BRIOT","Médecin ","AMGEN SAS","30/04/2014","12/06/2014 - 12/06/2014 ","AUTRE [CONVENTION HOSPITALITE] "]
["Karine BRIOT","Médecin ","Lilly France SAS","12/05/2014","12/05/2014 - 12/05/2014 ","AUTRE : [CONTRAT D'ORATEUR] "]
["Karine BRIOT","Médecin ","MSD France","16/05/2014","27/06/2014 - 28/06/2014 ","EXPERT "]
["Karine BRIOT","Médecin ","PFIZER SAS","16/05/2014","16/05/2014 - 16/05/2014 ","ORATEUR RP/CONGRES/SYMPOSIUM "]
["Karine BRIOT","Médecin ","Lilly France SAS","25/05/2014","24/05/2014 - 25/05/2014 ","AUTRE : [PARTICIPATION RÉUNION SCIENTIFIQUE] "]
["Karine BRIOT","Médecin ","Lilly France SAS","06/06/2014","06/06/2014 - 06/06/2014 ","AUTRE : [CONTRAT D'ORATEUR] "]
["Karine BRIOT","Médecin ","Lilly France SAS","24/06/2014","24/06/2014 - 24/06/2014 ","AUTRE : [CONTRAT D'ORATEUR] "]
["Karine BRIOT","Médecin ","MSD France","27/06/2014","27/06/2014 - ","CONVENTION D HOSPITALITE "]
["Karine BRIOT","Médecin ","PFIZER SAS","15/07/2014","04/11/2014 - ","CONSEIL "]
["Karine BRIOT","Médecin ","Lilly France SAS","05/08/2014","05/08/2014 - 05/08/2014 ","AUTRE : [CONTRAT D'ORATEUR] "]
["Karine BRIOT","Médecin ","Lilly France SAS","05/08/2014","05/08/2014 - 05/08/2014 ","AUTRE : [CONTRAT D'ORATEUR]"]
["Karine BRIOT","Médecin ","PFIZER SAS","19/08/2014","09/09/2014 - ","ORATEUR RP/CONGRES/SYMPOSIUM "]
["Karine BRIOT","Médecin ","AMGEN SAS","19/08/2014","09/10/2014 - 12/10/2014 ","AUTRE [CONTRAT D ORATEUR] "]
["Karine BRIOT","Médecin ","Lilly France SAS","12/09/2014","12/09/2014 - 12/09/2014 ","AUTRE : [CONTRAT D'ORATEUR] "]
["Karine BRIOT","Médecin ","AMGEN SAS","06/11/2014","22/11/2014 - 22/11/2014 ","AUTRE [CONVENTION D HOSPITALITE] "]
["Karine BRIOT","Médecin ","AMGEN SAS","06/11/2014","22/11/2014 - 22/11/2014 ","AUTRE [CONVENTION D HOSPITALITE] "]
["Karine BRIOT","Médecin ","MSD France","13/11/2014","17/12/2014 - 31/05/2015 ","EXPERT "]
["Karine BRIOT","Médecin ","Lilly France SAS","21/11/2014","21/11/2014 - 21/11/2014 ","AUTRE : [CONTRAT D'ORATEUR] "]
["Karine BRIOT","Médecin ","Lilly France SAS","05/12/2014","05/12/2014 - 05/12/2014 ","AUTRE : [CONTRAT D'ORATEUR] "]
["Karine BRIOT","Médecin ","Lilly France SAS","08/12/2014","08/12/2014 - 08/12/2014 ","AUTRE : [CONTRAT D'ORATEUR] "]
["Karine BRIOT","Médecin ","AMGEN SAS","09/12/2014","14/01/2015 - 17/01/2015 ","AUTRE [CONTRAT D ORATEUR] "]
["Karine BRIOT","Médecin ","Lilly France SAS","09/12/2014","07/12/2014 - 09/12/2014 ","AUTRE : [PARTICIPATION R�ION SCIENTIFIQUE] "]
["Karine BRIOT","Médecin ","AMGEN SAS","02/02/2015","13/03/2015 - 03/06/2015 ","AUTRE [CONTRAT ORATEUR] "]
["Karine BRIOT","Médecin ","AMGEN SAS","11/02/2015","05/03/2015 - 05/03/2015 ","AUTRE [CONTRAT D ORATEUR] "]
["Karine BRIOT","Médecin ","AMGEN SAS","12/02/2015","18/03/2015 - 18/03/2015 ","AUTRE [CONTRAT ORATEUR] "]
["Karine BRIOT","Médecin ","AMGEN SAS","02/03/2015","05/03/2015 - 05/03/2015 ","AUTRE [CONVENTION D HOSPITALITE] "]
["Karine BRIOT","Médecin ","AMGEN SAS","05/03/2015","05/03/2015 - 05/03/2015 ","Autre [CONVENTION D ORATEUR] "]
["Karine BRIOT","Médecin ","PFIZER SAS","21/04/2015","26/06/2015 - 27/06/2015 ","Congres / Symposium "]
["Karine BRIOT","Médecin ","Lilly France SAS","06/05/2015","06/05/2015 - 06/05/2015 ","AUTRE : [CONTRAT D'ORATEUR] "]
["Karine BRIOT","Médecin ","AMGEN SAS","18/05/2015","09/06/2015 - 09/06/2015 ","Autre [CONVENTION D ORATEUR] "]
["Karine BRIOT","Médecin ","AMGEN SAS","18/05/2015","09/06/2015 - 09/06/2015 ","AUTRE [CONTRAT ORATEUR]"]
["Karine BRIOT","Médecin ","AMGEN SAS","21/05/2015","23/06/2015 - 28/06/2015 ","AUTRE [CONTRAT ORATEUR] "]
["Karine BRIOT","Médecin ","AMGEN SAS","26/05/2015","26/05/2015 - 26/05/2015 ","Autre [CONVENTION D ORATEUR] "]
["Karine BRIOT","Médecin ","Lilly France SAS","04/06/2015","04/06/2015 - 04/06/2015 ","AUTRE : [CONTRAT D'ORATEUR] "]
["Karine BRIOT","Médecin ","AMGEN SAS","09/06/2015","09/06/2015 - 09/06/2015 ","Autre [CONVENTION D HOSPITALITE] "]
["Karine BRIOT","Médecin ","MSD France","10/06/2015","10/06/2015 - ","CONVENTION D’HOSPITALITÉ "]
["Karine BRIOT","Médecin ","PFIZER SAS","26/06/2015","26/06/2015 - 27/06/2015 ","Autre : Reunion professionnelle ou scientifique "]
["Karine BRIOT","Médecin ","MSD France","16/09/2015","16/09/2015 - ","CONVENTION D’HOSPITALITÉ "]
["Karine BRIOT","Médecin ","MSD France","03/11/2015","10/12/2015 - 10/12/2015 ","ORATEUR "]
["Karine BRIOT","Médecin ","AMGEN SAS","05/11/2015","05/11/2015 - 05/11/2015 ","Autre [CONVENTION D ORATEUR] "]
["Karine BRIOT","Médecin ","AMGEN SAS","05/11/2015","02/11/2015 - 06/11/2015 ","AUTRE [CONTRAT D ORATEUR] "]
["Karine BRIOT","Médecin ","AMGEN SAS","09/11/2015","12/12/2015 - 16/12/2015 ","AUTRE [CONTRAT D ORATEUR] "]
["Karine BRIOT","Médecin ","MSD France","10/12/2015","10/12/2015 - ","CONVENTION D’HOSPITALITÉ"]
["Joël DAMIANO","Médecin ","MSD France","26/01/2012","26/01/2012 - ","CONVENTION D’HOSPITALITÉ "]
["Joël DAMIANO","Médecin ","AbbVie","02/12/2013","01/12/2013 - ","AUTRE: [CONVENTION HOSPITALITE] "]
["Joël DAMIANO","Médecin ","AbbVie","28/05/2014","11/06/2014 - ","AUTRE: [CONVENTION HOSPITALITE] "]
["Joël DAMIANO","Médecin ","PFIZER SAS","07/12/2014","07/12/2014 - 09/12/2014 ","Congrès / Symposium "]
["Joël DAMIANO","Médecin ","AMGEN SAS","05/02/2015","12/03/2015 - 13/03/2015 ","AUTRE [CONVENTION D HOSPITALITE] "]
["Jacques FECHTENBAUM","Médecin ","MSD France","24/10/2012","24/10/2012 - ","CONVENTION D’HOSPITALITÉ "]
["Jacques FECHTENBAUM","Médecin ","ROCHE SAS","12/06/2013","12/06/2013 - 16/06/2013 ","Congrès / Symposium "]
["Jacques FECHTENBAUM","Médecin ","MSD France","23/10/2013","23/10/2013 - ","CONVENTION D’HOSPITALITÉ "]
["Jacques FECHTENBAUM","Médecin ","MSD France","01/12/2013","01/12/2013 - 03/12/2013 ","CONVENTION D’HOSPITALITÉ "]
["Jacques FECHTENBAUM","Médecin ","LES LABORATOIRES SERVIER","31/01/2014","31/01/2014 - ","Autre : Intervenant (Orateur/ Modérateur/ Président...) "]
["Jacques FECHTENBAUM","Médecin ","ROCHE SAS","05/02/2014","05/02/2014 - 05/02/2014 ","Autre : [ R‚union professionnelle ] "]
["Jacques FECHTENBAUM","Médecin ","Laboratoires Expanscience","25/03/2014","25/03/2014 - 25/03/2014 ","Formation "]
["Jacques FECHTENBAUM","Médecin ","Laboratoires Expanscience","05/05/2014","05/05/2014 - 07/05/2014 ","Congrès / Symposium "]
["Jacques FECHTENBAUM","Médecin ","MSD France","20/05/2014","20/05/2014 - ","CONVENTION D’HOSPITALITÉ "]
["Jacques FECHTENBAUM","Médecin ","MSD France","12/06/2014","12/06/2014 - ","CONVENTION D’HOSPITALITÉ "]
["Jacques FECHTENBAUM","Médecin ","NORDIC PHARMA SAS","25/06/2014","25/06/2014 - ","RECHERCHE "]
["Jacques FECHTENBAUM","Médecin ","Lilly France SAS","28/09/2014","27/09/2014 - 28/09/2014 ","AUTRE : [PARTICIPATION R�ION SCIENTIFIQUE] "]
["Jacques FECHTENBAUM","Médecin ","PFIZER SAS","30/09/2014","30/09/2014 - 30/09/2014 ","Autre : Réunion professionnelle ou scientifique "]
["Jacques FECHTENBAUM","Médecin ","MSD France","05/02/2015","05/02/2015 - ","CONVENTION D’HOSPITALITÉ "]
["Jacques FECHTENBAUM","Médecin ","Laboratoires Expanscience","21/05/2015","21/05/2015 - 21/05/2015 ","Formation "]
["Jacques FECHTENBAUM","Médecin ","PFIZER SAS","10/06/2015","10/06/2015 - 13/06/2015 ","Congres / Symposium "]
["Jacques FECHTENBAUM","Médecin ","AMGEN SAS","24/07/2015","08/10/2015 - 08/10/2015 ","Autre [CONVENTION D ORATEUR] "]
["Jacques FECHTENBAUM","Médecin ","MSD France","16/09/2015","16/09/2015 - ","CONVENTION D’HOSPITALITÉ "]
["Jacques FECHTENBAUM","Médecin ","AbbVie","18/09/2015","18/09/2015 - ","AUTRE: [CONVENTION HOSPITALITE] "]
["Jacques FECHTENBAUM","Médecin ","AMGEN SAS","08/10/2015","08/10/2015 - 08/10/2015 ","AUTRE [CONTRAT D ORATEUR]"]
["Jacques FECHTENBAUM","Médecin ","AMGEN SAS","08/10/2015","08/10/2015 - 08/10/2015 ","Autre [CONVENTION D HOSPITALITE] "]
["Jacques FECHTENBAUM","Médecin ","MSD France","10/12/2015","10/12/2015 - ","CONVENTION D’HOSPITALITÉ"]
["Véronique GAUD-LISTRAT","Médecin ","ROTTAPHARM SAS","06/06/2012","06/06/2012 - 09/06/2012 ","EULAR "]
["Véronique GAUD-LISTRAT","Médecin ","MSD France","24/10/2012","24/10/2012 - ","CONVENTION D’HOSPITALITÉ "]
["Véronique GAUD-LISTRAT","Médecin ","AbbVie","11/04/2013","11/04/2013 - ","AUTRE : [CONTRAT DE COLLABORATION SCIENTIFIQUE] "]
["Véronique GAUD-LISTRAT","Médecin ","AbbVie","11/04/2013","11/04/2013 - ","AUTRE : [CONTRAT DE COLLABORATION SCIENTIFIQUE] "]
["Véronique GAUD-LISTRAT","Médecin ","AbbVie","26/04/2013","26/04/2013 - ","AUTRE: [CONTRAT DE COLLABORATION SCIENTIFIQUE] "]
["Véronique GAUD-LISTRAT","Médecin ","ASTRAZENECA","10/09/2013","10/09/2013 - ","Formation "]
["Véronique GAUD-LISTRAT","Médecin ","UCB Pharma SA","20/09/2013","20/09/2013 - 21/09/2013 ","congrès / symposium "]
["Véronique GAUD-LISTRAT","Médecin ","UCB Pharma SA","15/10/2013","15/10/2013 - 15/10/2013 ","Autre : [ hospitalité liée à une manifestation scientifique ] "]
["Véronique GAUD-LISTRAT","Médecin ","MSD France","23/10/2013","23/10/2013 - ","CONVENTION D’HOSPITALITÉ "]
["Véronique GAUD-LISTRAT","Médecin ","ROTTAPHARM SAS","24/10/2013","01/12/2013 - 03/12/2013 ","26E CONGRES FRANÇAIS DE RHUMATOLOGIE "]
["Véronique GAUD-LISTRAT","Médecin ","AbbVie","07/11/2013","07/11/2013 - ","RECHERCHE "]
["Véronique GAUD-LISTRAT","Médecin ","Lilly France SAS","22/11/2013","22/11/2013 - 22/11/2013 ","INVITATION "]
["Véronique GAUD-LISTRAT","Médecin ","ROCHE SAS","05/02/2014","05/02/2014 - 05/02/2014 ","Autre : [ R‚union professionnelle ] "]
["Véronique GAUD-LISTRAT","Médecin ","Laboratoires Expanscience","25/03/2014","25/03/2014 - 25/03/2014 ","Formation "]
["Véronique GAUD-LISTRAT","Médecin ","ASTRAZENECA","13/05/2014","13/05/2014 - ","Formation "]
["Véronique GAUD-LISTRAT","Médecin ","MSD France","20/05/2014","20/05/2014 - ","CONVENTION D’HOSPITALITÉ "]
["Véronique GAUD-LISTRAT","Médecin ","Lilly France SAS","25/05/2014","24/05/2014 - 25/05/2014 ","AUTRE : [PARTICIPATION RÉUNION SCIENTIFIQUE] "]
["Véronique GAUD-LISTRAT","Médecin ","UCB Pharma SA","11/06/2014","11/06/2014 - 14/06/2014 ","Congrès / symposium "]
["Véronique GAUD-LISTRAT","Médecin ","Arthritis Fondation Courtin","09/07/2014","09/07/2014 - ","CONVENTION RECHERCHE "]
["Véronique GAUD-LISTRAT","Médecin ","ASTRAZENECA","09/09/2014","09/09/2014 - ","Formation"]
["Véronique GAUD-LISTRAT","Médecin ","PFIZER SAS","16/09/2014","16/09/2014 - 16/09/2014 ","Autre : Réunion professionnelle ou scientifique "]
["Véronique GAUD-LISTRAT","Médecin ","NORDIC PHARMA SAS","14/10/2014","14/10/2014 - ","RECHERCHE "]
["Véronique GAUD-LISTRAT","Médecin ","PFIZER SAS","02/12/2014","02/12/2014 - 02/12/2014 ","Autre : Réunion professionnelle ou scientifique "]
["Véronique GAUD-LISTRAT","Médecin ","ROCHE SAS","23/01/2015","23/01/2015 - 23/01/2015 ","Congr\u008as / Symposium "]
["Véronique GAUD-LISTRAT","Médecin ","PFIZER SAS","06/02/2015","06/02/2015 - 07/02/2015 ","Autre : Reunion professionnelle ou scientifique "]
["Véronique GAUD-LISTRAT","Médecin ","BRISTOL-MYERS SQUIBB","19/03/2015","19/03/2015 - ","Autre : [Orateur] "]
["Véronique GAUD-LISTRAT","Médecin ","PFIZER SAS","10/06/2015","10/06/2015 - 13/06/2015 ","Congres / Symposium "]
["Véronique GAUD-LISTRAT","Médecin ","MSD France","16/09/2015","16/09/2015 - ","CONVENTION D’HOSPITALITÉ "]
["Véronique GAUD-LISTRAT","Médecin ","PIERRE FABRE MEDICAMENT","08/10/2015","08/10/2015 - ","CONVENTION D'HOSPITALITE "]
["Véronique GAUD-LISTRAT","Médecin ","AbbVie","06/11/2015","06/10/2015 - 06/10/2015 ","AUTRE: [CONVENTION HOSPITALITE] "]
["Véronique GAUD-LISTRAT","Médecin ","ASTRAZENECA","17/11/2015","17/11/2015 - ","formation "]
["Véronique GAUD-LISTRAT","Médecin ","Laboratoires Expanscience","13/12/2015","13/12/2015 - 13/12/2015 ","Formation "]
["Véronique GAUD-LISTRAT","Médecin ","ROCHE SAS","13/12/2015","13/12/2015 - 15/12/2015 ","Congres / Symposium"]
["Christophe HUDRY","Médecin ","ROCHE SAS","18/04/2012","18/04/2012 - ","ORATEUR INTERVENANT "]
["Christophe HUDRY","Médecin ","MSD France","12/06/2012","12/06/2012 - ","CONVENTION D HOSPITALITE "]
["Christophe HUDRY","Médecin ","MSD France","24/10/2012","24/10/2012 - ","CONVENTION D HOSPITALITE "]
["Christophe HUDRY","Médecin ","PFIZER SAS","12/06/2013","12/06/2013 - 15/06/2013 ","HOSPITALITE RP/CONGRES / SYMPO "]
["Christophe HUDRY","Médecin ","AbbVie","01/07/2013","01/07/2013 - ","AUTRE: [CONTRAT DE COLLABORATION SCIENTIFIQUE] "]
["Christophe HUDRY","Médecin ","MSD France","10/07/2013","10/07/2013 - ","CONVENTION D HOSPITALITE "]
["Christophe HUDRY","Médecin ","AbbVie","20/08/2013","20/09/2013 - ","AUTRE: [CONTRAT DE COLLABORATION SCENTIFIQUE] "]
["Christophe HUDRY","Médecin ","PFIZER SAS","12/09/2013","12/09/2013 - ","ORATEUR RP/CONGRES/SYMPOSIUM "]
["Christophe HUDRY","Médecin ","PFIZER SAS","20/09/2013","20/09/2013 - 21/09/2013 ","Orateur RP/Congres/Sympo "]
["Christophe HUDRY","Médecin ","MSD France","11/10/2013","13/11/2013 - 13/11/2013 ","ORATEUR "]
["Christophe HUDRY","Médecin ","MSD France","11/10/2013","11/10/2013 - ","ORATEUR "]
["Christophe HUDRY","Médecin ","MSD France","23/10/2013","23/10/2013 - ","CONVENTION D HOSPITALITE "]
["Christophe HUDRY","Médecin ","MSD France","13/11/2013","13/11/2013 - ","CONVENTION D HOSPITALITE "]
["Christophe HUDRY","Médecin ","MSD France","01/12/2013","01/12/2013 - 03/12/2013 ","CONVENTION D HOSPITALITE "]
["Christophe HUDRY","Médecin ","AbbVie","12/12/2013","12/12/2013 - ","AUTRE: [CONVENTION HOSPITALITE] "]
["Christophe HUDRY","Médecin ","BRISTOL-MYERS SQUIBB","01/02/2014","01/02/2014 - ","Autre : [Recherche/Développement] "]
["Christophe HUDRY","Médecin ","Bristol-Myers Squibb EMEA","05/02/2014","05/02/2014 - ","Autre : [Recherche biomédicale] "]
["Christophe HUDRY","Médecin ","ROCHE SAS","05/02/2014","05/02/2014 - 05/02/2014 ","Autre : [ R‚union professionnelle ] "]
["Christophe HUDRY","Médecin ","BRISTOL-MYERS SQUIBB","06/02/2014","06/02/2014 - ","Autre : [Orateur] "]
["Christophe HUDRY","Médecin ","Laboratoires Expanscience","25/03/2014","25/03/2014 - 25/03/2014 ","Formation"]
["Christophe HUDRY","Médecin ","AbbVie","15/04/2014","15/04/2014 - ","AUTRE: [CONTRAT DE COLLABORATION SCIENTIFIQUE] "]
["Christophe HUDRY","Médecin ","MSD France","24/04/2014","04/06/2014 - 31/12/2014 ","EXPERT "]
["Christophe HUDRY","Médecin ","MSD France","11/06/2014","11/06/2014 - ","CONVENTION D HOSPITALITE "]
["Christophe HUDRY","Médecin ","UCB Pharma SA","13/06/2014","13/06/2014 - 30/09/2014 ","Conseil "]
["Christophe HUDRY","Médecin ","MSD France","17/06/2014","17/06/2014 - ","CONVENTION D HOSPITALITE "]
["Christophe HUDRY","Médecin ","LABORATOIRES GENEVRIER","24/07/2014","26/09/2014 - 26/09/2014 ","FORMATION "]
["Christophe HUDRY","Médecin ","NORDIC PHARMA SAS","29/08/2014","29/08/2014 - ","RECHERCHE "]
["Christophe HUDRY","Médecin ","UCB Pharma SA","11/09/2014","11/09/2014 - 30/11/2014 ","Conseil "]
["Christophe HUDRY","Médecin ","UCB Pharma SA","16/10/2014","16/10/2014 - 16/10/2014 ","Autre : [ hospitalité liée à une manifestation scientifique ] "]
["Christophe HUDRY","Médecin ","BRISTOL-MYERS SQUIBB","30/10/2014","02/12/2014 - ","Autre : [Orateur] "]
["Christophe HUDRY","Médecin ","CELGENE","30/10/2014","16/11/2014 - 26/11/2014 ","CONSEIL "]
["Christophe HUDRY","Médecin ","PFIZER SAS","07/12/2014","07/12/2014 - 09/12/2014 ","Congrès / Symposium "]
["Christophe HUDRY","Médecin ","PFIZER SAS","15/12/2014","05/03/2015 - 05/03/2015 ","Autre : Contrat intervenant "]
["Christophe HUDRY","Médecin ","ROCHE SAS","30/01/2015","29/01/2015 - 30/01/2015 ","Autre : [ Expert ] "]
["Christophe HUDRY","Médecin ","UCB Pharma SA","03/03/2015","08/04/2015 - 08/04/2015 ","Autre : [ Collaboration Scientifique ] "]
["Christophe HUDRY","Médecin ","PFIZER SAS","05/03/2015","05/03/2015 - 05/03/2015 ","Autre : Reunion professionnelle ou scientifique "]
["Christophe HUDRY","Médecin ","ROCHE SAS","10/03/2015","10/03/2015 - 10/03/2015 ","Autre : [ R\u0082union professionnelle ] "]
["Christophe HUDRY","Médecin ","ROCHE SAS","12/03/2015","10/03/2015 - 10/03/2015 ","Autre : [ Orateur / Intervenant ] "]
["Christophe HUDRY","Médecin ","AbbVie","30/03/2015","30/03/2015 - ","AUTRE : [CONTRAT DE COLLABORATION SCIENTIFIQUE] "]
["Christophe HUDRY","Médecin ","MSD France","27/04/2015","26/05/2015 - 25/05/2016 ","EXPERT"]
["Christophe HUDRY","Médecin ","AbbVie","08/06/2015","09/06/2015 - 09/06/2015 ","AUTRE: [CONVENTION HOSPITALITE] "]
["Christophe HUDRY","Médecin ","MSD France","24/07/2015","16/09/2015 - 16/09/2015 ","ORATEUR "]
["Christophe HUDRY","Médecin ","NORDIC PHARMA SAS","26/08/2015","26/08/2015 - ","RECHERCHE "]
["Christophe HUDRY","Médecin ","PFIZER SAS","08/09/2015","11/09/2015 - 12/09/2015 ","Congrès / Symposium "]
["Christophe HUDRY","Médecin ","PFIZER SAS","11/09/2015","11/09/2015 - 12/09/2015 ","Autre : Réunion professionnelle ou scientifique "]
["Christophe HUDRY","Médecin ","MSD France","16/09/2015","16/09/2015 - ","CONVENTION D’HOSPITALITÉ "]
["Christophe HUDRY","Médecin ","BRISTOL-MYERS SQUIBB","24/09/2015","24/09/2015 - ","Autre : [Consultant (HCP)] "]
["Christophe HUDRY","Médecin ","MSD France","05/11/2015","03/12/2015 - 03/12/2015 ","ORATEUR"]
["Sami KOLTA","Médecin ","MSD France","24/10/2012","24/10/2012 - ","CONVENTION D HOSPITALITE "]
["Sami KOLTA","Médecin ","A+A","15/10/2013","15/10/2013 - ","ETUDE DE MARCHE "]
["Sami KOLTA","Médecin ","MSD France","23/10/2013","23/10/2013 - ","CONVENTION D HOSPITALITE "]
["Sami KOLTA","Médecin ","LIVE ! BY GL EVENTS","11/12/2013","17/01/2014 - 17/01/2014 ","CONGRES "]
["Sami KOLTA","Médecin ","ROCHE SAS","05/02/2014","05/02/2014 - 05/02/2014 ","Autre : [ R‚union professionnelle ] "]
["Sami KOLTA","Médecin ","Laboratoires Expanscience","25/03/2014","25/03/2014 - 25/03/2014 ","Formation "]
["Sami KOLTA","Médecin ","MSD France","20/05/2014","20/05/2014 - ","CONVENTION D HOSPITALITE "]
["Sami KOLTA","Médecin ","A+A","17/10/2014","16/10/2014 - ","ETUDE DE MARCHE "]
["Sami KOLTA","Médecin ","PFIZER SAS","07/12/2014","07/12/2014 - 09/12/2014 ","Congrès / Symposium"]
["Matthieu LAVIELLE","Médecin ","AbbVie","19/01/2013","19/01/2013 - ","AUTRE : [CONTRAT DE COLLABORATION SCIENTIFIQUE] "]
["Matthieu LAVIELLE","Médecin ","AbbVie","02/12/2013","02/12/2013 - ","AUTRE: [CONVENTION HOSPITALITE] "]
["Matthieu LAVIELLE","Médecin ","AbbVie","02/10/2014","02/10/2014 - ","AUTRE : [CONVENTION D HOSPITALITE] "]
["Matthieu LAVIELLE","Médecin ","AbbVie","08/12/2014","08/12/2014 - ","AUTRE : [CONVENTION D HOSPITALITE]"]
["Agnès LEBRUN-FOISNET","Médecin ","PFIZER SAS","12/06/2013","12/06/2013 - 15/06/2013 ","HOSPITALITE RP/CONGRES / SYMPO "]
["Agnès LEBRUN-FOISNET","Médecin ","MSD France","10/07/2013","10/07/2013 - ","CONVENTION D HOSPITALITE "]
["Agnès LEBRUN-FOISNET","Médecin ","MSD France","23/10/2013","23/10/2013 - ","CONVENTION D HOSPITALITE "]
["Agnès LEBRUN-FOISNET","Médecin ","AMGEN SAS","19/11/2013","19/11/2013 - 19/11/2013 ","AUTRE [CONVENTION D HOSPITALITE] "]
["Agnès LEBRUN-FOISNET","Médecin ","PFIZER SAS","07/02/2014","07/02/2014 - 08/02/2014 ","HOSPITALITE RP/CONGRES / SYMPO "]
["Agnès LEBRUN-FOISNET","Médecin ","PFIZER SAS","07/02/2014","07/02/2014 - 08/02/2014 ","HOSPITALITE RP/CONGRES / SYMPO "]
["Agnès LEBRUN-FOISNET","Médecin ","PFIZER SAS","07/12/2014","07/12/2014 - 09/12/2014 ","Congrès / Symposium "]
["Agnès LEBRUN-FOISNET","Médecin ","PFIZER SAS","10/06/2015","10/06/2015 - 13/06/2015 ","Congres / Symposium "]
["Agnès LEBRUN-FOISNET","Médecin ","MSD France","16/09/2015","16/09/2015 - ","CONVENTION D’HOSPITALITÉ"]
["Anna MOLTO","Médecin ","A+A","26/03/2012","26/03/2012 - ","ETUDE DE MARCHE "]
["Anna MOLTO","Médecin ","MSD France","24/10/2012","24/10/2012 - ","CONVENTION D’HOSPITALITÉ "]
["Anna MOLTO","Médecin ","A+A","29/05/2013","28/05/2013 - ","ETUDE DE MARCHE "]
["Anna MOLTO","Médecin ","PFIZER SAS","12/06/2013","12/06/2013 - 15/06/2013 ","HOSPITALITE RP/CONGRES / SYMPO "]
["Anna MOLTO","Médecin ","ROCHE SAS","11/10/2013","25/10/2013 - 30/10/2013 ","congrès / symposium "]
["Anna MOLTO","Médecin ","AbbVie","18/10/2013","19/11/2013 - ","AUTRE: [CONTRAT DE COLLABORATION SCENTIFIQUE] "]
["Anna MOLTO","Médecin ","MSD France","23/10/2013","23/10/2013 - ","CONVENTION D’HOSPITALITÉ "]
["Anna MOLTO","Médecin ","PFIZER SAS","01/12/2013","01/12/2013 - 03/12/2013 ","HOSPITALITE RP/CONGRES / SYMPO "]
["Anna MOLTO","Médecin ","ROCHE SAS","05/02/2014","05/02/2014 - 05/02/2014 ","Autre : [ R‚union professionnelle ] "]
["Anna MOLTO","Médecin ","Laboratoires Expanscience","25/03/2014","25/03/2014 - 25/03/2014 ","Formation "]
["Anna MOLTO","Médecin ","AbbVie","29/04/2014","29/04/2014 - ","AUTRE: [CONTRAT DE COLLABORATION SCIENTIFIQUE] "]
["Anna MOLTO","Médecin ","PFIZER SAS","16/05/2014","16/05/2014 - 16/05/2014 ","ORATEUR RP/CONGRES/SYMPOSIUM "]
["Anna MOLTO","Médecin ","MSD France","20/05/2014","20/05/2014 - ","CONVENTION D’HOSPITALITÉ "]
["Anna MOLTO","Médecin ","AbbVie","16/06/2014","16/06/2014 - ","AUTRE: [CONTRAT DE COLLABORATION SCIENTIFIQUE] "]
["Anna MOLTO","Médecin ","AbbVie","04/09/2014","04/09/2014 - ","AUTRE: [CONTRAT DE COLLABORATION SCIENTIFIQUE] "]
["Anna MOLTO","Médecin ","AbbVie","23/10/2014","23/10/2014 - ","AUTRE : [CONVENTION D HOSPITALITE] "]
["Anna MOLTO","Médecin ","PFIZER SAS","15/11/2014","15/11/2014 - 19/11/2014 ","Congrès / Symposium "]
["Anna MOLTO","Médecin ","AbbVie","07/12/2014","07/12/2014 - ","AUTRE: [CONVENTION HOSPITALITE] "]
["Anna MOLTO","Médecin ","AbbVie","05/01/2015","05/01/2015 - ","AUTRE : [CONTRAT DE COLLABORATION SCIENTIFIQUE] "]
["Anna MOLTO","Médecin ","SANOFI-AVENTIS RECHERCHE & DEVELOPPEMENT","07/01/2015","27/01/2015 - 27/01/2015 ","Autre : [Communication scientifique]"]
["Anna MOLTO","Médecin ","UCB Pharma SA","12/05/2015","12/05/2015 - 12/05/2015 ","Autre : [ hospitalité liée à une manifestation scientifique ] "]
["Anna MOLTO","Médecin ","Arthritis Fondation Courtin","26/05/2015","26/05/2015 - ","CONVENTION RECHERCHE "]
["Anna MOLTO","Médecin ","UCB Pharma SA","19/06/2015","19/06/2015 - 19/06/2015 ","Autre : [ hospitalité liée à une manifestation scientifique ] "]
["Anna MOLTO","Médecin ","PFIZER SAS","30/06/2015","30/06/2015 - 30/06/2015 ","Autre : Reunion professionnelle ou scientifique "]
["Anna MOLTO","Médecin ","MSD France","27/11/2015","27/11/2015 - ","CONVENTION D’HOSPITALITÉ"]
["Séverine NEVEU","Médecin ","MSD France","24/10/2012","24/10/2012 - ","CONVENTION D’HOSPITALITÉ "]
["Séverine NEVEU","Médecin ","PFIZER SAS","12/06/2013","12/06/2013 - 15/06/2013 ","HOSPITALITE RP/CONGRES / SYMPO "]
["Séverine NEVEU","Médecin ","MSD France","10/07/2013","10/07/2013 - ","CONVENTION D’HOSPITALITÉ "]
["Séverine NEVEU","Médecin ","UCB Pharma SA","15/10/2013","15/10/2013 - 15/10/2013 ","Autre : [ hospitalité liée à une manifestation scientifique ] "]
["Séverine NEVEU","Médecin ","MSD France","23/10/2013","23/10/2013 - ","CONVENTION D’HOSPITALITÉ "]
["Séverine NEVEU","Médecin ","PFIZER SAS","01/12/2013","01/12/2013 - 03/12/2013 ","HOSPITALITE RP/CONGRES / SYMPO "]
["Séverine NEVEU","Médecin ","UCB Pharma SA","16/10/2014","16/10/2014 - 16/10/2014 ","Autre : [ hospitalité liée à une manifestation scientifique ] "]
["Séverine NEVEU","Médecin ","PFIZER SAS","07/12/2014","07/12/2014 - 09/12/2014 ","Congrès / Symposium "]
["Séverine NEVEU","Médecin ","UCB Pharma SA","19/06/2015","19/06/2015 - 19/06/2015 ","Autre : [ hospitalité liée à une manifestation scientifique ] "]
["Séverine NEVEU","Médecin ","MSD France","16/09/2015","16/09/2015 - ","CONVENTION D’HOSPITALITÉ "]
["Séverine NEVEU","Médecin ","MSD France","10/12/2015","10/12/2015 - ","CONVENTION D’HOSPITALITÉ"]
["Minh NGUYEN","Médecin ","MSD France","24/10/2012","24/10/2012 - ","CONVENTION D HOSPITALITE "]
["Minh NGUYEN","Médecin ","AbbVie","05/12/2012","05/12/2012 - ","AUTRE : [ETUDE CLINIQUE] "]
["Minh NGUYEN","Médecin ","AbbVie","05/12/2012","05/12/2012 - ","AUTRE : [CONTRAT DE COLLABORATION SCIENTIFIQUE] "]
["Minh NGUYEN","Médecin ","ICON CLINICAL RESEARCH SARL","29/07/2013","29/07/2013 - ","recherche biomédicale "]
["Minh NGUYEN","Médecin ","MSD France","23/10/2013","23/10/2013 - ","CONVENTION D HOSPITALITE "]
["Minh NGUYEN","Médecin ","ROCHE SAS","05/02/2014","05/02/2014 - 05/02/2014 ","Autre : [ R‚union professionnelle ] "]
["Minh NGUYEN","Médecin ","Lilly France SAS","05/02/2014","01/04/2013 - 31/05/2015 ","RECHERCHE "]
["Minh NGUYEN","Médecin ","Theorem Clinical Research SARL","20/05/2014","20/05/2014 - 01/02/2018 ","Recherche "]
["Minh NGUYEN","Médecin ","MSD France","16/09/2015","16/09/2015 - ","CONVENTION D’HOSPITALITÉ "]
["Minh NGUYEN","Médecin ","AbbVie","10/12/2015","10/12/2015 - ","AUTRE: [CONVENTION HOSPITALITE]"]
["Axelle SALCION-MATOUB","Médecin ","PFIZER SAS","07/12/2014","07/12/2014 - 09/12/2014 ","Congrès / Symposium "]
["Axelle SALCION-MATOUB","Médecin ","ROCHE SAS","10/06/2015","10/06/2015 - 13/06/2015 ","Congr\u008as / Symposium "]
["Axelle SALCION-MATOUB","Médecin ","MSD France","26/09/2013","26/09/2013 - ","CONVENTION D’HOSPITALITÉ "]
["Axelle SALCION-MATOUB","Médecin ","UCB Pharma SA","23/01/2015","23/01/2015 - 23/01/2015 ","Congrès / symposium "]
["Axelle SALCION-MATOUB","Médecin ","UCB Pharma SA","19/06/2015","19/06/2015 - 19/06/2015 ","Autre : [ hospitalité liée à une manifestation scientifique ] "]
["Axelle SALCION-MATOUB","Médecin ","MSD France","16/09/2015","16/09/2015 - ","CONVENTION D’HOSPITALITÉ "]
["Axelle SALCION-MATOUB","Médecin ","MSD France","26/09/2013","26/09/2013 - ","CONVENTION D’HOSPITALITÉ "]
["Axelle SALCION-MATOUB","Médecin ","AbbVie","02/12/2013","02/12/2013 - ","AUTRE: [CONVENTION HOSPITALITE]"]
["Maxime DOUGADOS","Médecin ","MSD France","24/10/2012","24/10/2012 - ","CONVENTION D HOSPITALITE "]
["Maxime DOUGADOS","Médecin ","PFIZER SAS","16/01/2013","16/01/2013 - ","CONSEIL "]
["Maxime DOUGADOS","Médecin ","PFIZER SAS","11/02/2013","11/02/2013 - ","ORATEUR RP/CONGRES/SYMPOSIUM "]
["Maxime DOUGADOS","Médecin ","ROCHE SAS","26/02/2013","26/02/2013 - 26/02/2013 ","Congrès / Symposium "]
["Maxime DOUGADOS","Médecin ","PFIZER SAS","05/03/2013","05/03/2013 - ","ORATEUR RP/CONGRES/SYMPOSIUM "]
["Maxime DOUGADOS","Médecin ","MSD France","16/07/2013","16/07/2013 - 16/07/2013 ","EXPERT "]
["Maxime DOUGADOS","Médecin ","MSD France","16/07/2013","16/07/2013 - ","EXPERT "]
["Maxime DOUGADOS","Médecin ","AbbVie","16/07/2013","01/09/2013 - ","AUTRE: [CONTRAT DE COLLABORATION SCENTIFIQUE] "]
["Maxime DOUGADOS","Médecin ","MSD France","16/07/2013","16/07/2013 - 16/07/2013 ","EXPERT "]
["Maxime DOUGADOS","Médecin ","Bristol-Myers Squibb EMEA","21/09/2013","10/10/2013 - ","Autre : [Consultant (HCP)] "]
["Maxime DOUGADOS","Médecin ","MSD France","23/10/2013","23/10/2013 - ","CONVENTION D HOSPITALITE "]
["Maxime DOUGADOS","Médecin ","PFIZER SAS","24/10/2013","24/10/2013 - 30/10/2013 ","Hospitalite RP/Congres / Sympo "]
["Maxime DOUGADOS","Médecin ","AbbVie","28/10/2013","08/11/2013 - ","AUTRE: [CONTRAT DE COLLABORATION SCENTIFIQUE] "]
["Maxime DOUGADOS","Médecin ","SANOFI-AVENTIS RECHERCHE & DEVELOPPEMENT","01/11/2013","01/11/2013 - 15/02/2014 ","Conseil et Communication Médico-Scientifique "]
["Maxime DOUGADOS","Médecin ","AbbVie","19/11/2013","01/12/2013 - ","AUTRE: [CONVENTION HOSPITALITE] "]
["Maxime DOUGADOS","Médecin ","PFIZER SAS","01/12/2013","01/12/2013 - 03/12/2013 ","HOSPITALITE RP/CONGRES / SYMPO "]
["Maxime DOUGADOS","Médecin ","PFIZER SAS","20/12/2013","20/12/2013 - 20/12/2013 ","CONSEIL "]
["Maxime DOUGADOS","Médecin ","PFIZER SAS","23/12/2013","23/12/2013 - 23/12/2013 ","CONSEIL "]
["Maxime DOUGADOS","Médecin ","PFIZER SAS","16/01/2014","16/01/2014 - 16/01/2014 ","CONSEIL "]
["Maxime DOUGADOS","Médecin ","ROCHE SAS","05/02/2014","05/02/2014 - 05/02/2014 ","Autre : [ R‚union professionnelle ] "]
["Maxime DOUGADOS","Médecin ","BRISTOL-MYERS SQUIBB","24/03/2014","01/04/2014 - ","Autre : [Orateur] "]
["Maxime DOUGADOS","Médecin ","Laboratoires Expanscience","25/03/2014","25/03/2014 - 25/03/2014 ","Formation "]
["Maxime DOUGADOS","Médecin ","BRISTOL-MYERS SQUIBB","04/04/2014","23/05/2014 - ","Autre : [Orateur] "]
["Maxime DOUGADOS","Médecin ","MSD France","07/05/2014","07/05/2014 - ","CONVENTION D HOSPITALITE "]
["Maxime DOUGADOS","Médecin ","AbbVie","13/05/2014","13/05/2014 - ","AUTRE: [CONTRAT DE COLLABORATION SCIENTIFIQUE] "]
["Maxime DOUGADOS","Médecin ","PFIZER SAS","16/05/2014","16/05/2014 - 16/05/2014 ","ORATEUR RP/CONGRES/SYMPOSIUM "]
["Maxime DOUGADOS","Médecin ","Lilly France SAS","20/05/2014","21/05/2014 - 21/05/2014 ","CONSEIL "]
["Maxime DOUGADOS","Médecin ","MSD France","02/06/2014","07/07/2014 - 07/07/2015 ","EXPERT "]
["Maxime DOUGADOS","Médecin ","MSD France","02/06/2014","01/07/2014 - 30/06/2017 ","EXPERT "]
["Maxime DOUGADOS","Médecin ","SANOFI-AVENTIS GROUPE","24/06/2014","24/06/2014 - 24/06/2014 ","Autre : [Communication scientifique] "]
["Maxime DOUGADOS","Médecin ","AbbVie","30/06/2014","30/06/2014 - ","AUTRE : [CONVENTION D HOSPITALITE] "]
["Maxime DOUGADOS","Médecin ","UCB Pharma SA","31/07/2014","02/10/2014 - 02/10/2014 ","Conseil "]
["Maxime DOUGADOS","Médecin ","AbbVie","08/08/2014","08/08/2014 - ","AUTRE: [CONTRAT DE COLLABORATION SCIENTIFIQUE] "]
["Maxime DOUGADOS","Médecin ","UCB Pharma SA","02/10/2014","02/10/2014 - 02/10/2014 ","Congrès / symposium "]
["Maxime DOUGADOS","Médecin ","Bristol-Myers Squibb EMEA","03/10/2014","03/10/2014 - ","Autre : [Consultant (HCP)] "]
["Maxime DOUGADOS","Médecin ","PFIZER SAS","21/10/2014","12/12/2014 - 30/06/2015 ","Autre : Contrat consultant "]
["Maxime DOUGADOS","Médecin ","PFIZER SAS","27/10/2014","29/11/2014 - 08/12/2014 ","Autre : Contrat intervenant "]
["Maxime DOUGADOS","Médecin ","Regeneron Pharmaceuticals, Inc.","06/11/2014","06/11/2014 - ","Consultance (rhumatologie) "]
["Maxime DOUGADOS","Médecin ","PFIZER SAS","15/11/2014","15/11/2014 - 19/11/2014 ","Congrès / Symposium "]
["Maxime DOUGADOS","Médecin ","AMGEN SAS","25/11/2014","10/01/2015 - 31/12/2015 ","AUTRE [CONTRAT DE CONSULTANT] "]
["Maxime DOUGADOS","Médecin ","PFIZER SAS","07/12/2014","07/12/2014 - 09/12/2014 ","Congrès / Symposium "]
["Maxime DOUGADOS","Médecin ","MSD France","30/12/2014","27/02/2015 - 27/02/2015 ","EXPERT "]
["Maxime DOUGADOS","Médecin ","MSD France","20/01/2015","06/03/2015 - 07/03/2015 ","EXPERT "]
["Maxime DOUGADOS","Médecin ","PFIZER SAS","23/02/2015","03/04/2015 - 03/04/2015 ","Congres / Symposium "]
["Maxime DOUGADOS","Médecin ","NOVARTIS PHARMA SAS","25/02/2015","25/02/2015 - 31/12/2015 ","Autre : [Contrat de conseil & prestation] "]
["Maxime DOUGADOS","Médecin ","MSD France","06/03/2015","06/03/2015 - ","CONVENTION D’HOSPITALITÉ "]
["Maxime DOUGADOS","Médecin ","NOVARTIS PHARMA SAS","02/04/2015","02/04/2015 - 02/04/2015 ","Autre : [Hospitalité Evenement] "]
["Maxime DOUGADOS","Médecin ","PFIZER SAS","03/04/2015","03/04/2015 - 03/04/2015 ","Autre : Reunion professionnelle ou scientifique "]
["Maxime DOUGADOS","Médecin ","BRISTOL-MYERS SQUIBB","12/04/2015","29/05/2015 - ","Autre : [Orateur] "]
["Maxime DOUGADOS","Médecin ","MSD France","14/04/2015","11/06/2015 - 12/06/2015 ","EXPERT "]
["Maxime DOUGADOS","Médecin ","AbbVie","29/04/2015","29/04/2015 - ","AUTRE : [CONTRAT DE COLLABORATION SCIENTIFIQUE] "]
["Maxime DOUGADOS","Médecin ","AMGEN SAS","20/05/2015","20/05/2015 - 14/06/2015 ","AUTRE [CONTRAT DE CONSULTANT] "]
["Maxime DOUGADOS","Médecin ","PFIZER SAS","20/05/2015","30/06/2015 - 30/06/2015 ","Autre : [Contrat autre] "]
["Maxime DOUGADOS","Médecin ","AbbVie","27/05/2015","27/05/2015 - ","AUTRE : [CONTRAT DE COLLABORATION SCIENTIFIQUE] "]
["Maxime DOUGADOS","Médecin ","BRISTOL-MYERS SQUIBB","28/05/2015","29/05/2015 - ","Autre : [Orateur] "]
["Maxime DOUGADOS","Médecin ","Lilly France SAS","10/06/2015","10/06/2015 - 10/06/2015 ","AUTRE : [CONTRAT D'ORATEUR] "]
["Maxime DOUGADOS","Médecin ","AbbVie","15/06/2015","15/06/2015 - 15/06/2015 ","AUTRE: [CONTRAT DE COLLABORATION SCIENTIFIQUE] "]
["Maxime DOUGADOS","Médecin ","PFIZER SAS","25/06/2015","25/06/2015 - 25/06/2015 ","Autre : Reunion professionnelle ou scientifique "]
["Maxime DOUGADOS","Médecin ","PFIZER SAS","30/06/2015","30/06/2015 - 30/06/2015 ","Autre : Reunion professionnelle ou scientifique "]
["Maxime DOUGADOS","Médecin ","MSD France","24/07/2015","16/09/2015 - 16/09/2015 ","ORATEUR"]
["Maxime DOUGADOS","Médecin ","JANSSEN-CILAG","12/08/2015","01/09/2015 - 10/09/2015 ","CONGRES / SYMPOSIUM "]
["Maxime DOUGADOS","Médecin ","AbbVie","14/08/2015","14/08/2015 - 14/08/2015 ","AUTRE: [CONTRAT DE COLLABORATION SCIENTIFIQUE] "]
["Maxime DOUGADOS","Médecin ","PFIZER SAS","12/09/2015","01/10/2015 - 30/10/2015 ","Conseil "]
["Maxime DOUGADOS","Médecin ","MSD France","16/09/2015","16/09/2015 - ","CONVENTION D’HOSPITALITÉ "]
["Maxime DOUGADOS","Médecin ","AbbVie","21/09/2015","21/09/2015 - 21/09/2015 ","AUTRE: [CONTRAT DE COLLABORATION SCIENTIFIQUE] "]
["Maxime DOUGADOS","Médecin ","BRISTOL-MYERS SQUIBB","14/10/2015","06/12/2015 - ","Autre : [Consultant (HCP)] "]
["Maxime DOUGADOS","Médecin ","BRISTOL-MYERS SQUIBB","22/10/2015","06/11/2015 - ","Autre : [Orateur] "]
["Maxime DOUGADOS","Médecin ","PFIZER SAS","07/11/2015","07/11/2015 - 11/11/2015 ","Congrès / Symposium "]
["Maxime DOUGADOS","Médecin ","MSD France","17/11/2015","15/12/2015 - 15/12/2015 ","EXPERT "]
["Maxime DOUGADOS","Médecin ","MSD France","13/12/2015","13/12/2015 - ","CONVENTION D’HOSPITALITÉ"]
["Corinne MICELI-RICHARD","Médecin ","ROCHE SAS","10/05/2012","10/05/2012 - ","ORATEUR INTERVENANT "]
["Corinne MICELI-RICHARD","Médecin ","MSD France","21/12/2012","22/01/2013 - 22/01/2013 ","CONVENTION D HOSPITALITE "]
["Corinne MICELI-RICHARD","Médecin ","AbbVie","20/02/2013","20/02/2013 - ","AUTRE: [CONTRAT DE COLLABORATION SCIENTIFIQUE] "]
["Corinne MICELI-RICHARD","Médecin ","PFIZER SAS","04/06/2013","04/06/2013 - ","ORATEUR RP/CONGRES/SYMPOSIUM "]
["Corinne MICELI-RICHARD","Médecin ","PFIZER SAS","05/06/2013","05/06/2013 - 07/06/2013 ","Orateur RP/Congres/Sympo "]
["Corinne MICELI-RICHARD","Médecin ","PFIZER SAS","12/06/2013","12/06/2013 - 15/06/2013 ","HOSPITALITE RP/CONGRES / SYMPO "]
["Corinne MICELI-RICHARD","Médecin ","PFIZER SAS","20/06/2013","20/06/2013 - ","ORATEUR RP/CONGRES/SYMPOSIUM "]
["Corinne MICELI-RICHARD","Médecin ","PFIZER SAS","28/06/2013","28/06/2013 - 29/06/2013 ","Orateur RP/Congres/Sympo "]
["Corinne MICELI-RICHARD","Médecin ","PFIZER SAS","04/07/2013","04/07/2013 - ","CONSEIL "]
["Corinne MICELI-RICHARD","Médecin ","PFIZER SAS","17/09/2013","17/09/2013 - ","CONSEIL "]
["Corinne MICELI-RICHARD","Médecin ","PFIZER SAS","20/09/2013","20/09/2013 - 21/09/2013 ","Orateur RP/Congres/Sympo "]
["Corinne MICELI-RICHARD","Médecin ","JANSSEN-CILAG","05/10/2013","15/07/2013 - 05/09/2013 ","CONSEIL "]
["Corinne MICELI-RICHARD","Médecin ","NOVARTIS PHARMA SAS","18/10/2013","18/10/2013 - 18/10/2013 ","Autre : [Hospitalité] "]
["Corinne MICELI-RICHARD","Médecin ","JANSSEN-CILAG","06/12/2013","06/12/2013 - 10/12/2013 ","CONGRES / SYMPOSIUM "]
["Corinne MICELI-RICHARD","Médecin ","ROCHE SAS","31/01/2014","31/01/2014 - 11/04/2014 ","Autre : [ Manifestation professionnelle ] "]
["Corinne MICELI-RICHARD","Médecin ","PFIZER SAS","07/02/2014","07/02/2014 - 08/02/2014 ","ORATEUR RP/CONGRES/SYMPO "]
["Corinne MICELI-RICHARD","Médecin ","PFIZER SAS","07/02/2014","07/02/2014 - 08/02/2014 ","ORATEUR RP/CONGRES/SYMPO "]
["Corinne MICELI-RICHARD","Médecin ","CONGRES COLLOQUES CONVENTIONS","15/03/2014","15/03/2014 - 15/03/2014 ","CONGRES SYMPOSIUM "]
["Corinne MICELI-RICHARD","Médecin ","AbbVie","03/04/2014","03/04/2014 - ","AUTRE: [CONTRAT DE COLLABORATION SCIENTIFIQUE] "]
["Corinne MICELI-RICHARD","Médecin ","AbbVie","04/04/2014","04/04/2014 - ","AUTRE : [CONVENTION D HOSPITALITE]"]
["Corinne MICELI-RICHARD","Médecin ","AbbVie","04/04/2014","04/04/2014 - ","AUTRE : [CONVENTION D HOSPITALITE] "]
["Corinne MICELI-RICHARD","Médecin ","AbbVie","05/04/2014","05/04/2014 - ","AUTRE: [CONVENTION HOSPITALITE] "]
["Corinne MICELI-RICHARD","Médecin ","ROCHE SAS","09/04/2014","09/04/2014 - 09/04/2014 ","Autre : [ R‚union professionnelle ] "]
["Corinne MICELI-RICHARD","Médecin ","PFIZER SAS","11/04/2014","11/04/2014 - 12/04/2014 ","ORATEUR RP/CONGRES/SYMPO "]
["Corinne MICELI-RICHARD","Médecin ","PFIZER SAS","11/04/2014","11/04/2014 - 12/04/2014 ","ORATEUR RP/CONGRES/SYMPO "]
["Corinne MICELI-RICHARD","Médecin ","JANSSEN-CILAG","23/04/2014","23/04/2014 - 28/04/2014 ","CONSEIL "]
["Corinne MICELI-RICHARD","Médecin ","PFIZER SAS","16/05/2014","16/05/2014 - 16/05/2014 ","ORATEUR RP/CONGRES/SYMPOSIUM "]
["Corinne MICELI-RICHARD","Médecin ","MSD France","12/06/2014","12/06/2014 - ","CONVENTION D’HOSPITALITÉ "]
["Corinne MICELI-RICHARD","Médecin ","SWEDISH ORPHAN BIOVITRUM","17/06/2014","17/06/2014 - 19/06/2014 ","Autre : [CONVENTION D'HOSPITALITE] "]
["Corinne MICELI-RICHARD","Médecin ","AbbVie","02/10/2014","02/10/2014 - ","AUTRE: [CONTRAT DE COLLABORATION SCIENTIFIQUE] "]
["Corinne MICELI-RICHARD","Médecin ","PFIZER SAS","21/10/2014","12/12/2014 - 30/06/2015 ","Autre : Contrat consultant "]
["Corinne MICELI-RICHARD","Médecin ","PFIZER SAS","27/10/2014","29/11/2014 - 08/12/2014 ","Autre : Contrat consultant "]
["Corinne MICELI-RICHARD","Médecin ","ROCHE SAS","02/12/2014","02/12/2014 - 02/12/2014 ","Autre : [ Réunion professionnelle ] "]
["Corinne MICELI-RICHARD","Médecin ","PFIZER SAS","12/12/2014","06/02/2015 - 07/02/2015 ","Autre : Contrat intervenant "]
["Corinne MICELI-RICHARD","Médecin ","UCB Pharma SA","07/01/2015","01/01/2015 - 31/12/2015 ","Autre : [ Collaboration Scientifique ] "]
["Corinne MICELI-RICHARD","Médecin ","BRISTOL-MYERS SQUIBB","20/01/2015","31/03/2015 - ","Autre : [Orateur] "]
["Corinne MICELI-RICHARD","Médecin ","BRISTOL-MYERS SQUIBB","20/01/2015","20/01/2015 - ","Autre : [Orateur] "]
["Corinne MICELI-RICHARD","Médecin ","MSD France","30/01/2015","30/01/2015 - ","CONVENTION D’HOSPITALITÉ "]
["Corinne MICELI-RICHARD","Médecin ","PFIZER SAS","06/02/2015","06/02/2015 - 07/02/2015 ","Autre : Reunion professionnelle ou scientifique "]
["Corinne MICELI-RICHARD","Médecin ","PFIZER SAS","23/02/2015","03/04/2015 - 03/04/2015 ","Congres / Symposium"]
["Corinne MICELI-RICHARD","Médecin ","MSD France","25/02/2015","21/03/2015 - 21/03/2015 ","EXPERT "]
["Corinne MICELI-RICHARD","Médecin ","JANSSEN-CILAG","03/03/2015","26/02/2015 - 26/02/2015 ","CONSEIL "]
["Corinne MICELI-RICHARD","Médecin ","ROCHE SAS","10/03/2015","10/03/2015 - 10/03/2015 ","Autre : [ R\u0082union professionnelle ] "]
["Corinne MICELI-RICHARD","Médecin ","ROCHE SAS","14/03/2015","10/03/2015 - 10/03/2015 ","Autre : [ Orateur / Intervenant ] "]
["Corinne MICELI-RICHARD","Médecin ","MSD France","21/03/2015","21/03/2015 - ","CONVENTION D’HOSPITALITÉ "]
["Corinne MICELI-RICHARD","Médecin ","NOVARTIS PHARMA SAS","28/03/2015","28/03/2015 - 31/12/2015 ","AUTRE : [CONTRAT DE CONSEIL & PRESTATION] "]
["Corinne MICELI-RICHARD","Médecin ","NOVARTIS PHARMA SAS","02/04/2015","02/04/2015 - 02/04/2015 ","Autre : [Hospitalité Evenement] "]
["Corinne MICELI-RICHARD","Médecin ","PFIZER SAS","03/04/2015","03/04/2015 - 03/04/2015 ","Autre : Reunion professionnelle ou scientifique "]
["Corinne MICELI-RICHARD","Médecin ","PFIZER SAS","10/06/2015","10/06/2015 - 13/06/2015 ","Congres / Symposium "]
["Corinne MICELI-RICHARD","Médecin ","PFIZER SAS","19/06/2015","26/06/2015 - 27/06/2015 ","Congres / Symposium "]
["Corinne MICELI-RICHARD","Médecin ","PFIZER SAS","26/06/2015","26/06/2015 - 27/06/2015 ","Autre : Reunion professionnelle ou scientifique "]
["Corinne MICELI-RICHARD","Médecin ","PFIZER SAS","30/06/2015","30/06/2015 - 30/06/2015 ","Autre : Reunion professionnelle ou scientifique "]
["Corinne MICELI-RICHARD","Médecin ","AbbVie","07/07/2015","20/05/2015 - 20/05/2015 ","AUTRE: [CONVENTION HOSPITALITE] "]
["Corinne MICELI-RICHARD","Médecin ","NOVARTIS PHARMA SAS","16/07/2015","16/07/2015 - 30/09/2015 ","AUTRE : [CONTRAT DE CONSEIL & PRESTATION] "]
["Corinne MICELI-RICHARD","Médecin ","PFIZER SAS","11/09/2015","11/09/2015 - 12/09/2015 ","Autre : Réunion professionnelle ou scientifique "]
["Corinne MICELI-RICHARD","Médecin ","PFIZER SAS","11/09/2015","11/09/2015 - 12/09/2015 ","Congrès / Symposium "]
["Corinne MICELI-RICHARD","Médecin ","PFIZER SAS","15/09/2015","01/10/2015 - 10/10/2015 ","Autre : [Contrat autre] "]
["Corinne MICELI-RICHARD","Médecin ","AbbVie","17/09/2015","17/09/2015 - ","AUTRE: [CONVENTION HOSPITALITE] "]
["Corinne MICELI-RICHARD","Médecin ","AbbVie","30/09/2015","30/09/2015 - 30/09/2015 ","AUTRE: [CONTRAT DE COLLABORATION SCIENTIFIQUE] "]
["Corinne MICELI-RICHARD","Médecin ","NOVARTIS PHARMA SAS","30/10/2015","30/10/2015 - 30/10/2015 ","AUTRE : [HOSPITALITÉ EVENEMENT] "]
["Corinne MICELI-RICHARD","Médecin ","NOVARTIS PHARMA SAS","30/10/2015","30/10/2015 - 30/10/2015 ","AUTRE : [CONTRAT DE CONSEIL & PRESTATION] "]
["Corinne MICELI-RICHARD","Médecin ","MSD France","27/11/2015","27/11/2015 - ","CONVENTION D’HOSPITALITÉ "]
["Corinne MICELI-RICHARD","Médecin ","PFIZER SAS","02/12/2015","30/11/2015 - 31/12/2015 ","Autre : [Contrat autre] "]
["Corinne MICELI-RICHARD","Médecin ","JANSSEN-CILAG","14/12/2015","15/12/2015 - 15/12/2015 ","CONGRES / SYMPOSIUM"]
["Christian ROUX","Médecin ","MSD France","24/10/2012","24/10/2012 - ","CONVENTION D HOSPITALITE "]
["Christian ROUX","Médecin ","PFIZER SAS","11/02/2013","11/02/2013 - ","ORATEUR RP/CONGRES/SYMPOSIUM "]
["Christian ROUX","Médecin ","MSD France","12/06/2013","12/06/2013 - 15/06/2013 ","CONVENTION D HOSPITALITE "]
["Christian ROUX","Médecin ","MSD France","06/08/2013","06/08/2013 - ","EXPERT "]
["Christian ROUX","Médecin ","MSD France","06/09/2013","06/09/2013 - 07/09/2013 ","CONVENTION D HOSPITALITE "]
["Christian ROUX","Médecin ","AMGEN SAS","16/09/2013","25/10/2013 - 25/10/2013 ","AUTRE [CONVENTION D ORATEUR] "]
["Christian ROUX","Médecin ","MSD France","24/09/2013","24/09/2013 - ","CONVENTION D HOSPITALITE "]
["Christian ROUX","Médecin ","MSD France","24/09/2013","24/09/2013 - ","CONVENTION D HOSPITALITE "]
["Christian ROUX","Médecin ","AMGEN SAS","26/09/2013","06/11/2013 - 09/11/2013 ","AUTRE [CONTRAT DE CONSULTANT] "]
["Christian ROUX","Médecin ","NOVARTIS PHARMA SAS","04/10/2013","04/10/2013 - 07/10/2013 ","Autre : [Hospitalité] "]
["Christian ROUX","Médecin ","AMGEN SAS","10/10/2013","27/11/2013 - 30/11/2013 ","AUTRE [CONVENTION D EXPERT] "]
["Christian ROUX","Médecin ","Lilly France SAS","11/10/2013","14/10/2013 - 14/10/2013 ","CONVENTION DE CONSULTANT "]
["Christian ROUX","Médecin ","AMGEN SAS","14/10/2013","22/11/2013 - 22/11/2013 ","AUTRE [CONVENTION D EXPERT] "]
["Christian ROUX","Médecin ","MSD France","23/10/2013","23/10/2013 - ","CONVENTION D HOSPITALITE "]
["Christian ROUX","Médecin ","AMGEN SAS","24/10/2013","01/12/2013 - 04/12/2013 ","AUTRE [CONVENTION D ORATEUR] "]
["Christian ROUX","Médecin ","Lilly France SAS","13/11/2013","13/11/2013 - 19/10/2013 ","INVITATION "]
["Christian ROUX","Médecin ","MSD France","19/11/2013","19/11/2013 - ","EXPERT "]
["Christian ROUX","Médecin ","MSD France","19/11/2013","09/12/2013 - 09/12/2013 ","EXPERT "]
["Christian ROUX","Médecin ","AMGEN SAS","06/03/2014","09/04/2014 - 12/04/2014 ","AUTRE [CONVENTION D EXPERT] "]
["Christian ROUX","Médecin ","AMGEN SAS","06/03/2014","09/04/2014 - 12/04/2014 ","AUTRE [CONVENTION D EXPERT] "]
["Christian ROUX","Médecin ","MSD France","07/03/2014","10/04/2014 - 10/04/2014 ","EXPERT "]
["Christian ROUX","Médecin ","Lilly France SAS","29/03/2014","28/03/2014 - 29/03/2014 ","AUTRE : [CONTRAT D'ORATEUR] "]
["Christian ROUX","Médecin ","AMGEN SAS","14/04/2014","19/05/2014 - 19/05/2014 ","AUTRE [CONVENTION D ORATEUR] "]
["Christian ROUX","Médecin ","MSD France","23/04/2014","11/06/2014 - 11/06/2014 ","EXPERT "]
["Christian ROUX","Médecin ","MSD France","30/04/2014","16/06/2014 - 11/07/2014 ","EXPERT "]
["Christian ROUX","Médecin ","PFIZER SAS","16/05/2014","16/05/2014 - 16/05/2014 ","ORATEUR RP/CONGRES/SYMPOSIUM "]
["Christian ROUX","Médecin ","MSD France","16/05/2014","27/06/2014 - 28/06/2014 ","EXPERT "]
["Christian ROUX","Médecin ","MSD France","20/05/2014","20/05/2014 - ","CONVENTION D HOSPITALITE "]
["Christian ROUX","Médecin ","Lilly France SAS","25/05/2014","24/05/2014 - 25/05/2014 ","AUTRE : [PARTICIPATION RÉUNION SCIENTIFIQUE] "]
["Christian ROUX","Médecin ","CHUGAI PHARMA FRANCE","26/05/2014","26/05/2014 - ","CONVENTION DE COLLABORATION "]
["Christian ROUX","Médecin ","AMGEN SAS","10/06/2014","20/07/2014 - 31/12/2014 ","AUTRE [CONTRAT DE CONSULTANT] "]
["Christian ROUX","Médecin ","MSD France","27/06/2014","27/06/2014 - ","CONVENTION D HOSPITALITE "]
["Christian ROUX","Médecin ","MSD France","16/07/2014","03/10/2014 - 03/10/2014 ","EXPERT "]
["Christian ROUX","Médecin ","M3 Global Research Ltd","13/08/2014","13/08/2014 - ","Marketing "]
["Christian ROUX","Médecin ","UCB Pharma SA","19/09/2014","19/09/2014 - 20/09/2014 ","Congrès / symposium "]
["Christian ROUX","Médecin ","AMGEN SAS","24/09/2014","30/10/2014 - 30/10/2014 ","AUTRE [CONVENTION D EXPERT] "]
["Christian ROUX","Médecin ","AMGEN SAS","24/09/2014","30/10/2014 - 30/10/2014 ","AUTRE [CONVENTION D HOSPITALITE] "]
["Christian ROUX","Médecin ","AMGEN SAS","24/09/2014","30/10/2014 - 30/10/2014 ","AUTRE [CONVENTION D EXPERT] "]
["Christian ROUX","Médecin ","Lilly France SAS","25/09/2014","25/09/2014 - 25/09/2014 ","AUTRE : [CONTRAT D'ORATEUR] "]
["Christian ROUX","Médecin ","PFIZER SAS","30/09/2014","22/07/2014 - ","ORATEUR RP/CONGRES/SYMPOSIUM "]
["Christian ROUX","Médecin ","PFIZER SAS","30/09/2014","11/11/2014 - ","ORATEUR RP/CONGRES/SYMPOSIUM "]
["Christian ROUX","Médecin ","Lilly France SAS","02/10/2014","02/10/2014 - 02/10/2014 ","AUTRE : [CONTRAT D'ORATEUR] "]
["Christian ROUX","Médecin ","AMGEN SAS","06/10/2014","07/12/2014 - 10/12/2014 ","AUTRE [CONTRAT D ORATEUR] "]
["Christian ROUX","Médecin ","CHUGAI PHARMA FRANCE","09/10/2014","09/10/2014 - ","CONVENTION DE COLLABORATION "]
["Christian ROUX","Médecin ","AMGEN SAS","01/11/2014","01/11/2014 - 01/11/2014 ","AUTRE [CONVENTION D EXPERT] "]
["Christian ROUX","Médecin ","AMGEN SAS","10/11/2014","21/11/2014 - 21/11/2014 ","AUTRE [CONTRAT D ORATEUR] "]
["Christian ROUX","Médecin ","Lilly France SAS","08/12/2014","08/12/2014 - 08/12/2014 ","AUTRE : [CONTRAT D'ORATEUR] "]
["Christian ROUX","Médecin ","AMGEN SAS","09/12/2014","14/01/2015 - 17/01/2015 ","AUTRE [CONTRAT D ORATEUR] "]
["Christian ROUX","Médecin ","MSD France","23/12/2014","28/01/2015 - 28/02/2015 ","EXPERT "]
["Christian ROUX","Médecin ","MSD France","09/02/2015","23/03/2015 - 30/11/2015 ","EXPERT "]
["Christian ROUX","Médecin ","AMGEN SAS","24/02/2015","29/03/2015 - 01/04/2015 ","AUTRE [CONVENTION D EXPERT] "]
["Christian ROUX","Médecin ","Alexion Pharma France","30/03/2015","07/04/2015 - 31/12/2015 ","Conseil "]
["Christian ROUX","Médecin ","MSD France","04/06/2015","15/07/2015 - 15/07/2015 ","EXPERT "]
["Christian ROUX","Médecin ","PFIZER SAS","30/06/2015","30/06/2015 - 30/06/2015 ","Autre : Reunion professionnelle ou scientifique "]
["Christian ROUX","Médecin ","AMGEN SAS","17/07/2015","15/09/2015 - 18/09/2015 ","AUTRE [CONVENTION D EXPERT] "]
["Christian ROUX","Médecin ","MSD France","05/08/2015","30/09/2015 - 02/10/2015 ","EXPERT "]
["Christian ROUX","Médecin ","MSD France","07/08/2015","19/11/2015 - 20/11/2015 ","EXPERT "]
["Christian ROUX","Médecin ","MSD France","14/08/2015","16/09/2015 - 16/09/2015 ","ORATEUR "]
["Christian ROUX","Médecin ","GILEAD SCIENCES","03/09/2015","03/09/2015 - ","Comite Echange scientifique "]
["Christian ROUX","Médecin ","AMGEN SAS","14/09/2015","14/09/2015 - 09/10/2015 ","AUTRE [CONVENTION D EXPERT]"]
["Christian ROUX","Médecin ","MSD France","16/09/2015","16/09/2015 - ","CONVENTION D’HOSPITALITÉ "]
["Christian ROUX","Médecin ","AMGEN SAS","12/10/2015","30/11/2015 - 04/12/2015 ","AUTRE [CONVENTION D EXPERT] "]
["Christian ROUX","Médecin ","AMGEN SAS","14/10/2015","14/10/2015 - 14/10/2015 ","Autre [CONVENTION D ORATEUR] "]
["Christian ROUX","Médecin ","AMGEN SAS","14/10/2015","11/10/2015 - 15/10/2015 ","AUTRE [CONTRAT D ORATEUR] "]
["Christian ROUX","Médecin ","AMGEN SAS","09/11/2015","12/12/2015 - 16/12/2015 ","AUTRE [CONTRAT D ORATEUR] "]
["Christian ROUX","Médecin ","AMGEN SAS","19/11/2015","12/01/2016 - 16/01/2016 ","AUTRE [CONTRAT D ORATEUR] "]
["Christian ROUX","Médecin ","MSD France","27/11/2015","27/11/2015 - ","CONVENTION D’HOSPITALITÉ "]
["Christian ROUX","Médecin ","AMGEN SAS","08/12/2015","12/01/2016 - 16/01/2016 ","AUTRE [CONTRAT D ORATEUR]"]

{"sheet":"AVANTAGES","index":2,"n_rows":110,"n_cols":2,"rows_kept":110,"cut":false,"hidden":false,"merged":[]}
["TYPE_AVTG dans Transparence.sante.gouv.fr","TYPE_AVTG (libellé de regroupement)"]
["[Autre] inscription congrès ","Inscription"]
["[HOSPITALITE] ","Hospitalité"]
["[REPAS] ","Repas"]
["AUTRE ","Autre"]
["Autre : [ Forfait journée d\u0092étude ] ","Autre"]
["Autre : [ Forfait journée d\u0092étude ou forfait congrès ] ","Congrès"]
["Autre : [ Inscription ] ","Inscription"]
["Autre : [ECHANTILLON] ","Autre"]
["Autre : [HONORAIRE] ","Autre"]
["Autre : [Hospitalité Evenement Scientifique] ","Hospitalité"]
["AUTRE : [HOSPITALITE] ","Hospitalité"]
["AUTRE : [INSCRIPTION CONGRÈS SCIENTIFIQUE] ","Inscription"]
["Autre : [Inscription Evenement Scientifique] ","Inscription"]
["Autre : [Inscription] ","Inscription"]
["Autre : [note de frais] ","Autre"]
["AUTRE : [PARTICIPATION EVENEMENT SCIENTIFIQUE] ","Congrès"]
["AUTRE : [PAUSE] ","Autre"]
["Autre : [Remboursement de frais] ","Autre"]
["AUTRE : [REMBOURSEMENT FRAIS LOGISTIQUE] ","Autre"]
["Autre : [Restauration] ","Repas"]
["AUTRE : CONGRES ","Autre"]
["AUTRE : FORMATION MEDICALE CONTINUE ","Autre"]
["Autre : Frais d'inscription Congrès ","Inscription"]
["AUTRE : HONORAIRE CONFERENCE TELEPHONIQUE ","Autre"]
["AUTRE : HONORAIRES CONFERENCE TELEPHONIQUE ","Autre"]
["AUTRE : HOSPITALITE CONGRES ","Congrès"]
["Autre : Indemnite ","Autre"]
["Autre : Inscription ","Inscription"]
["AUTRE : RELATIONS NORMALES DE TRAVAIL ","Autre"]
["AUTRE : REMBOURSEMENT DE FRAIS ","Autre"]
["AUTRE : REPAS PROFESSIONNEL ","Repas"]
["AUTRE : REUNION ","Autre"]
["AUTRE : RNT ","Autre"]
["AUTRE [ENQUETE] ","Autre"]
["AUTRE [FRAIS D INSCRIPTION] ","Inscription"]
["AUTRE [INSCRIPTION] ","Inscription"]
["AUTRE [PAUSE] ","Autre"]
["AUTRE [RESTAURATION STAFF] ","Repas"]
["Autre: [Enquête] ","Autre"]
["AUTRE: [INSCRIPTION] ","Inscription"]
["AUTRE: DEJEUNER ","Repas"]
["AUTRE: DEJEUNER/RESTO ITALIEN BON ","Repas"]
["AUTRE: INSCRIPTION ","Inscription"]
["AUTRE: SOIREE/SOIREE ","Autre"]
["AUTRES ","Autre"]
["AUTRES: INSCRIPTION ","Inscription"]
["CADEAUX ","Autre"]
["COLLATION ","Repas"]
["CONGRES/INSCRIPTION ","Inscription"]
["conseil ","Conseil"]
["Dédommagement ","Autre"]
["DEJEUNER ","Repas"]
["déjeuner ","Repas"]
["DEJEUNER/DEJEUNER ","Repas"]
["DEJEUNER/REPAS ","Repas"]
["Déplacement ","Transport"]
["Dons de fonctionnement ","Autre"]
["Droits d'auteur pris en charge par UCB ","Autre"]
["enquête ","Autre"]
["EPU ","Repas"]
["EPU/DINER ","Repas"]
["FRAIS DE BOUCHE ","Repas"]
["Frais de dÃƒÂ©placement ","Transport"]
["FRAIS DE DEPLACEMENT ","Transport"]
["Frais remboursés (transport) ","Transport"]
["H‚bergement ","Hébergement"]
["HÃ©bergement ","Hébergement"]
["HÃ‰BERGEMENT ","Hébergement"]
["HEBERGEMENT ","Hébergement"]
["Hébergement ","Hébergement"]
["Hébérgement ","Hébergement"]
["HEBERGEMENT SUR TOUTE LA DUREE DU CONGRES ","Hébergement"]
["Hébergement, restauration, transport ","Hospitalité"]
["HOSPITALITE ","Hospitalité"]
["HOSPITALITÉ ","Hospitalité"]
["HOSPITALITE - RELATIONS NORMALES DE TRAVAIL ","Hospitalité"]
["HOSPITALITE CONGRES ","Hospitalité"]
["HOSPITALITE STAFF ","Hospitalité"]
["INCRIPTION ","Inscription"]
["INDEMNITE ","Autre"]
["INSCRIPTION ","Inscription"]
["INSCRIPTION CONGRES ","Inscription"]
["INVITATIONS ","Autre"]
["Logement ","Hébergement"]
["Prestation en tant que formateur et orateur ","Autre"]
["Repas ","Repas"]
["REPAS CONGRES ","Repas"]
["REPAS IMPROMPTU ","Repas"]
["REPAS MANIFESTATION DE FORMATION ","Repas"]
["REPAS PROFESSIONNEL ","Repas"]
["REPAS RELATION NORMALE DE TRAVAIL ","Repas"]
["REPAS REUNION ","Repas"]
["REPAS RÉUNION HOSPITALIÈRE ","Repas"]
["REPAS REUNION SCIENTIFIQUE ","Repas"]
["REPAS SUR TOUTE LA DUREE DU CONGRES ","Repas"]
["Restauration ","Repas"]
["SOIREE ","Repas"]
["SOIREE/REPAS ","Repas"]
["SOIREE/RP ","Autre"]
["STAFF ","Autre"]
["Taxonomie EFPIA ","Autre"]
["TRANBSPORT ","Transport"]
["TRANSFERT-REPAS(DINER) ","Repas"]
["Transport ","Transport"]
["TRANSPORT ALLER/RETOUR -REPAS(DINERS-DEJEUNERS-PAUSES)-HEBERGEMENT-TRANSFERT ","Hospitalité"]
["Transport pris en charge par UCB ","Transport"]
["VISITE/(2 X GO-ON 25MG) ","Autre"]
["VISITE/(3 X GO-ON 25MG) ","Autre"]
["VISITE/GO-ON 25MG ","Autre"]

{"sheet":"CONVENTIONS","index":3,"n_rows":275,"n_cols":2,"rows_kept":275,"cut":false,"hidden":false,"merged":[]}
["TYPE_CONVENTION dans Transparence.sante.gouv.fr","TYPE_CONVENTION (libellé de regroupement)"]
["[AUTRE] : [COLLABORATION SCIENTIFIQUE] ","Expert"]
["[AUTRE] : [CONVENTION HOSPITALITE] ","Hospitalité"]
["[BOARD EXPERTS] ","Réunion de « Board »"]
["[MARKETING]","Etude de marché"]
["[MARKETING] ","Etude de marché"]
["[ORATEUR] ","Orateur"]
["[ORATEURS MODERATEURS] ","Orateur"]
["[REUNION INFORMATION MEDICALE] ","Réunion professionnelle"]
["26E CONGRES FRANÇAIS DE RHUMATOLOGIE ","Réunion professionnelle"]
["AMERICAN COLLEGE OF RHEUMATHOLOGY ACR/ARHP ANNUAL MEETING 2012 ","Réunion professionnelle"]
["ASSISES BARCELONE ","Réunion professionnelle"]
["AUTRE","Autre"]
["AUTRE ","Autre"]
["Autre : [ Collaboration Scientifique ]","Expert"]
["Autre : [ Collaboration Scientifique ] ","Expert"]
["Autre : [ EPU ]","Réunion professionnelle"]
["Autre : [ EPU ] ","Réunion professionnelle"]
["Autre : [ Expert ]","Expert"]
["Autre : [ Expert ] ","Expert"]
["Autre : [ hospitalité liée à une manifestation scientifique ]","Hospitalité"]
["Autre : [ hospitalité liée à une manifestation scientifique ] ","Hospitalité"]
["Autre : [ Manifestation professionnelle ] ","Réunion professionnelle"]
["Autre : [ Orateur / Intervenant ] ","Orateur"]
["Autre : [ Orateur ] ","Orateur"]
["Autre : [ Prestation ] ","Conseil"]
["Autre : [ R‚union professionnelle ]","Réunion professionnelle"]
["Autre : [ R‚union professionnelle ] ","Réunion professionnelle"]
["Autre : [ R\u0082union professionnelle ]","Réunion professionnelle"]
["Autre : [ R\u0082union professionnelle ] ","Réunion professionnelle"]
["Autre : [ Reunion professionnelle ]","Réunion professionnelle"]
["Autre : [ Réunion professionnelle ]","Réunion professionnelle"]
["Autre : [ Reunion professionnelle ] ","Réunion professionnelle"]
["Autre : [ Réunion professionnelle ] ","Réunion professionnelle"]
["Autre : [collaboration scientifique] ","Expert"]
["Autre : [Communication scientifique]","Expert"]
["Autre : [Communication scientifique] ","Conseil"]
["Autre : [Consultant (HCP)]","Conseil"]
["Autre : [Consultant (HCP)] ","Conseil"]
["Autre : [Consultant] ","Conseil"]
["Autre : [Contrat autre]","Autre"]
["Autre : [Contrat autre] ","Autre"]
["AUTRE : [CONTRAT DE COLLABORATION SCIENTIFIQUE]","Expert"]
["AUTRE : [CONTRAT DE COLLABORATION SCIENTIFIQUE] ","Expert"]
["AUTRE : [CONTRAT DE CONSEIL & PRESTATION]","Conseil"]
["AUTRE : [CONTRAT DE CONSEIL & PRESTATION] ","Conseil"]
["AUTRE : [CONTRAT D'ORATEUR]","Orateur"]
["AUTRE : [CONTRAT D'ORATEUR] ","Orateur"]
["Autre : [CONTRAT_DE_PRESTATIONS_DE_SERVICES] ","Conseil"]
["AUTRE : [CONVENTION D HOSPITALITE]","Hospitalité"]
["AUTRE : [CONVENTION D HOSPITALITE] ","Hospitalité"]
["Autre : [Convention d’Hospitalité] ","Hospitalité"]
["Autre : [CONVENTION D'HOSPITALITE] ","Hospitalité"]
["Autre : [Convention d'hospitalité] ","Hospitalité"]
["AUTRE : [CONVENTION HOSPITALITE] ","Hospitalité"]
["AUTRE : [CONVENTION SANS REMUNERATION]. ","Autre"]
["Autre : [entretien] ","Etude de marché"]
["Autre : [Espace publicitaire]","Autre"]
["AUTRE : [ETUDE CLINIQUE] ","Recherche Clinique"]
["Autre : [Expertise] ","Expert"]
["Autre : [Face face] ","Autre"]
["AUTRE : [HOSPITALITÉ EVENEMENT SCIENTIFIQUE] ","Hospitalité"]
["Autre : [Hospitalité Evenement]","Hospitalité"]
["Autre : [Hospitalité Evenement] ","Hospitalité"]
["Autre : [Hospitalité Genzyme] ","Hospitalité"]
["Autre : [Hospitalité] ","Hospitalité"]
["Autre : [Opération SA/Journée-Soirée] ","Autre"]
["Autre : [Opérations Genzyme] ","Autre"]
["Autre : [Orateur]","Orateur"]
["Autre : [Orateur] ","Orateur"]
["AUTRE : [PARTICIPATION RÉUNION SCIENTIFIQUE] ","Réunion professionnelle"]
["AUTRE : [PARTICIPATION R�ION SCIENTIFIQUE]","Réunion professionnelle"]
["AUTRE : [PARTICIPATION R�ION SCIENTIFIQUE] ","Réunion professionnelle"]
["Autre : [Recherche biomédicale]","Recherche Clinique"]
["Autre : [Recherche biomédicale] ","Recherche Clinique"]
["Autre : [Recherche/Développement]","Recherche Clinique"]
["Autre : [Recherche/Développement] ","Recherche Clinique"]
["Autre : [Réunion]","Réunion professionnelle"]
["Autre : [Réunion] ","Réunion professionnelle"]
["AUTRE : [RP Table ronde actu Rhumatologie] ","Réunion professionnelle"]
["Autre : [STAFF]","Réunion professionnelle"]
["Autre : Auteur - rédacteur ","Rédacteur"]
["Autre : Contrat consultant","Conseil"]
["Autre : Contrat consultant ","Conseil"]
["Autre : Contrat intervenant","Orateur"]
["Autre : Contrat intervenant ","Orateur"]
["AUTRE : CONVENTION D'HOSPITALITE ","Hospitalité"]
["autre : enquête téléphonique ","Etude de marché"]
["autre : enquête téléphonique ","Etude de marché"]
["autre : enquête téléphonique ","Etude de marché"]
["autre : enquête web","Etude de marché"]
["autre : enquête web ","Etude de marché"]
["autre : ETUDE ","Etude de marché"]
["Autre : Etude de marché","Etude de marché"]
["Autre : ETUDE DE MARCHE ","Etude de marché"]
["Autre : Etude de marché ","Etude de marché"]
["Autre : Intervenant (Orateur/ ModÃ©rateur/ PrÃ©sident...) ","Orateur"]
["Autre : Intervenant (Orateur/ Modérateur/ Président...) ","Orateur"]
["AUTRE : MANIFESTATION DE PROMOTION ","Autre"]
["Autre : Manifestation scientifique ","Réunion professionnelle"]
["Autre : ORATEUR REUNION POST EULAR MONTPELLIER ","Orateur"]
["AUTRE : PARTICIPATION A MANIFESTATION SCIENTIFIQUE ","Orateur"]
["Autre : Prestation de service","Conseil"]
["Autre : Prestation de service ","Conseil"]
["AUTRE : REFLEXION SCIENTFIQUE EVENEMENT INTERDISCIPLINAIRE ","Conseil"]
["Autre : Reunion professionnelle ou scientifique","Réunion professionnelle"]
["Autre : Réunion professionnelle ou scientifique","Réunion professionnelle"]
["Autre : Reunion professionnelle ou scientifique ","Réunion professionnelle"]
["Autre : Réunion professionnelle ou scientifique ","Réunion professionnelle"]
["Autre : RP de type EPU (2007-01) ","Réunion professionnelle"]
["AUTRE [CONNEXION]","Autre"]
["AUTRE [CONNEXION] ","Autre"]
["AUTRE [CONTRAT D ORATEUR]","Orateur"]
["AUTRE [CONTRAT D ORATEUR] ","Orateur"]
["AUTRE [CONTRAT DE CONSULTANT]","Conseil"]
["AUTRE [CONTRAT DE CONSULTANT] ","Conseil"]
["AUTRE [CONTRAT ORATEUR]","Orateur"]
["AUTRE [CONTRAT ORATEUR] ","Orateur"]
["AUTRE [CONVENTION D EXPERT]","Expert"]
["AUTRE [CONVENTION D EXPERT] ","Expert"]
["Autre [CONVENTION D HOSPITALITE]","Hospitalité"]
["AUTRE [CONVENTION D HOSPITALITE] ","Hospitalité"]
["AUTRE [CONVENTION D ORATEUR]","Orateur"]
["AUTRE [CONVENTION D ORATEUR] ","Orateur"]
["AUTRE [CONVENTION HOSPITALITE] ","Hospitalité"]
["AUTRE [EXPERT]","Expert"]
["AUTRE [EXPERT] ","Expert"]
["AUTRE ETUDE DE MARCHE ","Etude de marché"]
["AUTRE: [CONTRAT DE COLLABORATION SCENTIFIQUE]","Expert"]
["AUTRE: [CONTRAT DE COLLABORATION SCENTIFIQUE] ","Expert"]
["AUTRE: [CONTRAT DE COLLABORATION SCIENTIFIQUE]","Expert"]
["AUTRE: [CONTRAT DE COLLABORATION SCIENTIFIQUE] ","Expert"]
["AUTRE: [CONVENTION HOSPITALITE]","Hospitalité"]
["AUTRE: [CONVENTION HOSPITALITE] ","Hospitalité"]
["AUTRE: [ETUDE DE MARCHE]","Etude de marché"]
["AUTRE: [ETUDE DE MARCHE] ","Etude de marché"]
["Autre: Collaboration pour une Etude de Marché","Etude de marché"]
["Autre: Collaboration pour une Etude de Marché","Etude de marché"]
["AUTRE: COLLABORATION POUR UNE ETUDE DE MARCHÉ ","Etude de marché"]
["AUTRE: CONVENTION D'HOSPITALITE ","Hospitalité"]
["autre: ETUDE ","Etude de marché"]
["AUTRE: ETUDES DE MARCHE SONDAGES ","Etude de marché"]
["Autre: Intervenant ","Orateur"]
["autre: REDACTION D'ARTICLES ","Rédacteur"]
["AUTRE[EXPERTISE] ","Expert"]
["Autre[INTERVENTION REUNION P EULAR LYON LE 2 JUILLET] ","Orateur"]
["Autre[ORATEUR REUNION POST EULAR AGEN] ","Orateur"]
["Autre[ORATEUR REUNION POST EULAR BORDEAUX] ","Orateur"]
["Autre[ORATEUR REUNION POST EULAR ROUEN] ","Orateur"]
["Autre[ORATEUR REUNION POST EULAR TOULOUSE] ","Orateur"]
["Autre[ORATEUR REUNION POST EULAR TOURS]","Orateur"]
["Board ","Réunion de « Board »"]
["Collaboration Editions Scientifiques ","Rédacteur"]
["Collaboration Scientifique - Conseil ","Conseil"]
["COLLABORATION SCIENTIFIQUE ET PROFESSIONNELLE ","Expert"]
["Comite Echange scientifique ","Expert"]
["Comite Expert","Expert"]
["COMITE SCIENTIFIQUE ","Expert"]
["CONFÉRENCE PRESSE ","Autre"]
["Congr\u008as / Symposium","Réunion professionnelle"]
["Congr\u008as / Symposium ","Réunion professionnelle"]
["CongrÃ¨s / Symposium ","Réunion professionnelle"]
["CONGRES","Réunion professionnelle"]
["Congrès","Réunion professionnelle"]
["CONGRES ","Réunion professionnelle"]
["CONGRES / SYMPOSIUM","Réunion professionnelle"]
["Congrès / symposium","Réunion professionnelle"]
["Congres / Symposium ","Réunion professionnelle"]
["Congrès / Symposium ","Réunion professionnelle"]
["CONGRÈS / SYMPOSIUM/ RP ","Réunion professionnelle"]
["CONGRES SYMPOSIUM","Réunion professionnelle"]
["CONGRES SYMPOSIUM ","Réunion professionnelle"]
["CONGRES, SYMPOSIUM ","Réunion professionnelle"]
["CONGRES/SYMPOSIUM","Réunion professionnelle"]
["CONGRES/SYMPOSIUM ","Réunion professionnelle"]
["congrès-symposium","Réunion professionnelle"]
["congrès-symposium ","Réunion professionnelle"]
["conseil","Conseil"]
["Conseil ","Conseil"]
["CONSEIL ","Conseil"]
["Conseil et Communication Médico-Scientifique ","Conseil"]
["Conseil Relations professionnelles ","Conseil"]
["Conseil réunion d'experts ","Conseil"]
["CONSEIL SCIENTIFIQUE ","Expert"]
["Conseil, réunion d'experts ","Conseil"]
["Consultance ","Conseil"]
["Consultance (rhumatologie) ","Conseil"]
["Consultation Scientifique ","Conseil"]
["Contrat de conseil scientifique ","Expert"]
["CONTRAT DE CONSULTANT ","Conseil"]
["CONTRAT DE PRESTATION DE SERVICE ","Conseil"]
["Contrat de recherche interventionnelle et non-interventionnelle ","Recherche Clinique"]
["CONTRAT D'ORATEUR ","Orateur"]
["CONTRAT ORATEUR ","Orateur"]
["CONVENTION D HOSPITALITE","Hospitalité"]
["CONVENTION D HOSPITALITE ","Hospitalité"]
["CONVENTION D’HOSPITALITÉ","Hospitalité"]
["CONVENTION D’HOSPITALITE ","Hospitalité"]
["CONVENTION D’HOSPITALITÉ ","Hospitalité"]
["CONVENTION DE COLLABORATION","Expert"]
["CONVENTION DE COLLABORATION ","Expert"]
["CONVENTION DE CONSULTANT ","Conseil"]
["CONVENTION DE RECHERCHE","Recherche Clinique"]
["CONVENTION DE RECHERCHE ","Recherche Clinique"]
["Convention de recherche biomédicale /Annexe: Roles et responsabilites des differentes parties impliquees","Recherche Clinique"]
["Convention de recherche biomédicale /Annexe: Roles et responsabilites des differentes parties impliquees ","Recherche Clinique"]
["Convention de recherche biomédicale Investigateur-Coordinateur ","Recherche Clinique"]
["CONVENTION D'HOSPITALITE","Hospitalité"]
["CONVENTION D'HOSPITALITÉ","Hospitalité"]
["CONVENTION D'HOSPITALITE ","Hospitalité"]
["CONVENTION D'HOSPITALITÉ ","Hospitalité"]
["CONVENTION D'ORATEUR RÉUNION PROFESSIONNELLE ","Orateur"]
["CONVENTION RECHERCHE","Recherche Clinique"]
["CONVENTION RECHERCHE ","Recherche Clinique"]
["CONVENTIONS CONSEIL","Conseil"]
["CONVENTIONS ORATEUR ","Orateur"]
["EDITION ","Rédacteur"]
["EFIC ","Réunion professionnelle"]
["ESCEO ","Autre"]
["ÉTUDE / INTERVIEW","Etude de marché"]
["ETUDE DE MARCHE","Etude de marché"]
["ETUDE DE MARCHE","Etude de marché"]
["ETUDE DE MARCHE","Etude de marché"]
["ETUDE DE MARCHE ","Etude de marché"]
["Etudes ","Autre"]
["EULAR ","Réunion professionnelle"]
["Evaluation ","Autre"]
["EXPERT","Expert"]
["EXPERT ","Expert"]
["EXPERTISE SCIENTIFIQUE","Réunion professionnelle"]
["EXPERTISE SCIENTIFIQUE ","Expert"]
["FORMATION","Formateur"]
["FORMATION ","Formateur"]
["Formation, Conseil et Congrès ","Conseil"]
["HOSPITALITE RP/CONGRES / SYMPO","Hospitalité"]
["HOSPITALITE RP/CONGRES / SYMPO ","Hospitalité"]
["HOSPITALITE RP/CONGRES/SYMPO ","Hospitalité"]
["INVITATION ","Hospitalité"]
["LETTRE ACCORD","Autre"]
["Marketing","Etude de marché"]
["Marketing","Etude de marché"]
["MARKETING ","Etude de marché"]
["ORATEUR","Orateur"]
["ORATEUR ","Orateur"]
["ORATEUR INTERVENANT ","Orateur"]
["ORATEUR RP/CONGRES/SYMPO","Orateur"]
["Orateur RP/Congres/Sympo ","Orateur"]
["ORATEUR RP/CONGRES/SYMPOSIUM","Orateur"]
["ORATEUR RP/CONGRES/SYMPOSIUM ","Orateur"]
["Participation à une étude de marché","Etude de marché"]
["Participation à une étude de marché ","Etude de marché"]
["PHYSIOPATHOLOGIE DE L'ARTHROSE ","Autre"]
["PRESTATION ","Conseil"]
["PRESTATION CONSEIL SCIENTIF/ PARTICIPATION BOARD ","Conseil"]
["PRESTATION DE SERVICES ","Conseil"]
["Prestation en tant que formateur et orateur ","Formateur"]
["prestation scientifique ","Conseil"]
["Recherche","Recherche Clinique"]
["RECHERCHE ","Recherche Clinique"]
["RECHERCHE BIOMEDICALE","Recherche Clinique"]
["RECHERCHE BIOMÉDICALE","Recherche Clinique"]
["RECHERCHE BIOMEDICALE ","Recherche Clinique"]
["recherche biomédicale ","Recherche Clinique"]
["RECHERCHE CLINIQUE","Recherche Clinique"]
["Recherche Clinique ","Recherche Clinique"]
["Recherche et Développement ","Recherche Clinique"]
["RECHERCHE MARKETING ","Etude de marché"]
["RECHERCHE PRET ","Autre"]
["REDACTEUR SCIENTIFIQUE ","Rédacteur"]
["research ","Recherche Clinique"]
["Réunion de board ","Réunion de « Board »"]
["REUNION SCIENTIFIQUE","Réunion professionnelle"]
["REUNION SCIENTIFIQUE ","Réunion professionnelle"]
["SOCIETE FRANCAISE DE RHUMATOLOGIE ","Autre"]
["Subventions ","Autre"]

{"sheet":"FIRMES","index":4,"n_rows":1915,"n_cols":2,"rows_kept":1915,"cut":false,"hidden":false,"merged":[]}
["FIRME dans Transparence.sante.gouv.fr","FIRME (libellé de regroupement)"]
["22 Juillet Conseil","22 Juillet Conseil"]
["3-D Matrix Europe SAS","3-D Matrix Europe SAS"]
["3M Belgium bvba/sprl","3M Belgium bvba/sprl"]
["3M Deutschland GmbH","3M Deutschland GmbH"]
["3M France","3M France"]
["3M MAROC","3M MAROC"]
["3M United Kingdom PLC","3M United Kingdom PLC"]
["3S ORTHO","3S ORTHO"]
["4Tech Cardio Ltd","4Tech Cardio Ltd"]
["7 MED INDUSTRIE","7 MED INDUSTRIE"]
["A a Z SANTE","A a Z SANTE"]
["A DEC INTERNATIONAL INC","A DEC INTERNATIONAL INC"]
["A.I.R.","A.I.R."]
["A.MENARINI diagnostics","A.MENARINI diagnostics"]
["A.R.C. Pharma","A.R.C. Pharma"]
["A+A","A+A"]
["a2m rehateam","a2m rehateam"]
["AADAIRC","AADAIRC"]
["ABBOTT FRANCE","ABBOTT"]
["ABBOTT HEALTHCARE SAS","ABBOTT"]
["ABBOTT PRODUCTS SAS","ABBOTT"]
["AbbVie","AbbVie"]
["ABENA-FRANTEX","ABENA-FRANTEX"]
["Abiomed GmbH","Abiomed GmbH"]
["ABM","ABM"]
["abmedica","abmedica"]
["ABS-Bolton Medical","ABS-Bolton Medical"]
["accomed","accomed"]
["ACCOVION SARL","ACCOVION SARL"]
["Accuray Europe","Accuray Europe"]
["ACIST Europe BV","ACIST Europe BV"]
["ACM","ACM"]
["Acorda Therapeutics, Inc.","Acorda Therapeutics, Inc."]
["ACOUSTIQUE MEDICAL DU LITTORAL","ACOUSTIQUE MEDICAL DU LITTORAL"]
["ACS-Agence Conseil Santé","ACS-Agence Conseil Santé"]
["ACT+ Consulting","ACT+ Consulting"]
["ACTAVIS GROUP PTC EHF","ACTAVIS GROUP PTC EHF"]
["Actelion Pharmaceuticals France","Actelion"]
["Actelion Pharmaceuticals Ltd","Actelion"]
["ACTION D'ECLAT","ACTION D'ECLAT"]
["ADAIR","ADAIR"]
["ADAPSIA","ADAPSIA"]
["ADDMEDICA","ADDMEDICA"]
["ADEP ASSISTANCE","ADEP ASSISTANCE"]
["Adept Field Solutions","Adept Field Solutions"]
["ADIR ASSISTANCE","ADIR ASSISTANCE"]
["Adiral Assistance","Adiral Assistance"]
["ADIRAL Association d'Aide aux Traitements Ã  Domicile","ADIRAL Association d'Aide aux Traitements Ã  Domicile"]
["ADLER ORTHO France","ADLER ORTHO France"]
["Adler Ortho srl","Adler Ortho srl"]
["ADS ALSACE","ADS ALSACE"]
["ADS CHAMPAGNE ARDENNE","ADS CHAMPAGNE ARDENNE"]
["ADS LORRAINE","ADS LORRAINE"]
["ADVANCE SAS","ADVANCE SAS"]
["Advanced Accelerator Applications","Advanced Accelerator Applications"]
["Advanced Accelerator Applications International SA","Advanced Accelerator Applications International SA"]
["ADVANCED BIONICS SARL","ADVANCED BIONICS SARL"]
["Advanced Medical Services, AMS GmbH","Advanced Medical Services, AMS GmbH"]
["ADVICENNE","ADVICENNE"]
["Aegerion Pharmaceuticals","Aegerion Pharmaceuticals"]
["AERIS Medical SAS","AERIS Medical SAS"]
["AEROGEN","AEROGEN"]
["AFFINITES SANTE","AFFINITES SANTE"]
["Agence Conseil 3P","Agence Conseil 3P"]
["Agfa HealthCare France SA","Agfa HealthCare France SA"]
["AGFA Healthcare Imaging Agents France","AGFA Healthcare Imaging Agents France"]
["AGILENT TECHNOLOGIES FRANCE","AGILENT TECHNOLOGIES FRANCE"]
["AGIR Ã  dom Assistance","AGIR Ã  dom Assistance"]
["Aide aux Insuffisants Respiratoires de la Région Auvergne (A.I.R.R.A.)","Aide aux Insuffisants Respiratoires de la Région Auvergne (A.I.R.R.A.)"]
["AIR A DOMICILE","AIR A DOMICILE"]
["AIR DE BRETAGNE","AIR DE BRETAGNE"]
["AIR DOMICILE SANTE ALPES","AIR DOMICILE SANTE ALPES"]
["AIR DOMICILE VALLEE DU RHONE","AIR DOMICILE VALLEE DU RHONE"]
["Air Liquide European Homecare Operations Services","Air Liquide European Homecare Operations Services"]
["AIR LIQUIDE MEDICAL SYSTEMS","AIR LIQUIDE MEDICAL SYSTEMS"]
["AIR LIQUIDE SANTE (INTERNATIONAL)","AIR LIQUIDE SANTE (INTERNATIONAL)"]
["AIR LIQUIDE SANTE FRANCE","AIR LIQUIDE SANTE FRANCE"]
["AIR SANTE","AIR SANTE"]
["AIRE","AIRE"]
["AIREL","AIREL"]
["AIXPER'F","AIXPER'F"]
["AJ4MED","AJ4MED"]
["ALAIN AFFLELOU FRANCHISEUR","ALAIN AFFLELOU FRANCHISEUR"]
["ALAIR & AVD","ALAIR & AVD"]
["Alcimed GmbH","Alcimed GmbH"]
["Alcimed Inc","Alcimed Inc"]
["Alcimed SARL","Alcimed SARL"]
["Alcimed SAS","Alcimed SAS"]
["Alcimed Sprl","Alcimed Sprl"]
["Alcura France","Alcura France"]
["ALERE E-SANTE SAS","ALERE E-SANTE SAS"]
["ALERE SAS","ALERE SAS"]
["Alexion Pharma France","Alexion Pharma France"]
["ALFA WASSERMANN PHARMA","ALFA WASSERMANN PHARMA"]
["Align Technology SAS","Align Technology SAS"]
["Alimera Sciences France","Alimera Sciences France"]
["ALISEO","ALISEO"]
["Alizé Pharma SAS","Alizé Pharma SAS"]
["Alizé Santé","Alizé Santé"]
["ALK-Abelló","ALK-Abelló"]
["ALKAPHARM","ALKAPHARM"]
["All Global","All Global"]
["ALLERGAN FRANCE","ALLERGAN FRANCE"]
["alliance healthcare repartition","alliance healthcare repartition"]
["ALLIANCE'PERF","ALLIANCE'PERF"]
["ALLP MEDITEC","ALLP MEDITEC"]
["ALMIRALL SAS","ALMIRALL SAS"]
["ALMUS","ALMUS"]
["ALPHATEC SPINE INC","ALPHATEC SPINE INC"]
["ALPHEGA","ALPHEGA"]
["ALPINE SCIENTIFIC","ALPINE SCIENTIFIC"]
["ALSANZA sarl","ALSANZA sarl"]
["ALTEOR","ALTEOR"]
["alveol'air","alveol'air"]
["ALVIMEDICA Medical Technologie France","ALVIMEDICA Medical Technologie France"]
["AM AUDITION","AM AUDITION"]
["AMADEUS SANTE","AMADEUS SANTE"]
["AMC APPAREILLAGE ET MATERIEL DE CARDIOLOGIE","AMC APPAREILLAGE ET MATERIEL DE CARDIOLOGIE"]
["American Medical Systems France","American Medical Systems France"]
["American Orthodontics","American Orthodontics"]
["AMGEN SAS","Amgen"]
["AMICUS THERAPEUTICS SAS","AMICUS THERAPEUTICS SAS"]
["AMO FRANCE SAS","AMO FRANCE SAS"]
["AMO Germany GmbH","AMO Germany GmbH"]
["AMO INC USA","AMO INC USA"]
["Amplifon Groupe France","Amplifon Groupe France"]
["AMPLITUDE","AMPLITUDE"]
["AMS 25","AMS 25"]
["AMS 70","AMS 70"]
["AMS 88","AMS 88"]
["ANERA","ANERA"]
["ANNAYAKE","ANNAYAKE"]
["ANTADIR","ANTADIR"]
["Antadir Assistance SAS","Antadir Assistance SAS"]
["ANTHOGYR","ANTHOGYR"]
["ANTILLES AUDITION GUADELOUPE","ANTILLES AUDITION GUADELOUPE"]
["AOTI Ltd","AOTI Ltd"]
["APARD","APARD"]
["apol","apol"]
["APOLLO ENDOSURGERY UK LTD","APOLLO ENDOSURGERY UK LTD"]
["Applied Medical France","Applied Medical France"]
["APROVA","APROVA"]
["APTALIS PHARMA SAS","APTALIS PHARMA SAS"]
["Aptiv Solutions","Aptiv Solutions"]
["AQUILAB","AQUILAB"]
["ARAIR Assistance","ARAIR Assistance"]
["ARAIR Assistance S.A.","ARAIR Assistance S.A."]
["ARAIRCHAR","ARAIRCHAR"]
["arard","arard"]
["ARCHIMEDES PHARMA France","ARCHIMEDES PHARMA France"]
["ARCOS","ARCOS"]
["ARGON MEDICAL DEVICES","ARGON MEDICAL DEVICES"]
["ARIAD Pharmaceuticals (France)","ARIAD Pharmaceuticals (France)"]
["ARJOHUNTLEIGH","ARJOHUNTLEIGH"]
["ARROW GENERIQUES SAS","ARROW GENERIQUES SAS"]
["ARSENAL-CDM","ARSENAL-CDM"]
["ART&COS","ART&COS"]
["ARTHES","ARTHES"]
["Arthrex SAS","Arthrex SAS"]
["Arthritis Fondation Courtin","Arthritis Fondation Courtin"]
["ArthroCare France","ArthroCare France"]
["Artialis","Artialis"]
["ARX SAS","ARX SAS"]
["ASAHI INTECC CO., LTD.","ASAHI INTECC CO., LTD."]
["ASDIA","ASDIA"]
["Asept InMed","Asept InMed"]
["ASKLE SANTE","ASKLE SANTE"]
["ASPEN FRANCE","ASPEN FRANCE"]
["ASPIDE AESTHETIC","ASPIDE AESTHETIC"]
["ASPIDE MEDICAL","ASPIDE MEDICAL"]
["ASSISTANCE DU GRAND EST","ASSISTANCE DU GRAND EST"]
["ASSISTANCES MEDICALES SPECIALISEES","ASSISTANCES MEDICALES SPECIALISEES"]
["Association Françoise et Eugène MINKOWSKI pour la santé mentale des migrants","Association Françoise et Eugène MINKOWSKI pour la santé mentale des migrants"]
["Association pour le Développement de lâ€™Enseignement et des Recherches auprès des universités des centres de recherches et des entreprises dâ€™Aquitaine (ADERA)","Association pour le Développement de lâ€™Enseignement et des Recherches auprès des universités des centres de recherches et des entreprises dâ€™Aquitaine (ADERA)"]
["ASTELLAS PHARMA","ASTELLAS PHARMA"]
["ASTELLAS PHARMA B.V.","ASTELLAS PHARMA B.V."]
["ASTELLAS PHARMA GLOBAL DEVELOPMENT","ASTELLAS PHARMA GLOBAL DEVELOPMENT"]
["ASTELLAS PHARMA GmbH","ASTELLAS PHARMA GmbH"]
["ASTELLAS PHARMA Inc","ASTELLAS PHARMA Inc"]
["ASTELLAS PHARMA Ltd","ASTELLAS PHARMA Ltd"]
["ASTELLAS PHARMA S.A.","ASTELLAS PHARMA S.A."]
["Astellas Pharma Singapore Pte. Ltd.","Astellas Pharma Singapore Pte. Ltd."]
["ASTELLAS PHARMACEUTICALS AE","ASTELLAS PHARMACEUTICALS AE"]
["ASTON MEDICAL Anciennement SOCIETE DE GENIE MEDICAL - S.G.M.","ASTON MEDICAL Anciennement SOCIETE DE GENIE MEDICAL - S.G.M."]
["ASTRAZENECA","ASTRAZENECA"]
["Athersys, Inc.","Athersys, Inc."]
["Atlantic Pharmacetuicals Ltd","Atlantic Pharmacetuicals Ltd"]
["ATLANTIC SURDITE","ATLANTIC SURDITE"]
["ATLANTIS DIFFUSION","ATLANTIS DIFFUSION"]
["ATLANTIS DIFFUSION SAM","ATLANTIS DIFFUSION SAM"]
["ATOS MEDICAL SAS","ATOS MEDICAL SAS"]
["AtriCure, Inc.","AtriCure, Inc."]
["AUDARMOR","AUDARMOR"]
["Audika Groupe SA","Audika Groupe SA"]
["audio acoustique sud","audio acoustique sud"]
["AUDIOCONSULTING","AUDIOCONSULTING"]
["AUDIOELYSCAU","AUDIOELYSCAU"]
["AUDIOMEDI SAS","AUDIOMEDI SAS"]
["AudioNova France SAS","AudioNova France SAS"]
["AUDIOPTIC TRADE SERVICES","AUDIOPTIC TRADE SERVICES"]
["AUDITION 50","AUDITION 50"]
["AUDITION B&H","AUDITION B&H"]
["AUDITION BOULEVARD MARIE","AUDITION BOULEVARD MARIE"]
["AUDITION CONSEIL FRANCE","AUDITION CONSEIL FRANCE"]
["Audition DEBRUILLE","Audition DEBRUILLE"]
["AUDITION DEBRUILLE BEZANNES","AUDITION DEBRUILLE BEZANNES"]
["AUDITION FISMES","AUDITION FISMES"]
["AUDITION GAMBETTA","AUDITION GAMBETTA"]
["AUDITION LYON EST","AUDITION LYON EST"]
["AUDITION MARIE SIRVEN","AUDITION MARIE SIRVEN"]
["Audition Martin","Audition Martin"]
["AUDITION OUTRE MER","AUDITION OUTRE MER"]
["AUDITION PARIS EST","AUDITION PARIS EST"]
["AUDITION REMI LAMOINE","AUDITION REMI LAMOINE"]
["AUDITION SANTE","AUDITION SANTE"]
["AUDITION TRIBUT VERJUS","AUDITION TRIBUT VERJUS"]
["AUXESIA","AUXESIA"]
["AVANTEC","AVANTEC"]
["AX'AIR MEDICAL","AX'AIR MEDICAL"]
["AXDOM VAR","AXDOM VAR"]
["Axess Research","Axess Research"]
["AXIS biodental SA","AXIS biodental SA"]
["AXIS Dental Sarl","AXIS Dental Sarl"]
["AXIS Santé","AXIS Santé"]
["AXONAL","AXONAL"]
["Axonics Modulation Technologies, Inc.","Axonics Modulation Technologies, Inc."]
["AX'PERF MEDICAL","AX'PERF MEDICAL"]
["AZ MEDICAL","AZ MEDICAL"]
["B. Braun Avitum France SAS","B. Braun Avitum France SAS"]
["B.BRAUN MEDICAL SAS","B.BRAUN MEDICAL SAS"]
["B.R.A. SAS","B.R.A. SAS"]
["B3TSI","B3TSI"]
["BAC OPTIQUE","BAC OPTIQUE"]
["BALJO","BALJO"]
["BALT EXTRUSION SAS","BALT EXTRUSION SAS"]
["BALT INTERNATIONAL","BALT INTERNATIONAL"]
["BARD FRANCE SAS","BARD FRANCE SAS"]
["Bastide Le Confort Médical","Bastide Le Confort Médical"]
["BAUERFEIND FRANCE","BAUERFEIND FRANCE"]
["Baxter SAS","Baxter SAS"]
["Bayer HealthCare SAS","Bayer HealthCare SAS"]
["BAYER SANTE FAMILIALE","BAYER SANTE FAMILIALE"]
["BBGR SAS","BBGR SAS"]
["BEAUFOUR IPSEN INDUSTRIE","BEAUFOUR IPSEN INDUSTRIE"]
["BEAUTE PRESTIGE INTERNATIONAL","BEAUTE PRESTIGE INTERNATIONAL"]
["Beaver-Visitec Int'l Sales Ltd","Beaver-Visitec Int'l Sales Ltd"]
["BECKMAN COULTER FRANCE","BECKMAN COULTER FRANCE"]
["Becton Dickinson France SAS","Becton Dickinson France SAS"]
["Beiersdorf s.a.s","Beiersdorf s.a.s"]
["BELLCO FRANCE","BELLCO FRANCE"]
["BEST OF OPTIMIZERS","BEST OF OPTIMIZERS"]
["Bien-Air France","Bien-Air France"]
["BIO COMPOSANTS MEDICAUX","BIO COMPOSANTS MEDICAUX"]
["BIOCODEX","BIOCODEX"]
["BIOCORP PRODUCTION","BIOCORP PRODUCTION"]
["BioCryst Pharmaceuticals Inc.","BioCryst Pharmaceuticals Inc."]
["BIOCYTEX","BIOCYTEX"]
["Biofortis SAS","Biofortis SAS"]
["BIOGARAN","BIOGARAN"]
["BIOGEN FRANCE SAS","BIOGEN FRANCE SAS"]
["BioHorizons Iberica S.R.L.","BioHorizons Iberica S.R.L."]
["Biomarin Europe Ltd.","Biomarin Europe Ltd."]
["BIOMATLANTE SA","BIOMATLANTE SA"]
["bioMérieux","bioMérieux"]
["BIOMET","BIOMET"]
["BIOMET 3i","BIOMET 3i"]
["BIOMET BELGIUM BVBA","BIOMET BELGIUM BVBA"]
["BIOMET CHINA","BIOMET CHINA"]
["Biomet France","Biomet France"]
["BIOMET GLOBAL SUPPLY CHAIN CENTER B.V.","BIOMET GLOBAL SUPPLY CHAIN CENTER B.V."]
["Biomet Inc","Biomet Inc"]
["Biomet Japan, Inc.","Biomet Japan, Inc."]
["Biomet Orthopaedics Sweeden","Biomet Orthopaedics Sweeden"]
["Biomet Spain Orthopaedics S.L.","Biomet Spain Orthopaedics S.L."]
["BIOMET UK Limited","BIOMET UK Limited"]
["BIOM'UP","BIOM'UP"]
["Bioprojet","Bioprojet"]
["BIOPROJET PHARMA","BIOPROJET PHARMA"]
["BIO-RAD","BIO-RAD"]
["BIO-RAD AbD Serotec Ltd","BIO-RAD AbD Serotec Ltd"]
["BIO-RAD Innovations","BIO-RAD Innovations"]
["BIO-RAD Laboratories Inc.","BIO-RAD Laboratories Inc."]
["BIO-RAD Laboratories Limited","BIO-RAD Laboratories Limited"]
["BIO-RAD Laboratories S.A.S.","BIO-RAD Laboratories S.A.S."]
["Biosensors Europe SA","Biosensors Europe SA"]
["Biosensors France SAS","Biosensors France SAS"]
["Biosphere Medical, Inc.","Biosphere Medical, Inc."]
["Biosphere Medical, S.A.","Biosphere Medical, S.A."]
["BIOSPINE IMPLANTS","BIOSPINE IMPLANTS"]
["BIOTECH DENTAL","BIOTECH DENTAL"]
["BIOTECH ORTHO","BIOTECH ORTHO"]
["BIOTEST AG","BIOTEST AG"]
["BIOTEST FRANCE SAS","BIOTEST FRANCE SAS"]
["BIOTEST HUNGARIA KFT.","BIOTEST HUNGARIA KFT."]
["BIOTRIAL","BIOTRIAL"]
["BIOTRONIK AG","BIOTRONIK AG"]
["BIOTRONIK Belgium","BIOTRONIK Belgium"]
["BIOTRONIK FRANCE SAS","BIOTRONIK FRANCE SAS"]
["BIOTRONIK SE & Co. KG","BIOTRONIK SE & Co. KG"]
["BIOVENTUS","BIOVENTUS"]
["Bisico","Bisico"]
["BLOCKADE MEDICAL, LLC","BLOCKADE MEDICAL, LLC"]
["BLUE-REG PHARMA CONSULT","BLUE-REG PHARMA CONSULT"]
["BLUESOM","BLUESOM"]
["BOEHRINGER INGELHEIM FRANCE","BOEHRINGER INGELHEIM FRANCE"]
["BOIRON","BOIRON"]
["BOIRON CARAIBES","BOIRON CARAIBES"]
["BOIRON OCEAN INDIEN","BOIRON OCEAN INDIEN"]
["Bone Therapeutics","Bone Therapeutics"]
["BONNET SOUYRIS PROSPECTIVE","BONNET SOUYRIS PROSPECTIVE"]
["Boston Healthcare International","Boston Healthcare International"]
["BOSTON SCIENTIFIC SAS","BOSTON SCIENTIFIC SAS"]
["BRACCO DIAGNOSTICS INC","BRACCO DIAGNOSTICS INC"]
["BRACCO IMAGING FRANCE","BRACCO IMAGING FRANCE"]
["BRACCO IMAGING ITALIA SRL","BRACCO IMAGING ITALIA SRL"]
["BRACCO IMAGING SPA","BRACCO IMAGING SPA"]
["BRACCO SUISSE SA","BRACCO SUISSE SA"]
["BRAHMS FRANCE SAS","BRAHMS FRANCE SAS"]
["BRAHMS GmbH","BRAHMS GmbH"]
["Brainlab","Brainlab"]
["Brand Institute","Brand Institute"]
["Branding Science (UK) Ltd","Branding Science (UK) Ltd"]
["BREAS MEDICAL","BREAS MEDICAL"]
["Bristol -Myers Squibb GmbH & Co. KGaA","Bristol -Myers Squibb"]
["BRISTOL-MYERS SQUIBB","Bristol -Myers Squibb"]
["Bristol-Myers Squibb Australia Pty Limited","Bristol -Myers Squibb"]
["BRISTOL-MYERS SQUIBB COMPANY","Bristol -Myers Squibb"]
["Bristol-Myers Squibb EMEA","Bristol -Myers Squibb"]
["BRISTOL-MYERS SQUIBB PHARMACEUTICALS LTD","Bristol -Myers Squibb"]
["BRISTOL-MYERS SQUIBB SA","Bristol -Myers Squibb"]
["Bruker Daltonique","Bruker Daltonique"]
["bruneau","bruneau"]
["BSN medical SAS","BSN medical SAS"]
["BSN-RADIANTE SAS","BSN-RADIANTE SAS"]
["Buhlmann France","Buhlmann France"]
["Bull's Eye Innovations","Bull's Eye Innovations"]
["BVA","BVA"]
["BY AGENCY GROUP","BY AGENCY GROUP"]
["C.F.E.B. SISLEY","C.F.E.B. SISLEY"]
["C@RDISTIM","C@RDISTIM"]
["C2F IMPLANTS","C2F IMPLANTS"]
["C2R SAS","C2R SAS"]
["CAB","CAB"]
["CAIR LGL","CAIR LGL"]
["CANAL 55 COMMUNICATION","CANAL 55 COMMUNICATION"]
["CAPIDEL SANTE SARL","CAPIDEL SANTE SARL"]
["CAPRON PODOLOGIE","CAPRON PODOLOGIE"]
["carco","carco"]
["Cardiac Dimensions, Pty LTD","Cardiac Dimensions, Pty LTD"]
["Cardial SAS","Cardial SAS"]
["CardiAQ Valve Technologies, Inc.","CardiAQ Valve Technologies, Inc."]
["CARDIF ASSISTANCE","CARDIF ASSISTANCE"]
["Cardim@t","Cardim@t"]
["CARDINAL HEALTH FRANCE 506 SAS","CARDINAL HEALTH FRANCE 506 SAS"]
["cardipulse","cardipulse"]
["CAREFUSION FRANCE 309 SAS","CAREFUSION FRANCE 309 SAS"]
["CAREFUSION SWITZERLAND 317 SÃ rl","CAREFUSION SWITZERLAND 317 SÃ rl"]
["CARESTREAM HEALTH FRANCE","CARESTREAM HEALTH FRANCE"]
["CARL ZEISS MEDITEC AG","CARL ZEISS MEDITEC AG"]
["Carl Zeiss Meditec France","Carl Zeiss Meditec France"]
["CARL ZEISS MEDITEC SAS","CARL ZEISS MEDITEC SAS"]
["Carl Zeiss Vision France","Carl Zeiss Vision France"]
["CARMAT","CARMAT"]
["CAROLINE ROBIN AUDITION","CAROLINE ROBIN AUDITION"]
["CARPENTER SAS","CARPENTER SAS"]
["Carvadys S.A.S","Carvadys S.A.S"]
["CBPartners","CBPartners"]
["CDL OPTIQUE","CDL OPTIQUE"]
["CECS","CECS"]
["CELGENE","CELGENE"]
["Celldex Therapeutics","Celldex Therapeutics"]
["CELLforCURE","CELLforCURE"]
["CELONOVA BIOSCIENCES OF EUROPE B.V","CELONOVA BIOSCIENCES OF EUROPE B.V"]
["cemka","cemka"]
["CENDRES+METAUX FRANCE SAS","CENDRES+METAUX FRANCE SAS"]
["CENTRALE DES OPTICIENS","CENTRALE DES OPTICIENS"]
["CENTRALE DES PEELINGS","CENTRALE DES PEELINGS"]
["CENTRALE DES PHARMACIENS","CENTRALE DES PHARMACIENS"]
["Centre d'Audition Bruant","Centre d'Audition Bruant"]
["Centre de stomathérapie","Centre de stomathérapie"]
["Centre d'Etudes et de Recherches cosmétologiques CERCO","Centre d'Etudes et de Recherches cosmétologiques CERCO"]
["centre d'optique et d'audition","centre d'optique et d'audition"]
["Cepheid Europe SAS","Cepheid Europe SAS"]
["Ceramconcept France","Ceramconcept France"]
["CERC","CERC"]
["CERECARE","CERECARE"]
["CEREDAS","CEREDAS"]
["CEREPLAS","CEREPLAS"]
["CERI MEDICAL","CERI MEDICAL"]
["CERMAVEIN","CERMAVEIN"]
["CERP RHIN RHONE MEDITERRANEE","CERP RHIN RHONE MEDITERRANEE"]
["CERP ROUEN","CERP ROUEN"]
["Cerus Corporation","Cerus Corporation"]
["Cerus Europe B.V.","Cerus Europe B.V."]
["Cezanne","Cezanne"]
["CHEMO S.A. FRANCE","CHEMO S.A. FRANCE"]
["CHIESI SAS","CHIESI SAS"]
["Chiltern International SARL","Chiltern International SARL"]
["CHOC","CHOC"]
["chris eyes","chris eyes"]
["CHRISTEYNS FRANCE","CHRISTEYNS FRANCE"]
["CHUGAI PHARMA FRANCE","CHUGAI"]
["CID","CID"]
["CIDELEC","CIDELEC"]
["Cido Research GmbH","Cido Research GmbH"]
["CIS BIO INTERNATIONAL","CIS BIO INTERNATIONAL"]
["Cisbio Bioassays","Cisbio Bioassays"]
["CIZETA MEDICALI France","CIZETA MEDICALI France"]
["CLARIANCE","CLARIANCE"]
["CLARIANCE INC","CLARIANCE INC"]
["CLARIPHARM","CLARIPHARM"]
["CLCA consulting","CLCA consulting"]
["CLIN DATA MANAGEMENT","CLIN DATA MANAGEMENT"]
["Clinical Trial Consulting","Clinical Trial Consulting"]
["CLINICPROSPORT SAS","CLINICPROSPORT SAS"]
["CLINSEARCH","CLINSEARCH"]
["CLS Paris","CLS Paris"]
["Cochlear France","Cochlear France"]
["Codexial Dermatologie","Codexial Dermatologie"]
["colgate palmolive","colgate palmolive"]
["COLGATE PALMOLIVE EUROPE SARL","COLGATE PALMOLIVE EUROPE SARL"]
["COLLIN","COLLIN"]
["COLOPLAST A/S","COLOPLAST A/S"]
["Coloplast Manufacturing France","Coloplast Manufacturing France"]
["COMM Santé","COMM Santé"]
["COMMUNICATION GLOBALE SANTE","COMMUNICATION GLOBALE SANTE"]
["Conceptus SAS","Conceptus SAS"]
["CONGRES COLLOQUES CONVENTIONS","CONGRES COLLOQUES CONVENTIONS"]
["CONMED France","CONMED France"]
["Consentio","Consentio"]
["ConsuMed Research","ConsuMed Research"]
["CONVATEC Inc.","CONVATEC Inc."]
["Cook France SARL","Cook France SARL"]
["COOPERATION PHARMACEUTIQUE FRANCAISE","COOPERATION PHARMACEUTIQUE FRANCAISE"]
["COOPERVISION SAS","COOPERVISION SAS"]
["CORDIS","CORDIS"]
["CORMOVE","CORMOVE"]
["CORONA MEDICAL SAS","CORONA MEDICAL SAS"]
["CORREVIO","CORREVIO"]
["CORSE OXYGENE","CORSE OXYGENE"]
["CORTEX VISION TECH","CORTEX VISION TECH"]
["Corvia Medical Inc.","Corvia Medical Inc."]
["COSMACT","COSMACT"]
["COSMETIQUE ACTIVE FRANCE","COSMETIQUE ACTIVE FRANCE"]
["COSMETIQUE ACTIVE INTERNATIONAL","COSMETIQUE ACTIVE INTERNATIONAL"]
["Côté Audition","Côté Audition"]
["COUSIN BIOSERV","COUSIN BIOSERV"]
["COUSIN BIOTECH","COUSIN BIOTECH"]
["COUSIN ENDOSURG","COUSIN ENDOSURG"]
["Covalia Interactive","Covalia Interactive"]
["Covance Clinical And Periapproval Services SARL","Covance Clinical And Periapproval Services SARL"]
["Covidien AG","Covidien AG"]
["COVIDIEN FRANCE S.A.S.","COVIDIEN FRANCE S.A.S."]
["CREAFIRST","CREAFIRST"]
["Creativ-Ceutical France","Creativ-Ceutical France"]
["CRISTALENS SA","CRISTALENS SA"]
["CRISTERS","CRISTERS"]
["CROMA","CROMA"]
["CROMA FRANCE SASU","CROMA FRANCE SASU"]
["CRYOLIFE FRANCE","CRYOLIFE FRANCE"]
["CSA","CSA"]
["CSL BEHRING SA","CSL BEHRING SA"]
["CTI Clinical Trial and Consulting Services France SARL","CTI Clinical Trial and Consulting Services France SARL"]
["Cubist Pharmaceuticals France","Cubist Pharmaceuticals France"]
["Cutting Edge","Cutting Edge"]
["CVRx Inc.","CVRx Inc."]
["Cyberonics BVBA","Cyberonics BVBA"]
["Cyberonics SA","Cyberonics SA"]
["Cyble Marketing","Cyble Marketing"]
["DAIICHI SANKYO FRANCE SAS","DAIICHI SANKYO FRANCE SAS"]
["DAKO FRANCE SAS","DAKO FRANCE SAS"]
["Damos","Damos"]
["DÃœRR DENTAL FRANCE","DÃœRR DENTAL FRANCE"]
["Datamonitor Healthcare","Datamonitor Healthcare"]
["DATEXIM","DATEXIM"]
["DATIS NORD","DATIS NORD"]
["David Pruce","David Pruce"]
["DDB Health Paris","DDB Health Paris"]
["DDS Assistance","DDS Assistance"]
["DDSM SARL","DDSM SARL"]
["DEBREGEAS ET ASSOCIES PHARMA","DEBREGEAS ET ASSOCIES PHARMA"]
["DEDIENNE SANTE","DEDIENNE SANTE"]
["DEFI ORTHO","DEFI ORTHO"]
["DENTALINOV","DENTALINOV"]
["DENTAURUM FRANCE","DENTAURUM FRANCE"]
["DENTSPLY FRANCE","DENTSPLY FRANCE"]
["Dentsply Gac Europe","Dentsply Gac Europe"]
["DENTSPLY IH AB","DENTSPLY IH AB"]
["DENTSPLY IH K.K.","DENTSPLY IH K.K."]
["DENTSPLY IH SAS","DENTSPLY IH SAS"]
["DENTSPLY Implants","DENTSPLY Implants"]
["DENTSPLY Implants Manufacturing GmbH","DENTSPLY Implants Manufacturing GmbH"]
["DEPUY France","DEPUY France"]
["Devicor Medical","Devicor Medical"]
["Dexter","Dexter"]
["DFine Europe GmbH","DFine Europe GmbH"]
["DFINE Inc","DFINE Inc"]
["DIABSANTE","DIABSANTE"]
["DIADOM SAS","DIADOM SAS"]
["DIAGAST","DIAGAST"]
["DIAGNOSTICA STAGO","DIAGNOSTICA STAGO"]
["Diamed France SA","Diamed France SA"]
["Diamed GmbH","Diamed GmbH"]
["DIASORIN SA","DIASORIN SA"]
["DIAXONHIT","DIAXONHIT"]
["DIDACTIC","DIDACTIC"]
["DINNO SANTE","DINNO SANTE"]
["Direct Medica","Direct Medica"]
["DIS PAR","DIS PAR"]
["DISMEDIS","DISMEDIS"]
["DISTRICLASS MEDICAL SA","DISTRICLASS MEDICAL SA"]
["DIXI microtechniques","DIXI microtechniques"]
["DJO France SAS","DJO France SAS"]
["DMEDICA","DMEDICA"]
["DOM'AIR","DOM'AIR"]
["Dominique TATE","Dominique TATE"]
["DOMISANTE PROXIMED","DOMISANTE PROXIMED"]
["DON'ORTHO","DON'ORTHO"]
["DR WEIGERT FRANCE SAS","DR WEIGERT FRANCE SAS"]
["Draeger Medical Canada","Draeger Medical Canada"]
["DRÄGER MEDICAL GmbH","DRÄGER MEDICAL GmbH"]
["DRAGER MEDICAL S.A.S.","DRAGER MEDICAL S.A.S."]
["DUFLOT SANTE","DUFLOT SANTE"]
["DUNES MEDICAL","DUNES MEDICAL"]
["DUOTECH","DUOTECH"]
["DUX B.V.","DUX B.V."]
["Dynavie","Dynavie"]
["E Coach Cardio","E Coach Cardio"]
["e(ye)BRAIN","e(ye)BRAIN"]
["Echosens","Echosens"]
["Eckert & Ziegler BEBIG","Eckert & Ziegler BEBIG"]
["ECM PROXIMED","ECM PROXIMED"]
["EDAP TMS France SAS","EDAP TMS France SAS"]
["EDIMARK","EDIMARK"]
["EDITION DE L'INTERLIGNE","EDITION DE L'INTERLIGNE"]
["EDUSANTE","EDUSANTE"]
["EDWARDS LIFESCIENCES","EDWARDS LIFESCIENCES"]
["EDWARDS LIFESCIENCES ALLEMAGNE","EDWARDS LIFESCIENCES ALLEMAGNE"]
["EDWARDS LIFESCIENCES AUSTRALIE","EDWARDS LIFESCIENCES AUSTRALIE"]
["EDWARDS LIFESCIENCES AUTRICHE","EDWARDS LIFESCIENCES AUTRICHE"]
["EDWARDS LIFESCIENCES BELGIQUE","EDWARDS LIFESCIENCES BELGIQUE"]
["EDWARDS LIFESCIENCES BRESIL","EDWARDS LIFESCIENCES BRESIL"]
["EDWARDS LIFESCIENCES CANADA","EDWARDS LIFESCIENCES CANADA"]
["EDWARDS LIFESCIENCES CHINA","EDWARDS LIFESCIENCES CHINA"]
["EDWARDS LIFESCIENCES COREE DU SUD","EDWARDS LIFESCIENCES COREE DU SUD"]
["EDWARDS LIFESCIENCES CORPORATION","EDWARDS LIFESCIENCES CORPORATION"]
["Edwards Lifesciences Danemark","Edwards Lifesciences Danemark"]
["EDWARDS LIFESCIENCES ESPAGNE","EDWARDS LIFESCIENCES ESPAGNE"]
["EDWARDS LIFESCIENCES GRECE","EDWARDS LIFESCIENCES GRECE"]
["EDWARDS LIFESCIENCES IRLANDE","EDWARDS LIFESCIENCES IRLANDE"]
["EDWARDS LIFESCIENCES ISRAEL","EDWARDS LIFESCIENCES ISRAEL"]
["EDWARDS LIFESCIENCES ITALIE","EDWARDS LIFESCIENCES ITALIE"]
["EDWARDS LIFESCIENCES JAPON","EDWARDS LIFESCIENCES JAPON"]
["EDWARDS LIFESCIENCES NORDIC/FINLAND","EDWARDS LIFESCIENCES NORDIC/FINLAND"]
["EDWARDS LIFESCIENCES PAYS-BAS","EDWARDS LIFESCIENCES PAYS-BAS"]
["EDWARDS LIFESCIENCES PORTUGAL","EDWARDS LIFESCIENCES PORTUGAL"]
["EDWARDS LIFESCIENCES REPUBLIQUE TCHEQUE","EDWARDS LIFESCIENCES REPUBLIQUE TCHEQUE"]
["EDWARDS LIFESCIENCES ROYAUME-UNI","EDWARDS LIFESCIENCES ROYAUME-UNI"]
["EDWARDS LIFESCIENCES RUSSIE","EDWARDS LIFESCIENCES RUSSIE"]
["EDWARDS LIFESCIENCES SUEDE","EDWARDS LIFESCIENCES SUEDE"]
["EDWARDS LIFESCIENCES SUISSE","EDWARDS LIFESCIENCES SUISSE"]
["EDWARDS LIFESCIENCES TURQUIE","EDWARDS LIFESCIENCES TURQUIE"]
["EFFICARE SARL","EFFICARE SARL"]
["EFFIK","EFFIK"]
["EG LABO - LABORATOIRES EUROGENERICS","EG LABO - EUROGENERICS"]
["EISAI SAS","EISAI SAS"]
["ELEKTA SAS","ELEKTA SAS"]
["ELIA MEDICAL","ELIA MEDICAL"]
["ELIA MEDICAL MEDITERRANEE","ELIA MEDICAL MEDITERRANEE"]
["ELIA MEDICAL OUEST","ELIA MEDICAL OUEST"]
["ELIA MEDICAL PARIS","ELIA MEDICAL PARIS"]
["ELIA MEDICAL PARIS OUEST","ELIA MEDICAL PARIS OUEST"]
["ELIA SUD OUEST","ELIA SUD OUEST"]
["ELIAMM SARL","ELIAMM SARL"]
["ELITech France","ELITech France"]
["Elixo SAS","Elixo SAS"]
["Elma Research srl","Elma Research srl"]
["ELOI MEDICAL","ELOI MEDICAL"]
["Eloi Pernet","Eloi Pernet"]
["ELSODENT","ELSODENT"]
["EM Services","EM Services"]
["EMA SARL","EMA SARL"]
["EMETROP'","EMETROP'"]
["EMS FRANCE SARL","EMS FRANCE SARL"]
["ENDOCONTROL","ENDOCONTROL"]
["ENDOLOGIX INTERNATIONAL BV","ENDOLOGIX INTERNATIONAL BV"]
["ENTENDRE","ENTENDRE"]
["Eole santé","Eole santé"]
["EOLIS SANTE","EOLIS SANTE"]
["Eos imaging","Eos imaging"]
["EPISKIN","EPISKIN"]
["ERYTECH Pharma","ERYTECH Pharma"]
["esanum GmbH","esanum GmbH"]
["ESAOTE Medical","ESAOTE Medical"]
["ESPACE MEDICAL BOURGES","ESPACE MEDICAL BOURGES"]
["espace medical medic centre","espace medical medic centre"]
["ESPACE MEDICAL MONTLUCON","ESPACE MEDICAL MONTLUCON"]
["ESPACE MEDICAL MOULINS","ESPACE MEDICAL MOULINS"]
["espace medical nevers","espace medical nevers"]
["espace medical vichy","espace medical vichy"]
["esprimed","esprimed"]
["Essilor","Essilor"]
["ESSOR FRANCE","ESSOR FRANCE"]
["Et Si ?","Et Si ?"]
["ETHICON","ETHICON"]
["ethimedix","ethimedix"]
["ETHYPHARM","ETHYPHARM"]
["EUMEDICA s.a.","EUMEDICA s.a."]
["EURAXI PHARMA","EURAXI PHARMA"]
["EURL Antoine Durouchez Audition","EURL Antoine Durouchez Audition"]
["Eurl Chaudemanche","Eurl Chaudemanche"]
["eurl generale d'optique","eurl generale d'optique"]
["Eurl Pharmacie Cantarelli","Eurl Pharmacie Cantarelli"]
["EUROBIO","EUROBIO"]
["Eurodep Exploitant","Eurodep Exploitant"]
["EUROFINS OPTIMED","EUROFINS OPTIMED"]
["EUROFINS OPTIMED LYON","EUROFINS OPTIMED LYON"]
["EUROMEDICA IMAGING","EUROMEDICA IMAGING"]
["EUROMEDS","EUROMEDS"]
["EUROPHTA","EUROPHTA"]
["EUROS SAS","EUROS SAS"]
["EUROSAFE","EUROSAFE"]
["EUROSILICONE SAS","EUROSILICONE SAS"]
["EUROSPINE SARL","EUROSPINE SARL"]
["EUROTEKNIKA","EUROTEKNIKA"]
["EUSA Pharma (France) SAS","EUSA Pharma (France) SAS"]
["EUSA PHARMA SAS","EUSA PHARMA SAS"]
["EV3 EUROPE S.A.S.","EV3 EUROPE S.A.S."]
["EVALYS SAS","EVALYS SAS"]
["EVAUX Laboratoires","EVAUX Laboratoires"]
["EVIC FRANCE","EVIC FRANCE"]
["EVIDENCE BASED COMMUNICATION","EVIDENCE BASED COMMUNICATION"]
["EVOLUTIS","EVOLUTIS"]
["EXACTECH FRANCE SAS","EXACTECH FRANCE SAS"]
["EXACTECH INTERNATIONAL OPERATION Ltd.","EXACTECH INTERNATIONAL OPERATION Ltd."]
["EXAFIELD","EXAFIELD"]
["EXPERF AQUITAINE","EXPERF AQUITAINE"]
["EXPERF AUVERGNE","EXPERF AUVERGNE"]
["EXPERF COTE D'AZUR","EXPERF COTE D'AZUR"]
["EXPERF DROME","EXPERF DROME"]
["EXPERF ISERE","EXPERF ISERE"]
["EXPERF LANGUEDOC ROUSSILLON","EXPERF LANGUEDOC ROUSSILLON"]
["EXPERF LORRAINE","EXPERF LORRAINE"]
["EXPERF MIDI PYRENEES","EXPERF MIDI PYRENEES"]
["EXPERF NORD","EXPERF NORD"]
["EXPERF NORMANDIE","EXPERF NORMANDIE"]
["EXPERF PACA","EXPERF PACA"]
["EXPERF PYRENEES ORIENTALES","EXPERF PYRENEES ORIENTALES"]
["EXPERF RHONE ALPES","EXPERF RHONE ALPES"]
["EXPERF VAUCLUSE DROME","EXPERF VAUCLUSE DROME"]
["EXPERTISE RESEARCH","EXPERTISE RESEARCH"]
["EYETECHCARE","EYETECHCARE"]
["Fab'entech","Fab'entech"]
["FAGRON","FAGRON"]
["FARCODERM France","FARCODERM France"]
["FCI SAS","FCI SAS"]
["FeetMe","FeetMe"]
["FERRING SAS","FERRING SAS"]
["FFF AUDIO","FFF AUDIO"]
["FH ORTHOPEDICS","FH ORTHOPEDICS"]
["Field Scope Int Ltd","Field Scope Int Ltd"]
["FII","FII"]
["FIMED","FIMED"]
["FINANCIERE BATTEUR","FINANCIERE BATTEUR"]
["FINOX BIOTECH FRANCE SARL","FINOX BIOTECH FRANCE SARL"]
["Firme","Firme"]
["FISHER & PAYKEL HEALTHCARE SAS","FISHER & PAYKEL HEALTHCARE SAS"]
["FISHER SCIENTIFIC SAS","FISHER SCIENTIFIC SAS"]
["FLUOPTICS","FLUOPTICS"]
["FOVEA PHARMACEUTICALS","FOVEA PHARMACEUTICALS"]
["France Oxygène","France Oxygène"]
["FRANCHIS OPTIQUE AUDITION DE LA SCELLERIE","FRANCHIS OPTIQUE AUDITION DE LA SCELLERIE"]
["FRANCOPIA","FRANCOPIA"]
["FRESENIUS KABI FRANCE","FRESENIUS KABI FRANCE"]
["Fresenius Medical Care France S.A.S.","Fresenius Medical Care France S.A.S."]
["FRESENIUS VIAL","FRESENIUS VIAL"]
["FUJIFILM Medical Systems France","FUJIFILM Medical Systems France"]
["Fujifilm Sonosite France SARL","Fujifilm Sonosite France SARL"]
["FUJIREBIO FRANCE SARL","FUJIREBIO FRANCE SARL"]
["FUKUDA DENSHI CO., LTD","FUKUDA DENSHI CO., LTD"]
["FUMOUZE DIAGNOSTICS - SOFIBEL","FUMOUZE DIAGNOSTICS - SOFIBEL"]
["Future Thinking France","Future Thinking France"]
["FV Clinical","FV Clinical"]
["FX SOLUTIONS","FX SOLUTIONS"]
["GACD","GACD"]
["galderma international","galderma international"]
["Galderma Research & Development","Galderma Research & Development"]
["GaldermaQMed","GaldermaQMed"]
["GALLILEO BUSINESS CONSULTING","GALLILEO BUSINESS CONSULTING"]
["GAMAIN LEGROS","GAMAIN LEGROS"]
["GAMBRO HOSPAL SAS","GAMBRO HOSPAL SAS"]
["GAMBRO INDUSTRIES","GAMBRO INDUSTRIES"]
["GAMIDA","GAMIDA"]
["GC FRANCE SAS","GC FRANCE SAS"]
["GC Orthodonics Europe GmbH","GC Orthodonics Europe GmbH"]
["GC TECHNOLOGY","GC TECHNOLOGY"]
["GE HEALTHCARE SAS","GE HEALTHCARE SAS"]
["GE Medical Systems SCS","GE Medical Systems SCS"]
["GECEM","GECEM"]
["GEDEON RICHTER France - Division Santé de la Femme","GEDEON RICHTER France - Division Santé de la Femme"]
["GEISTLICH PHARMA FRANCE","GEISTLICH PHARMA FRANCE"]
["GemSeek","GemSeek"]
["Genactis SAS","Genactis SAS"]
["GENBIOTECH","GENBIOTECH"]
["Genen-Tech Inc","Genen-Tech Inc"]
["GENERIC IMPLANTS","GENERIC IMPLANTS"]
["generique international","generique international"]
["GENETHON","GENETHON"]
["GeNeuro","GeNeuro"]
["GeNeuro Innovation","GeNeuro Innovation"]
["GENEWAVE S.A.S","GENEWAVE S.A.S"]
["Genmab A/S","Genmab A/S"]
["GENOMIC HEALTH","GENOMIC HEALTH"]
["GENTICEL","GENTICEL"]
["Genzyme","Genzyme"]
["GENZYME POLYCLONALS","GENZYME POLYCLONALS"]
["GEP Santé","GEP Santé"]
["Gesellschaft für Konsumforschung (GfK SE)","Gesellschaft für Konsumforschung (GfK SE)"]
["GETINGE France","GETINGE France"]
["GFK ISL CUSTOM RESEARCH FRANCE","GFK ISL CUSTOM RESEARCH FRANCE"]
["GfK Market Access","GfK Market Access"]
["GfK NOP","GfK NOP"]
["GIBAUD","GIBAUD"]
["GIE DIALYSE SERVICES","GIE DIALYSE SERVICES"]
["GIFRER BARBEZAT","GIFRER BARBEZAT"]
["GILEAD SCIENCES","GILEAD SCIENCES"]
["GIM France","GIM France"]
["Gina","Gina"]
["GIVEN IMAGING","GIVEN IMAGING"]
["GlaxoSmithKline Biologicals","GlaxoSmithKline Biologicals"]
["GLAXOSMITHKLINE SANTE GRAND PUBLIC","GLAXOSMITHKLINE SANTE GRAND PUBLIC"]
["GLOBAL D","GLOBAL D"]
["GLOBAL MEDIA SANTE","GLOBAL MEDIA SANTE"]
["Globe Life Sciences","Globe Life Sciences"]
["GLocal Mind Inc","GLocal Mind Inc"]
["GLPTest","GLPTest"]
["gn hearing sas","gn hearing sas"]
["GN OTOMETRICS","GN OTOMETRICS"]
["GNB AUDIO 7","GNB AUDIO 7"]
["GNM Healthcare Consulting Ltd","GNM Healthcare Consulting Ltd"]
["GRAFTYS SA","GRAFTYS SA"]
["GREAT PROJECTS 66","GREAT PROJECTS 66"]
["Grey Healthcare Paris","Grey Healthcare Paris"]
["GRIFOLS France","GRIFOLS France"]
["Groupe d'Etudes pour la Chirurgie Osseuse","Groupe d'Etudes pour la Chirurgie Osseuse"]
["GROUPE LEPINE","GROUPE LEPINE"]
["GROUPE SEBBIN","GROUPE SEBBIN"]
["GROUPE WELCOOP","GROUPE WELCOOP"]
["GT Urological, LLC","GT Urological, LLC"]
["GTO","GTO"]
["Guerbet","Guerbet"]
["GUERBET France","Guerbet"]
["GUILDE DES LUNETIERS","GUILDE DES LUNETIERS"]
["GXEL MEDICAL SARL","GXEL MEDICAL SARL"]
["H.A.C.Pharma","H.A.C.Pharma"]
["H32","H32"]
["H4D","H4D"]
["HALYARD France","HALYARD France"]
["HANDI PHARM ATLANTIQUE","HANDI PHARM ATLANTIQUE"]
["HANDI PHARM CHARENTES","HANDI PHARM CHARENTES"]
["HANDI PHARM GROUPE","HANDI PHARM GROUPE"]
["HANDI PHARM LIMOUSIN","HANDI PHARM LIMOUSIN"]
["HANDI PHARM NORMANDIE","HANDI PHARM NORMANDIE"]
["HANDI PHARM OCEAN","HANDI PHARM OCEAN"]
["HANDI PHARM PERCHE","HANDI PHARM PERCHE"]
["HANDI PHARM POITOU","HANDI PHARM POITOU"]
["HANSATON","HANSATON"]
["Hansen Medical, Inc.","Hansen Medical, Inc."]
["HARD CAB'","HARD CAB'"]
["HAVAS LIFE PARIS","HAVAS LIFE PARIS"]
["HD MEDICAL","HD MEDICAL"]
["Health Advances","Health Advances"]
["HEALTHCARE COMPLIANCE CONSULTING FRANCE SAS","HEALTHCARE COMPLIANCE CONSULTING FRANCE SAS"]
["HEALTHCAREGEN COMMUNICATION","HEALTHCAREGEN COMMUNICATION"]
["HEARTWARE FRANCE","HEARTWARE FRANCE"]
["HeartWare Inc.","HeartWare Inc."]
["HELP ORTHO PRODUCTION","HELP ORTHO PRODUCTION"]
["HEMA.T MEDICAL","HEMA.T MEDICAL"]
["HEMODIA SAS","HEMODIA SAS"]
["HEMOTECH","HEMOTECH"]
["HENRY SCHEIN FRANCE SCA","HENRY SCHEIN FRANCE SCA"]
["HERAEUS","HERAEUS"]
["HERAEUS KULZER FRANCE","HERAEUS KULZER FRANCE"]
["HERINOMENJANAHARY ZAFITSARA","HERINOMENJANAHARY ZAFITSARA"]
["HEXACATH FRANCE","HEXACATH FRANCE"]
["HEXAMEDICAL SAS","HEXAMEDICAL SAS"]
["HILL-ROM S.A.S.","HILL-ROM S.A.S."]
["HITACHI MEDICAL SYSTEMS SAS","HITACHI MEDICAL SYSTEMS SAS"]
["Hogan Lovells International LLP","Hogan Lovells International LLP"]
["Holaira, Inc.","Holaira, Inc."]
["HOLLISTER FRANCE Incorporated","HOLLISTER FRANCE Incorporated"]
["HOLOGIC","HOLOGIC"]
["Hologic Deutschland GmbH","Hologic Deutschland GmbH"]
["HOME AIR","HOME AIR"]
["HOMEDIS SANTE","HOMEDIS SANTE"]
["Homeperf","Homeperf"]
["HORIBA ABX SAS","HORIBA ABX SAS"]
["HORMETA FRANCE","HORMETA FRANCE"]
["horus pharma","horus pharma"]
["HOSPIDOM","HOSPIDOM"]
["HOSPIRA FRANCE","HOSPIRA"]
["HOYA LENS FRANCE SAS","HOYA LENS FRANCE SAS"]
["HOYA Surgical Optics GmbH","HOYA Surgical Optics GmbH"]
["HRA PHARMA FRANCE","HRA PHARMA FRANCE"]
["H-research Asia","H-research Asia"]
["HUERRE ALAIN FRANCOIS","HUERRE ALAIN FRANCOIS"]
["HUMANAIR MEDICAL","HUMANAIR MEDICAL"]
["HYPHEN BIOMED SAS","HYPHEN BIOMED SAS"]
["Hyprevention sas","Hyprevention sas"]
["I.CERAM","I.CERAM"]
["ICARE","ICARE"]
["ICOMED","Icomed"]
["ICON CLINICAL RESEARCH SARL","ICON CLINICAL RESEARCH SARL"]
["ICON CLINICAL RESEARCH UK LIMITED","ICON CLINICAL RESEARCH UK LIMITED"]
["ICTA PROJECT MANAGEMENT","ICTA PROJECT MANAGEMENT"]
["Ideal Gourmet","Ideal Gourmet"]
["IDEC 56","IDEC 56"]
["ID-NEST Medical","ID-NEST Medical"]
["idrm","idrm"]
["IFOP","IFOP"]
["IHEALTHLABS","IHEALTHLABS"]
["Illumina France","Illumina France"]
["IMACCESS","IMACCESS"]
["IMACTIS","IMACTIS"]
["IMAGO RESEARCH","IMAGO RESEARCH"]
["Imaxio","Imaxio"]
["Immucor France","Immucor France"]
["ImmunoDiagnostic Systems SAS","ImmunoDiagnostic Systems SAS"]
["IMPACT MEDICOM","IMPACT MEDICOM"]
["IMPETO MEDICAL","IMPETO MEDICAL"]
["IMPLANET SA","IMPLANET SA"]
["IMPLANTS SERVICE ORTHOPEDIE","IMPLANTS SERVICE ORTHOPEDIE"]
["IMS Health Belgique","IMS Health Belgique"]
["IMS Health Cambridge","IMS Health Cambridge"]
["IMS HEALTH SAS","IMS HEALTH SAS"]
["IMS Medical Radar","IMS Medical Radar"]
["In2Bones","In2Bones"]
["INC RESEARCH, LLC","INC RESEARCH, LLC"]
["Incyte Corporation","Incyte Corporation"]
["Indigo Medical","Indigo Medical"]
["INFECO","INFECO"]
["INGEN","INGEN"]
["INNATE PHARMA","INNATE PHARMA"]
["InnOpath sarl","InnOpath sarl"]
["INNOPSYS","INNOPSYS"]
["Innothera Chouzy","Innothera Chouzy"]
["Innothera Services","Innothera Services"]
["INOVITALE","INOVITALE"]
["INRESA Sarl","INRESA Sarl"]
["Insight Research Group","Insight Research Group"]
["INSMED France SAS","INSMED France SAS"]
["INSMED INCORPORATED","INSMED INCORPORATED"]
["INSTITUT DE BIOTECHNOLOGIES J. BOY","INSTITUT DE BIOTECHNOLOGIES J. BOY"]
["INSTITUT GEORGES LOPEZ","INSTITUT GEORGES LOPEZ"]
["INSTITUT MERIEUX","INSTITUT MERIEUX"]
["INSTITUT STERLING COOPER","INSTITUT STERLING COOPER"]
["Integra LifeSciences Services (France)","Integra LifeSciences Services (France)"]
["Integra MicroFrance","Integra MicroFrance"]
["Integra NeuroSciences Implants (France)","Integra NeuroSciences Implants (France)"]
["INTEGRAL ORTHO","INTEGRAL ORTHO"]
["INTER ORTHO","INTER ORTHO"]
["Intercept Pharma France SAS","Intercept Pharma France SAS"]
["Intercept Pharmaceuticals Inc.","Intercept Pharmaceuticals Inc."]
["InterMune France SAS","InterMune France SAS"]
["InterMune International AG","InterMune International AG"]
["INTERSURGICAL SARL","INTERSURGICAL SARL"]
["Inter-View Partners France","Inter-View Partners France"]
["INTUITIVE SURGICAL SARL","INTUITIVE SURGICAL SARL"]
["INVACARE POIRIER SAS","INVACARE POIRIER SAS"]
["INVENTIVA","INVENTIVA"]
["Inventivhealthclinical","Inventivhealthclinical"]
["IP Santé domicile","IP Santé domicile"]
["IPAD Médical","IPAD Médical"]
["Ipanema Healthcare Consulting","Ipanema Healthcare Consulting"]
["IPPMed GmbH","IPPMed GmbH"]
["IPSEN INNOVATION","IPSEN INNOVATION"]
["IPSEN PHARMA","IPSEN PHARMA"]
["IPSEN PHARMA BIOTECH","IPSEN PHARMA BIOTECH"]
["Ipsos (France)","Ipsos (France)"]
["Ipsos Insight LLC","Ipsos Insight LLC"]
["Ipsos Mori UK Limited","Ipsos Mori UK Limited"]
["Ipsos Observer","Ipsos Observer"]
["Iris Pharma","Iris Pharma"]
["ISIS ADOUR","ISIS ADOUR"]
["ISIS ATLANTIQUE","ISIS ATLANTIQUE"]
["ISIS COTE D'AZUR","ISIS COTE D'AZUR"]
["ISIS DIABETE","ISIS DIABETE"]
["ISIS DIABETE EST","ISIS DIABETE EST"]
["ISIS DIABETE SERVICE","ISIS DIABETE SERVICE"]
["ISIS DIABETE SUD","ISIS DIABETE SUD"]
["ISIS GUADELOUPE","ISIS GUADELOUPE"]
["ISIS LANGUEDOC ROUSSILLON","ISIS LANGUEDOC ROUSSILLON"]
["ISIS MARTINIQUE","ISIS MARTINIQUE"]
["ISIS MÉDICAL VAR","ISIS MÉDICAL VAR"]
["Isis Méditerranée","Isis Méditerranée"]
["ISIS MIDI PYRENEES","ISIS MIDI PYRENEES"]
["ISIS NORMANDIE","ISIS NORMANDIE"]
["ISIS PARIS EST","ISIS PARIS EST"]
["ISIS PARIS NORD","ISIS PARIS NORD"]
["ISIS PARIS NORMANDIE","ISIS PARIS NORMANDIE"]
["ISIS PARIS OUEST","ISIS PARIS OUEST"]
["ISIS PARIS SUD","ISIS PARIS SUD"]
["ISIS PAYS DE LA LOIRE","ISIS PAYS DE LA LOIRE"]
["ISIS PERFUSION","ISIS PERFUSION"]
["ISIS PERFUSION NORD","ISIS PERFUSION NORD"]
["ISIS RHONE ALPES","ISIS RHONE ALPES"]
["ITEC SERVICES","ITEC SERVICES"]
["ITEM","ITEM"]
["ITENA CLINICAL","ITENA CLINICAL"]
["Ivoclar Vivadent SAS","Ivoclar Vivadent SAS"]
["IVTEC (Iol Vision Technology)","IVTEC (Iol Vision Technology)"]
["IXAIR","IXAIR"]
["IXAIR ASSISTANCE","IXAIR ASSISTANCE"]
["IXXI","IXXI"]
["JANSSEN-CILAG","Janssen-Cilag"]
["Jean-Manuel Toussaint, IHMT","Jean-Manuel Toussaint, IHMT"]
["JLM MEDICAL","JLM MEDICAL"]
["Johnson & Johnson Diabetes Institute SAS","Johnson & Johnson Diabetes Institute SAS"]
["Johnson et Johnson Santé Beauté France","Johnson et Johnson Santé Beauté France"]
["JOTEC GmbH","JOTEC GmbH"]
["Julius Zorn GmbH","Julius Zorn GmbH"]
["Junicon","Junicon"]
["Junicon Europe SL","Junicon Europe SL"]
["K. PARTICULIER","K. PARTICULIER"]
["Kadence international","Kadence international"]
["Kantar Health","Kantar Health"]
["Kappa Santé","Kappa Santé"]
["KARL STORZ ENDOSCOPIE FRANCE SAS","KARL STORZ ENDOSCOPIE FRANCE SAS"]
["Karl Storz Gmbh and co KG","Karl Storz Gmbh and co KG"]
["KARUKERA AUDITION","KARUKERA AUDITION"]
["Karyopharm Therapeutics Inc.","Karyopharm Therapeutics Inc."]
["KASIOS","KASIOS"]
["Kavo Dental SAS","Kavo Dental SAS"]
["KCI EUROPE HOLDING B.V.","KCI EUROPE HOLDING B.V."]
["KCI KK JAPAN","KCI KK JAPAN"]
["KCI MEDICAL (CHINA) CO. LTD.","KCI MEDICAL (CHINA) CO. LTD."]
["KEBOMED","KEBOMED"]
["KEOCYT","KEOCYT"]
["KEPHREN","KEPHREN"]
["KeyQuest Health Ltd","KeyQuest Health Ltd"]
["KeyQuest Health Ltd.","KeyQuest Health Ltd."]
["KEYSTONE DENTAL SAS","KEYSTONE DENTAL SAS"]
["Kimberly-Clark SAS","Kimberly-Clark SAS"]
["KINETIC CONCEPTS, INC.","KINETIC CONCEPTS, INC."]
["KISCO International","KISCO International"]
["KOELIS","KOELIS"]
["KOMET FRANCE","KOMET FRANCE"]
["KPL","KPL"]
["KRKA FRANCE EURL","KRKA FRANCE EURL"]
["Kuraray Europe France","Kuraray Europe France"]
["KYD ORTHOPEDIE","KYD ORTHOPEDIE"]
["L&L Rsourcing","L&L Rsourcing"]
["LA DIFFUSION TECHNIQUE FRANCAISE","LA DIFFUSION TECHNIQUE FRANCAISE"]
["LA FONDERIE","LA FONDERIE"]
["LA REGIE PUBLIQUE","LA REGIE PUBLIQUE"]
["LA SOLUTION AUDITIVE","LA SOLUTION AUDITIVE"]
["Lab Marketing SL","Lab Marketing SL"]
["LABCATAL","LABCATAL"]
["LABODIAL","LABODIAL"]
["Laboratoier Innotech international","Laboratoier Innotech international"]
["Laboratoire AGUETTANT, Société par Actions Simplifiée","AGUETTANT, Société par Actions Simplifiée"]
["LABORATOIRE ATO-ZIZINE","ATO-ZIZINE"]
["laboratoire audioprothèse lorrain","audioprothèse lorrain"]
["laboratoire BAUSCH&LOMB","BAUSCH&LOMB"]
["Laboratoire Bioderma","Bioderma"]
["LABORATOIRE BIODIM","BIODIM"]
["Laboratoire CAT","CAT"]
["Laboratoire CCD","CCD"]
["LABORATOIRE CORRECTION AUDITIVE DRAGUIGNAN","CORRECTION AUDITIVE DRAGUIGNAN"]
["LABORATOIRE CORRECTION AUDITIVE ST RAPHAEL-FREJUS","CORRECTION AUDITIVE ST RAPHAEL-FREJUS"]
["LABORATOIRE COSMETIQUE DE LECOUSSE","COSMETIQUE DE LECOUSSE"]
["Laboratoire de correction auditive","de correction auditive"]
["Laboratoire de correction auditive d'Aix en Provence","de correction auditive d'Aix en Provence"]
["laboratoire de correction auditive d'Aubagne","de correction auditive d'Aubagne"]
["LABORATOIRE DE CORRECTION AUDITIVE D'AVIGNON SAINT ROCH","DE CORRECTION AUDITIVE D'AVIGNON SAINT ROCH"]
["LABORATOIRE DE CORRECTION AUDITIVE DE CAVAILLON","DE CORRECTION AUDITIVE DE CAVAILLON"]
["laboratoire de correction auditive de dijon","de correction auditive de dijon"]
["LABORATOIRE DE CORRECTION AUDITIVE DE ISTRES","DE CORRECTION AUDITIVE DE ISTRES"]
["Laboratoire de correction auditive de lambesc","de correction auditive de lambesc"]
["LABORATOIRE DE CORRECTION AUDITIVE DE MARTIGUES","DE CORRECTION AUDITIVE DE MARTIGUES"]
["LABORATOIRE DE CORRECTION AUDITIVE DE TOULON","DE CORRECTION AUDITIVE DE TOULON"]
["Laboratoire de Correction Auditive de Villeneuve lez Avignon","de Correction Auditive de Villeneuve lez Avignon"]
["laboratoire de correction auditive Sylvain Chopinaud","de correction auditive Sylvain Chopinaud"]
["LABORATOIRE DE CORRECTION DE LA SURDITE","DE CORRECTION DE LA SURDITE"]
["laboratoire de correction de l'audition","de correction de l'audition"]
["Laboratoire de Dermocosmétique Active Docteur Pierre Ricaud","de Dermocosmétique Active Docteur Pierre Ricaud"]
["LABORATOIRE DE DIFFUSION DE PRODUITS DE SANTE APPLIQUEE","DE DIFFUSION DE PRODUITS DE SANTE APPLIQUEE"]
["LABORATOIRE DE LA MER","DE LA MER"]
["LABORATOIRE DENSMORE","DENSMORE"]
["Laboratoire DERMSCAN","DERMSCAN"]
["LABORATOIRE DES GRANIONS","DES GRANIONS"]
["LABORATOIRE DISSOLVUROL","DISSOLVUROL"]
["Laboratoire du Dermophil Indien","Dermophil Indien"]
["LABORATOIRE EREMPHARMA","EREMPHARMA"]
["LABORATOIRE FLORENCE VERJUS","FLORENCE VERJUS"]
["Laboratoire français du Fractionnement et des Biotechnologies","LFB"]
["Laboratoire GANDHOUR","GANDHOUR"]
["LABORATOIRE GLAXOSMITHKLINE","GSK"]
["Laboratoire HEPATOUM","HEPATOUM"]
["Laboratoire Innothera","Innothéra"]
["LABORATOIRE JALDES","JALDES"]
["LABORATOIRE KCI MEDICAL","KCI MEDICAL"]
["Laboratoire Kreussler pharma","Kreussler pharma"]
["laboratoire leblanc et associés","leblanc et associés"]
["LABORATOIRE MENE ET MOY","MENE ET MOY"]
["Laboratoire MSD Chibret","MSD France"]
["LABORATOIRE NOVEX PHARMA","NOVEX PHARMA"]
["LABORATOIRE NUXE","NUXE"]
["Laboratoire PEDIACT","PEDIACT"]
["Laboratoire PHARMASTRA","PHARMASTRA"]
["Laboratoire Protec'Som","Protec'Som"]
["LABORATOIRE RENAUDIN","RENAUDIN"]
["Laboratoire SCIENCEX","SCIENCEX"]
["LABORATOIRE SOBER","SOBER"]
["LABORATOIRE TETRA MEDICAL","TETRA MEDICAL"]
["Laboratoire TRADIPHAR","TRADIPHAR"]
["LABORATOIRE UNITHER","UNITHER"]
["LABORATOIRES ALCON","ALCON"]
["LABORATOIRES ALTER","ALTER"]
["LABORATOIRES ARION","ARION"]
["Laboratoires ARKOPHARMA","ARKOPHARMA"]
["Laboratoires AUVEX","AUVEX"]
["Laboratoires Bailleul","Bailleul"]
["Laboratoires BESINS INTERNATIONAL","BESINS INTERNATIONAL"]
["LABORATOIRES BOUCHARA - RECORDATI","BOUCHARA - RECORDATI"]
["LABORATOIRES BROTHIER","BROTHIER"]
["Laboratoires Carilène","Carilène"]
["LABORATOIRES CHAIX ET DU MARAIS","CHAIX ET DU MARAIS"]
["LABORATOIRES CLARINS","CLARINS"]
["LABORATOIRES COLOPLAST","COLOPLAST"]
["LABORATOIRES CONVATEC","CONVATEC"]
["Laboratoires Crinex","Crinex"]
["LABORATOIRES CTRS","CTRS"]
["Laboratoires CYCLOPHARMA","CYCLOPHARMA"]
["Laboratoires de Biologie Marine Daniel Jouvance","de Biologie Marine Daniel Jouvance"]
["Laboratoires de Biologie Végétale Yves Rocher","de Biologie Végétale Yves Rocher"]
["Laboratoires DELBERT","DELBERT"]
["laboratoires dermatologiques d'Uriage","dermatologiques d'Uriage"]
["Laboratoires des Réalisations Thérapeutiques ELERTE","des Réalisations Thérapeutiques ELERTE"]
["Laboratoires Doliage","Doliage"]
["Laboratoires ETHYPHARM","ETHYPHARM"]
["Laboratoires Expanscience","Expanscience"]
["LABORATOIRES GENEVRIER","GENEVRIER"]
["LABORATOIRES GERDA","GERDA"]
["LABORATOIRES GILBERT","GILBERT"]
["LABORATOIRES GRIMBERG SA","GRIMBERG SA"]
["Laboratoires Grünenthal SAS","Grünenthal"]
["Laboratoires INELDEA","INELDEA"]
["Laboratoires inneov SNC","inneov SNC"]
["Laboratoires IPRAD PHARMA","IPRAD PHARMA"]
["LABORATOIRES JOLLY-JATEL","JOLLY-JATEL"]
["Laboratoires Juva Production","Juva Production"]
["Laboratoires Juva Santé","Juva Santé"]
["LABORATOIRES JUVISE PHARMACEUTICALS","JUVISE PHARMACEUTICALS"]
["LABORATOIRES LEHNING SAS","LEHNING SAS"]
["Laboratoires Leurquin Mediolanum","Leurquin Mediolanum"]
["Laboratoires Lohmann & Rauscher","Lohmann & Rauscher"]
["LABORATOIRES M&L","M&L"]
["Laboratoires MAJORELLE","MAJORELLE"]
["LABORATOIRES MAYOLY SPINDLER","MAYOLY SPINDLER"]
["Laboratoires Moulin Royal Cosmetics","Moulin Royal Cosmetics"]
["Laboratoires NEGMA","NEGMA"]
["LABORATOIRES NIGY","NIGY"]
["LABORATOIRES NOREVA LED","NOREVA LED"]
["LABORATOIRES OMEGA PHARMA FRANCE","OMEGA PHARMA FRANCE"]
["Laboratoires PHARMA 2000","PHARMA 2000"]
["LABORATOIRES PHARMACEUTIQUES DEXO","PHARMACEUTIQUES DEXO"]
["LABORATOIRES PHARMY II","PHARMY II"]
["Laboratoires PRED","PRED"]
["LABORATOIRES SUPER DIET","SUPER DIET"]
["Laboratoires SVR France","SVR France"]
["Laboratoires TERUMO S.A","TERUMO S.A"]
["Laboratoires THEA","THEA"]
["Laboratoires TONIPHARM SARL","TONIPHARM SARL"]
["LABORATOIRES URGO","URGO"]
["Laboratoires URSAPHARM SAS","URSAPHARM SAS"]
["LABORATORY IMPLANT MEDICAL DEVICE - LIMMED","LABORATORY IMPLANT MEDICAL DEVICE - LIMMED"]
["Labvoratoire CHAUVIN","Labvoratoire CHAUVIN"]
["Lamidey Noury Medical","Lamidey Noury Medical"]
["larm-o-tec","larm-o-tec"]
["LARS","LARS"]
["LASER","LASER"]
["LASOL ROYAN","LASOL ROYAN"]
["LAUVAL","LAUVAL"]
["LCA S.A.","LCA S.A."]
["LDR Médical","LDR Médical"]
["Leica Biosystems Nussloch GmbH","Leica Biosystems Nussloch GmbH"]
["Leica Microsystèmes SAS","Leica Microsystèmes SAS"]
["Leica Microsystems Inc.","Leica Microsystems Inc."]
["LeMaitre Vascular SAS","LeMaitre Vascular SAS"]
["LEN Médical","LEN Médical"]
["LENTILLES SAS","LENTILLES SAS"]
["L'Entreprise Médicale","L'Entreprise Médicale"]
["LEO Pharma","LEO Pharma"]
["LES LABORATOIRES OSTEAL MEDICAL","LES OSTEAL MEDICAL"]
["LES LABORATOIRES SERVIER","LES SERVIER"]
["LES SALONS DU PALAIS ROYAL SHISEIDO","LES SALONS DU PALAIS ROYAL SHISEIDO"]
["LFB BIOMANUFACTURING","LFB"]
["LFB BIOMEDICAMENTS","LFB"]
["LFB BIOTECHNOLOGIES","LFB"]
["LIFE PARTNERS EUROPE","LIFE PARTNERS EUROPE"]
["Life Technologies Corporation","Life Technologies Corporation"]
["LIFE TECHNOLOGIES SAS","LIFE TECHNOLOGIES SAS"]
["LifeCell EMEA Limited","LifeCell EMEA Limited"]
["Lifescan","Lifescan"]
["Lilly France SAS","Lilly"]
["LIMA FRANCE","LIMA FRANCE"]
["LINDE FRANCE","LINDE FRANCE"]
["LINDE HOMECARE FRANCE SAS","LINDE HOMECARE FRANCE SAS"]
["LION / SENECA FRANCE AUDIO","LION / SENECA FRANCE AUDIO"]
["Lipomed GmbH","Lipomed GmbH"]
["Listening Pharma","Listening Pharma"]
["LIVE ! BY GL EVENTS","LIVE ! BY GL EVENTS"]
["LKN MEDICAL SARL","LKN MEDICAL SARL"]
["Lohmann & Rauscher International GmbH & Co KG","Lohmann & Rauscher International GmbH & Co KG"]
["LOL PHARMA","LOL PHARMA"]
["LONGUEUR D'ONDES","LONGUEUR D'ONDES"]
["L'OREAL S.A.","L'OREAL S.A."]
["LPV","LPV"]
["LUCANE PHARMA","LUCANE PHARMA"]
["LUCAS MEYER COSMETICS","LUCAS MEYER COSMETICS"]
["Lumenis Ltd.","Lumenis Ltd."]
["LUNDBECK SAS","LUNDBECK SAS"]
["LV2","LV2"]
["LVL MEDICAL CENTRE EST","LVL MEDICAL CENTRE EST"]
["LVL MEDICAL EST","LVL MEDICAL EST"]
["LVL MEDICAL GROUPE","LVL MEDICAL GROUPE"]
["LVL MEDICAL OUEST","LVL MEDICAL OUEST"]
["LVL MEDICAL PARIS ET NORD","LVL MEDICAL PARIS ET NORD"]
["LVL MEDICAL SUD","LVL MEDICAL SUD"]
["LVL MEDICAL SUD OUEST","LVL MEDICAL SUD OUEST"]
["LYON KLEBER SANTE","LYON KLEBER SANTE"]
["M3 Global Research Ltd","M3 Global Research Ltd"]
["MACO PHARMA","MACO PHARMA"]
["MACO PRODUCTIONS","MACO PRODUCTIONS"]
["MALLINCKRODT FRANCE SARL","MALLINCKRODT FRANCE SARL"]
["MANTARAY","MANTARAY"]
["MAPI SAS","MAPI SAS"]
["MAQUET SAS","MAQUET SAS"]
["MARIE AMELIE LENOIR CONSULTING - VICTA CONSEIL","MARIE AMELIE LENOIR CONSULTING - VICTA CONSEIL"]
["MARINA","MARINA"]
["mark'ennovy SARL","mark'ennovy SARL"]
["MARKET VISION","MARKET VISION"]
["MARQUAT GENIE BIOMEDICAL","MARQUAT GENIE BIOMEDICAL"]
["MARQUE VERTE WELCOOP SANTE","MARQUE VERTE WELCOOP SANTE"]
["MASIMO","MASIMO"]
["MAST THERAPEUTICS","MAST THERAPEUTICS"]
["Mathys Orthopédie","Mathys Orthopédie"]
["Mauna Kea Technologies","Mauna Kea Technologies"]
["MAVALA FRANCE SA","MAVALA FRANCE SA"]
["MCCANN HEALTHCARE","MCCANN HEALTHCARE"]
["MD HANDICAP ET SOINS","MD HANDICAP ET SOINS"]
["MD ORTHO","MD ORTHO"]
["MDC-Partners","MDC-Partners"]
["Mdoloris Medical Systems","Mdoloris Medical Systems"]
["MED OUEST","MED OUEST"]
["MED PLANET","MED PLANET"]
["med&you","med&you"]
["MEDA PHARMA","MEDA PHARMA"]
["MEDAC SAS","MEDAC SAS"]
["MEDACTA FRANCE","MEDACTA FRANCE"]
["MEDARTIS SARL","MEDARTIS SARL"]
["MEDCARE","MEDCARE"]
["medDigital","medDigital"]
["Medela France Sarl","Medela France Sarl"]
["M-Eden","M-Eden"]
["MEDEX","MEDEX"]
["MEDEXACT","MEDEXACT"]
["medi","medi"]
["MEDI SYS","MEDI SYS"]
["Median Conseil","Median Conseil"]
["MEDIAN Technologies","MEDIAN Technologies"]
["MEDIATION CONSEIL SANTE","MEDIATION CONSEIL SANTE"]
["MEDIBOUM","MEDIBOUM"]
["MEDIC CENTRE EQUIPEMENT","MEDIC CENTRE EQUIPEMENT"]
["MEDIC CENTRE INDUSTRIE","MEDIC CENTRE INDUSTRIE"]
["MEDICAL AXÃˆS","MEDICAL AXÃˆS"]
["MEDICAL BEL AIR","MEDICAL BEL AIR"]
["Medical Eye Tec","Medical Eye Tec"]
["MEDICAL IMPLANTS","MEDICAL IMPLANTS"]
["MEDICAL INNOVATION DEVELOPPEMENT","MEDICAL INNOVATION DEVELOPPEMENT"]
["Medicalo2","Medicalo2"]
["Medicals International (Off-Shore) SARL","Medicals International (Off-Shore) SARL"]
["Medicare_HTM","Medicare_HTM"]
["MEDICO FRANCE","MEDICO FRANCE"]
["MEDICONSEIL","MEDICONSEIL"]
["MEDICREA Europe Francophone","MEDICREA Europe Francophone"]
["MEDICREA INTERNATIONAL","MEDICREA INTERNATIONAL"]
["Medicys Limited","Medicys Limited"]
["Médi-Fav","Médi-Fav"]
["MEDIKEA","MEDIKEA"]
["MEDIMARK EUROPE SARL","MEDIMARK EUROPE SARL"]
["MEDIOUTREMER","MEDIOUTREMER"]
["MEDIPREMA","MEDIPREMA"]
["MEDISPORT","MEDISPORT"]
["MEDITEX","MEDITEX"]
["MEDITOR","MEDITOR"]
["MEDIVAL OUTRE-MER","MEDIVAL OUTRE-MER"]
["Mediwound Germany GmbH","Mediwound Germany GmbH"]
["Medline Assembly France SAS","Medline Assembly France SAS"]
["Medline International France SAS","Medline International France SAS"]
["Medtech","Medtech"]
["MEDTRONIC France S.A.S","MEDTRONIC France S.A.S"]
["MEDUSIMS","MEDUSIMS"]
["medwork France","medwork France"]
["MEGA DENTAL SAS","MEGA DENTAL SAS"]
["MELISANA","MELISANA"]
["MENARINI FRANCE","MENARINI"]
["MENETRIER NARD SAS","MENETRIER NARD SAS"]
["MENICON SAS","MENICON SAS"]
["MENIX GROUP","MENIX GROUP"]
["Merck Medication Familiale","Merck Medication Familiale"]
["MERCK SANTE","MERCK SANTE"]
["MERCK SERONO","MERCK SERONO"]
["Mérieux Université","Mérieux Université"]
["Merit Medical Asia Co., Ltd","Merit Medical Asia Co., Ltd"]
["Merit Medical France","Merit Medical France"]
["Merit Medical Netherlands","Merit Medical Netherlands"]
["Merit Medical Systems, Inc.","Merit Medical Systems, Inc."]
["MERZ PHARMA France","MERZ PHARMA France"]
["MERZ PHARMACEUTICALS GmbH","MERZ PHARMACEUTICALS GmbH"]
["MESSER FRANCE","MESSER FRANCE"]
["MICROGENICS GmbH","MICROGENICS GmbH"]
["MICRO-MEGA","MICRO-MEGA"]
["MICROPORT ORTHOPEDICS","MICROPORT ORTHOPEDICS"]
["MICROVAL","MICROVAL"]
["MicroVention Europe","MicroVention Europe"]
["MicroVention Inc.","MicroVention Inc."]
["MIELE SAS","MIELE SAS"]
["MILLWARD BROWN","MILLWARD BROWN"]
["MINMAXMEDICAL","MINMAXMEDICAL"]
["MINVASYS","MINVASYS"]
["ML2S","ML2S"]
["Mobidiag Oy","Mobidiag Oy"]
["Modérateur Ministère de la Santé","Modérateur Ministère de la Santé"]
["Molnlycke Health Care","Molnlycke Health Care"]
["MONATH ELECTRONIC SARL","MONATH ELECTRONIC SARL"]
["MON-EVENT.COM","MON-EVENT.COM"]
["MORIA S.A.","MORIA S.A."]
["MSD France","MSD France"]
["MULTALER & CIE","MULTALER & CIE"]
["MUNDIPHARMA","MUNDIPHARMA"]
["MV3 SAS","MV3 SAS"]
["MYLAN MEDICAL SAS","MYLAN"]
["MYLAN SAS","MYLAN"]
["NANOBIOTIX S.A.","NANOBIOTIX S.A."]
["Nanosonics Limite","Nanosonics Limite"]
["Nanostring Technologies, Inc","Nanostring Technologies, Inc"]
["NEOS","NEOS"]
["NEOSTEO","NEOSTEO"]
["NEOVACS","NEOVACS"]
["Nestlé Clinical Nutrition","Nestlé Clinical Nutrition"]
["NESTLE HOMECARE","NESTLE HOMECARE"]
["Netika SA","Netika SA"]
["NEURAVI LIMITED","NEURAVI LIMITED"]
["NEURELEC","NEURELEC"]
["NEURELEC MAROC","NEURELEC MAROC"]
["NEWCLIP INTERNATIONAL","NEWCLIP INTERNATIONAL"]
["NEWCLIP TECHNICS","NEWCLIP TECHNICS"]
["Newdeal","Newdeal"]
["NEXMED PHARMA","NEXMED PHARMA"]
["NICHROMINOX","NICHROMINOX"]
["NICOX","NICOX"]
["NIDEK SA","NIDEK SA"]
["NIHON KOHDEN","NIHON KOHDEN"]
["nile","nile"]
["NIPRO FRANCE","NIPRO FRANCE"]
["NOBEL BIOCARE FRANCE SAS","NOBEL BIOCARE FRANCE SAS"]
["Nobel Biocare Russia LLC","Nobel Biocare Russia LLC"]
["Nobel Biocare Services AG","Nobel Biocare Services AG"]
["Nobel Biocare USA LLC","Nobel Biocare USA LLC"]
["NODEA MEDICAL","NODEA MEDICAL"]
["NORAKER","NORAKER"]
["NORD IMPLANT","NORD IMPLANT"]
["NORDIC PHARMA SAS","Nordic Pharma"]
["NordiMED ApS","NordiMED ApS"]
["NORGINE PHARMA","NORGINE PHARMA"]
["Nouveal","Nouveal"]
["NOVARTIS PHARMA SAS","NOVARTIS"]
["NOVARTIS SANTE FAMILIALE SAS","NOVARTIS"]
["NOVARTIS VACCINES AND DIAGNOSTICS SAS","NOVARTIS"]
["NOVASTEP","NOVASTEP"]
["NOVATECH SA","NOVATECH SA"]
["NOVATEST","NOVATEST"]
["NOVILOIRE","NOVILOIRE"]
["NOVO NORDISK","NOVO NORDISK"]
["NPS PHARMA FRANCE","NPS PHARMA FRANCE"]
["NPS Pharma Holdings Limited","NPS Pharma Holdings Limited"]
["NPS Pharma UK Limited","NPS Pharma UK Limited"]
["NUTRICIA Nutrition Clinique","NUTRICIA Nutrition Clinique"]
["NUTRIMEDIA","NUTRIMEDIA"]
["NxStage Medical, Inc.","NxStage Medical, Inc."]
["OBJECTIF PHARMA","OBJECTIF PHARMA"]
["OBL","OBL"]
["Occurrence Healthcare","Occurrence Healthcare"]
["OCEAN TERRE BIOTECHNOLOGIE","OCEAN TERRE BIOTECHNOLOGIE"]
["Oceana Therapeutics, Ltd.","Oceana Therapeutics, Ltd."]
["Oceanide","Oceanide"]
["OCP REPARTITION","OCP REPARTITION"]
["Octapharma AG - Switzerland","Octapharma AG - Switzerland"]
["Octapharma France","Octapharma France"]
["OLEA MEDICAL S.A","OLEA MEDICAL S.A"]
["Olympus Biotech International","Olympus Biotech International"]
["Olympus Biotech International Europe","Olympus Biotech International Europe"]
["OLYMPUS CORPORATION","OLYMPUS CORPORATION"]
["OLYMPUS EUROPA SE & CO. KG","OLYMPUS EUROPA SE & CO. KG"]
["OLYMPUS France SAS","OLYMPUS France SAS"]
["OMNIS MEDICA","OMNIS MEDICA"]
["OMR Globus","OMR Globus"]
["Omron Santé France","Omron Santé France"]
["ONCommit","ONCommit"]
["ONIRIS","ONIRIS"]
["ONXEO","ONXEO"]
["OPHTACOM","OPHTACOM"]
["Ophta-France SA","Ophta-France SA"]
["Ophtalmic Compagnie","Ophtalmic Compagnie"]
["OPIA TECHNOLOGIES","OPIA TECHNOLOGIES"]
["OptiMed SARL","OptiMed SARL"]
["OPTIQUE E'CAUX","OPTIQUE E'CAUX"]
["OPTIQUE MENIVAL","OPTIQUE MENIVAL"]
["optique sebastopol","optique sebastopol"]
["Orexigen Therapeutics Ireland Limited","Orexigen Therapeutics Ireland Limited"]
["Orexigen Therapeutics, Inc.","Orexigen Therapeutics, Inc."]
["ORGENTEC SAS","ORGENTEC SAS"]
["ORIGIO France","ORIGIO France"]
["Orion Corporation Orion Pharma","Orion Corporation Orion Pharma"]
["ORION Santé","ORION Santé"]
["ORLANE","ORLANE"]
["ORMCO FRANCE SAS","ORMCO FRANCE SAS"]
["ORMIHL DANET","ORMIHL DANET"]
["Orphan Europe","Orphan Europe"]
["Orphan Synergy Europe - Pharma","Orphan Synergy Europe - Pharma"]
["OrpheliPharm","OrpheliPharm"]
["ORTHO CLINICAL DIAGNOSTICS France","ORTHO CLINICAL DIAGNOSTICS France"]
["ORTHO CONCEPT","ORTHO CONCEPT"]
["ORTHO JET","ORTHO JET"]
["ortho medic","ortho medic"]
["Ortho Union","Ortho Union"]
["ORTHO.POUHAER","ORTHO.POUHAER"]
["Ortho-Clinical Diagnostics France","Ortho-Clinical Diagnostics France"]
["Orthofix S.r.l.","Orthofix S.r.l."]
["ORTHOFIX SA","ORTHOFIX SA"]
["ORTHOPAEDIC & SPINE DEVELOPMENT (OSD)","ORTHOPAEDIC & SPINE DEVELOPMENT (OSD)"]
["ORTHOPLUS","ORTHOPLUS"]
["OrthoZ","OrthoZ"]
["Oséus","Oséus"]
["OST DEVELOPPEMENT","OST DEVELOPPEMENT"]
["OSTEOMED","OSTEOMED"]
["OSTESYS","OSTESYS"]
["OTICON MEDICAL","OTICON MEDICAL"]
["OTR3","OTR3"]
["Otsuka Novel Products GmbH","Otsuka Novel Products GmbH"]
["Otsuka Pharmaceutical France SAS","Otsuka Pharmaceutical France SAS"]
["OTTO BOCK FRANCE SNC","OTTO BOCK FRANCE SNC"]
["Ouïe Fine","Ouïe Fine"]
["OVERCOME","OVERCOME"]
["OWEN MUMFORD","OWEN MUMFORD"]
["OXOID","OXOID"]
["OXYPHARM","OXYPHARM"]
["OXYVIE S.A.S","OXYVIE S.A.S"]
["P\\S\\L Group France S.A. R. L.","P\\S\\L Group France S.A. R. L."]
["P\\S\\L Group Services","P\\S\\L Group Services"]
["PACKAGE","PACKAGE"]
["PALL FRANCE","PALL FRANCE"]
["PALLIEZ OPTIQUE","PALLIEZ OPTIQUE"]
["PALO ALTOURS","PALO ALTOURS"]
["PANPHARMA","PANPHARMA"]
["Pa-pri-K","Pa-pri-K"]
["PAREXEL International","PAREXEL International"]
["PARIS KLEBER SANTE","PARIS KLEBER SANTE"]
["PASCALEO","PASCALEO"]
["PAUL HARTMANN SA","PAUL HARTMANN SA"]
["PDL ORTHO","PDL ORTHO"]
["PECH CERCIAT","PECH CERCIAT"]
["PEGASE","PEGASE"]
["PENTAX MEDICAL","PENTAX MEDICAL"]
["Penumbra, Inc.","Penumbra, Inc."]
["PERF NUT ASSISTANCE ILE DE FRANCE","PERF NUT ASSISTANCE ILE DE FRANCE"]
["PERF NUT ASSISTANCE LANGUEDOC ROUSSILLON","PERF NUT ASSISTANCE LANGUEDOC ROUSSILLON"]
["PERF NUT ASSISTANCE MIDI PYRENEES","PERF NUT ASSISTANCE MIDI PYRENEES"]
["PERF NUT ASSISTANCE NORD","PERF NUT ASSISTANCE NORD"]
["PERF NUT ASSISTANCE SUD EST","PERF NUT ASSISTANCE SUD EST"]
["PERF.U.LOR GROUPE","PERF.U.LOR GROUPE"]
["PERFORMANCE COMMUNICATION PHARMA","PERFORMANCE COMMUNICATION PHARMA"]
["PERF-R","PERF-R"]
["perkinElmer","perkinElmer"]
["PEROUSE MEDICAL","PEROUSE MEDICAL"]
["PEROUSE PLASTIE","PEROUSE PLASTIE"]
["PERRIER SURDITE ANNECY SAS","PERRIER SURDITE ANNECY SAS"]
["PETERS SURGICAL","PETERS SURGICAL"]
["PETNET Solutions SAS","PETNET Solutions SAS"]
["PFIZER INTERNATIONAL OPERATIONS","Pfizer"]
["PFIZER PFE FRANCE","Pfizer"]
["PFIZER SANTE FAMILIALE","Pfizer"]
["PFIZER SAS","Pfizer"]
["PFM MEDICAL FRANCE","PFM MEDICAL FRANCE"]
["PGRD","PGRD"]
["PHADIA GmbH","PHADIA GmbH"]
["PHADIA NV/SA","PHADIA NV/SA"]
["PHADIA SAS","PHADIA SAS"]
["PHARMA DOM","PHARMA DOM"]
["PHARMA MAR S.A.R.L.","PHARMA MAR S.A.R.L."]
["Pharma Services","Pharma Services"]
["Pharmacie du Tholon","Pharmacie du Tholon"]
["pharmacie ramberti","pharmacie ramberti"]
["PHARMACTIV DISTRIBUTION","PHARMACTIV DISTRIBUTION"]
["PHARMATHERA","PHARMATHERA"]
["Pharm-Olam International SPRL","Pharm-Olam International SPRL"]
["PHASE 5 Editions médicales","PHASE 5 Editions médicales"]
["PHENIX CARDIOLOGIE","PHENIX CARDIOLOGIE"]
["PHILIPS FRANCE","PHILIPS FRANCE"]
["Philips France Commercial","Philips France Commercial"]
["PHOCEENNE D'ORTHOPEDIE","PHOCEENNE D'ORTHOPEDIE"]
["PHOENIX PHARMA","PHOENIX PHARMA"]
["PHONAK FRANCE","PHONAK FRANCE"]
["PhoneResearch","PhoneResearch"]
["PHYDATA","PHYDATA"]
["PHYSIDIA","PHYSIDIA"]
["Physiol","Physiol"]
["PHYSIOL FRANCE","PHYSIOL FRANCE"]
["PHYSIOMED","PHYSIOMED"]
["PHYTOCOM","PHYTOCOM"]
["Pierre Fabre Dermo-Cosmétique","Pierre Fabre Dermo-Cosmétique"]
["PIERRE FABRE MEDICAMENT","PIERRE FABRE MEDICAMENT"]
["PIERRE FABRE SA","PIERRE FABRE SA"]
["PLASMA SURGICAL SARL","PLASMA SURGICAL SARL"]
["PneumRx Ltd.","PneumRx Ltd."]
["POLARIS MANAGEMENT","POLARIS MANAGEMENT"]
["PolyNovo Biomaterials Pty Ltd","PolyNovo Biomaterials Pty Ltd"]
["Porte de l'audition","Porte de l'audition"]
["POURET MEDICAL","POURET MEDICAL"]
["PPD FRANCE SAS","PPD FRANCE SAS"]
["PR EDITIONS SAS","PR EDITIONS SAS"]
["PRA","PRA"]
["PRECIPHAR","PRECIPHAR"]
["Premier Research","Premier Research"]
["PRESSE & PAPIERS","PRESSE & PAPIERS"]
["prevor","prevor"]
["Primax","Primax"]
["PRIORITIS","PRIORITIS"]
["PRIVIUM MEDICAL","PRIVIUM MEDICAL"]
["PROBACE MEDITEC","PROBACE MEDITEC"]
["PROBACE VAR","PROBACE VAR"]
["PROBIONOV","PROBIONOV"]
["PROCLAIM","PROCLAIM"]
["PROCTER & GAMBLE FRANCE","PROCTER & GAMBLE FRANCE"]
["PROCTER & GAMBLE PHARMACEUTICALS FRANCE","PROCTER & GAMBLE PHARMACEUTICALS FRANCE"]
["PRODAREV","PRODAREV"]
["PRODIS","PRODIS"]
["Prodition","Prodition"]
["PRODUITS DENTAIRES PIERRE ROLLAND","PRODUITS DENTAIRES PIERRE ROLLAND"]
["PROFIL ORTHOPEDIE","PROFIL ORTHOPEDIE"]
["PROMOGEN","PROMOGEN"]
["PROMONET PROMEDICAL","PROMONET PROMEDICAL"]
["PROSTEEL","PROSTEEL"]
["ProStrakan Pharma","ProStrakan Pharma"]
["PROTHEOS INDUSTRIE","PROTHEOS INDUSTRIE"]
["PROTHEOS OUEST","PROTHEOS OUEST"]
["PROTHEOS SA","PROTHEOS SA"]
["PROXILIO","PROXILIO"]
["PSI CRO AG","PSI CRO AG"]
["PSI CRO FRANCE","PSI CRO FRANCE"]
["PTC THERAPEUTICS  INTERNATIONAL LIMITED","PTC THERAPEUTICS  INTERNATIONAL LIMITED"]
["PTC Therapeutics France SAS","PTC Therapeutics France SAS"]
["Publicis Consultants France","Publicis Consultants France"]
["PUBLICIS LIFE BRANDS","PUBLICIS LIFE BRANDS"]
["Pulmonx International SÃ rl","Pulmonx International SÃ rl"]
["Pulmonx International SARL","Pulmonx International SARL"]
["PURESSENTIEL","PURESSENTIEL"]
["Qiagen France SAS","Qiagen France SAS"]
["QIAGEN Marseille S.A","QIAGEN Marseille S.A"]
["QUALEES","QUALEES"]
["Qualitative & Quantitative Fieldwork Services","Qualitative & Quantitative Fieldwork Services"]
["QualWorld","QualWorld"]
["QUANTEL MEDICAL","QUANTEL MEDICAL"]
["QUERYO MEDICAL SAS","QUERYO MEDICAL SAS"]
["QUINTILES BENEFIT FRANCE SNC","QUINTILES BENEFIT FRANCE SNC"]
["RADENKOVIC SACHA","RADENKOVIC SACHA"]
["RADIANTE","RADIANTE"]
["RADIOMETER SAS","RADIOMETER SAS"]
["RANBAXY PHARMACIE GENERIQUES","RANBAXY PHARMACIE GENERIQUES"]
["RAPTOR PHARMACEUTICALS FRANCE","RAPTOR PHARMACEUTICALS FRANCE"]
["RB Pharmaceuticals France","RB Pharmaceuticals France"]
["rc - research & consulting GmbH","rc - research & consulting GmbH"]
["Reckitt Benckiser France","Reckitt Benckiser France"]
["Reckitt Benckiser Healthcare France","Reckitt Benckiser Healthcare France"]
["Reckitt Benckiser SLOUGH","Reckitt Benckiser SLOUGH"]
["Regeneron Pharmaceuticals, Inc.","Regeneron Pharma"]
["REGULUS THERAPEUTICS INC.",{"$error":"#N/A"}]
["RE-IMAGINE Health Agency","RE-IMAGINE Health Agency"]
["Renishaw Mayfield","Renishaw Mayfield"]
["RESAL","RESAL"]
["RESEARCH NOW SAS","RESEARCH NOW SAS"]
["RESMED SAS","RESMED SAS"]
["RESPI'SANTE","RESPI'SANTE"]
["ReVision Optics","ReVision Optics"]
["REVOL-BUISSON","REVOL-BUISSON"]
["RICHARD FRERES","RICHARD FRERES"]
["Richard SIMON","Richard SIMON"]
["RIVORTHO","RIVORTHO"]
["RMO EUROPE","RMO EUROPE"]
["RNP SANTE","RNP SANTE"]
["ROCHE DIABETES CARE FRANCE","ROCHE DIABETES CARE FRANCE"]
["ROCHE DIAGNOSTICS FRANCE","ROCHE DIAGNOSTICS FRANCE"]
["Roche Diagnostics GmbH","Roche Diagnostics GmbH"]
["Roche Diagnostics International Ltd","Roche Diagnostics International Ltd"]
["Roche Diagnostics Operations, Inc.","Roche Diagnostics Operations, Inc."]
["Roche Products (Pty) Ltd South Africa","Roche Products (Pty) Ltd South Africa"]
["ROCHE SAS","Roche"]
["Rodenstock France","Rodenstock France"]
["RONIN Corporation","RONIN Corporation"]
["ROTTAPHARM SAS","ROTTAPHARM"]
["R-Squared Services and Solutions, Inc.","R-Squared Services and Solutions, Inc."]
["R'SUD MEDICAL","R'SUD MEDICAL"]
["RTI SURGICAL","RTI SURGICAL"]
["RUNESCENCE","RUNESCENCE"]
["S.O.S M.A.D","S.O.S M.A.D"]
["S.O.S OXYGENE ILE DE France","S.O.S OXYGENE ILE DE France"]
["S.O.S OXYGENE SUD","S.O.S OXYGENE SUD"]
["S.O.S. OXYGENE ATLANTIQUE","S.O.S. OXYGENE ATLANTIQUE"]
["S.O.S. OXYGENE BRETAGNE","S.O.S. OXYGENE BRETAGNE"]
["S.O.S. OXYGENE GARONNE","S.O.S. OXYGENE GARONNE"]
["S.O.S. OXYGENE GRAND OUEST","S.O.S. OXYGENE GRAND OUEST"]
["S.O.S. OXYGENE NORMANDIE","S.O.S. OXYGENE NORMANDIE"]
["S.O.S. OXYGENE SUD","S.O.S. OXYGENE SUD"]
["S2A SANTE ILE DE FRANCE","S2A SANTE ILE DE FRANCE"]
["SA CERP BRETAGNE ATLANTIQUE","SA CERP BRETAGNE ATLANTIQUE"]
["SA J & B FRANCOIS","SA J & B FRANCOIS"]
["SA LANDANGER","SA LANDANGER"]
["SADIR ASSISTANCE","SADIR ASSISTANCE"]
["SAFE ORTHOPAEDICS","SAFE ORTHOPAEDICS"]
["SAFIR DENTAIRE","SAFIR DENTAIRE"]
["Sage Products LLC","Sage Products LLC"]
["SALESWAY","SALESWAY"]
["Salix Pharmaceuticals, Inc.","Salix Pharmaceuticals, Inc."]
["SAM TECHNI-PHARMA","SAM TECHNI-PHARMA"]
["SAMSUNG ELECTRONICS FRANCE","SAMSUNG ELECTRONICS FRANCE"]
["SANDOZ","SANDOZ"]
["SANOFI AVENTIS FRANCE","SANOFI AVENTIS FRANCE"]
["SANOFI CHIMIE","SANOFI CHIMIE"]
["SANOFI PASTEUR","SANOFI PASTEUR"]
["SANOFI PASTEUR MSD SNC","SANOFI PASTEUR MSD SNC"]
["SANOFI WINTHROP INDUSTRIE","SANOFI WINTHROP INDUSTRIE"]
["SANOFI-AVENTIS GROUPE","SANOFI-AVENTIS GROUPE"]
["SANOFI-AVENTIS RECHERCHE & DEVELOPPEMENT","SANOFI-AVENTIS RECHERCHE & DEVELOPPEMENT"]
["SANOTEK","SANOTEK"]
["SANTE PLUS","SANTE PLUS"]
["Santelynes","Santelynes"]
["SANTELYS ASSOCIATION","SANTELYS ASSOCIATION"]
["SANTEN","SANTEN"]
["SANTEO","SANTEO"]
["SARL ACIO","SARL ACIO"]
["SARL ACOUSTIQUE ALBIGEOISE","SARL ACOUSTIQUE ALBIGEOISE"]
["SARL ALLIANCESOINS","SARL ALLIANCESOINS"]
["SARL ASTRIAD","SARL ASTRIAD"]
["sarl ATLANTIQUE PERFUSION","sarl ATLANTIQUE PERFUSION"]
["SARL AUDIO EISENHOWER","SARL AUDIO EISENHOWER"]
["SARL AUDIO.V","SARL AUDIO.V"]
["Sarl Audioptique Conseil","Sarl Audioptique Conseil"]
["SARL AUDITION AQUITAINE","SARL AUDITION AQUITAINE"]
["SARL AUDITION JUTIER PIRON","SARL AUDITION JUTIER PIRON"]
["SARL AUNIS AUDITION","SARL AUNIS AUDITION"]
["SARL AURISSIMANS","SARL AURISSIMANS"]
["SARL AURISSIMO","SARL AURISSIMO"]
["SARL BALLAN AUDITION","SARL BALLAN AUDITION"]
["SARL BRIVE AUDITION","SARL BRIVE AUDITION"]
["SARL CENTRE DE L AUDITION","SARL CENTRE DE L AUDITION"]
["SARL Centre Val de Loire Audition","SARL Centre Val de Loire Audition"]
["SARL CLAUDE EMARD","SARL CLAUDE EMARD"]
["sarl conseil medico technique","sarl conseil medico technique"]
["SARL DLMEDICAL","SARL DLMEDICAL"]
["SARL DOMORTHO","SARL DOMORTHO"]
["SARL ETS M GRANDET","SARL ETS M GRANDET"]
["SARL GROUSEAU","SARL GROUSEAU"]
["SARL LABORATOIRE DUPONT","SARL DUPONT"]
["SARL LABORATOIRE LEMOINE AUDITION","SARL LEMOINE AUDITION"]
["SARL LABORATOIRE MICHAEL BERTOUX","SARL MICHAEL BERTOUX"]
["SARL LAUBEN","SARL LAUBEN"]
["SARL LE STRAT","SARL LE STRAT"]
["SARL LES MOUETTES OPTIQUE","SARL LES MOUETTES OPTIQUE"]
["SARL LOMACO","SARL LOMACO"]
["SARL L'OREILLETTE DU MANS","SARL L'OREILLETTE DU MANS"]
["SARL LUNODIA","SARL LUNODIA"]
["sarl msdcp","sarl msdcp"]
["SARL NIVOLET AUDITION","SARL NIVOLET AUDITION"]
["sarl optique audioprotheses roussarie","sarl optique audioprotheses roussarie"]
["sarl optique mesnard","sarl optique mesnard"]
["sarl optique mesnard auchy","sarl optique mesnard auchy"]
["SARL ORLEANS AUDIOPROTHESE","SARL ORLEANS AUDIOPROTHESE"]
["SARL OXY-PERF","SARL OXY-PERF"]
["SARL PACIMED","SARL PACIMED"]
["Sarl Parapharm France","Sarl Parapharm France"]
["SARL PEFD","SARL PEFD"]
["SARL PROTHYS","SARL PROTHYS"]
["SARL SOPHILMED","SARL SOPHILMED"]
["SARL SOPHILMED LENS","SARL SOPHILMED LENS"]
["SAS ALLIANCE MEDICALE SERVICES","SAS ALLIANCE MEDICALE SERVICES"]
["SAS AUDITION EXPERT","SAS AUDITION EXPERT"]
["SAS BIOVAS","SAS BIOVAS"]
["SAS Esprit d'Ethique","SAS Esprit d'Ethique"]
["SAS IOVIE","SAS IOVIE"]
["SAS LABORATOIRES VIVACY","SAS VIVACY"]
["SAS OPTIQUE SURDITE DESNOUES","SAS OPTIQUE SURDITE DESNOUES"]
["SAS ORTHO OUEST","SAS ORTHO OUEST"]
["SATELEC SAS","SATELEC SAS"]
["SBM","SBM"]
["Schering-Plough","Schering-Plough"]
["SCHEU DENTAL FRANCE","SCHEU DENTAL FRANCE"]
["Schulke France SARL","Schulke France SARL"]
["SCHWA-MEDICO FRANCE","SCHWA-MEDICO FRANCE"]
["SCIENCE ET MEDECINE","SCIENCE ET MEDECINE"]
["SCIENT'X SAS","SCIENT'X SAS"]
["Scope International France","Scope International France"]
["SCORPION","SCORPION"]
["SDC SOCIETE DES CENDRES","SDC SOCIETE DES CENDRES"]
["SDI Dental Limited","SDI Dental Limited"]
["SEBAC","SEBAC"]
["Sebia","Sebia"]
["Second Stage Pharma","Second Stage Pharma"]
["SEDOMA","SEDOMA"]
["SEFAM","SEFAM"]
["Segmedica","Segmedica"]
["Selarl Pharmacie Panonnaise","Selarl Pharmacie Panonnaise"]
["SELAS PHARMACIE DE LA REPUBLIQUE","SELAS PHARMACIE DE LA REPUBLIQUE"]
["SEMES","SEMES"]
["SENDAL FRANCE","SENDAL FRANCE"]
["SEPRODOM ANTILLES","SEPRODOM ANTILLES"]
["SEPRODOM REUNION","SEPRODOM REUNION"]
["SEPROPHARM INTERNATIONAL","SEPROPHARM INTERNATIONAL"]
["SEPTODONT SAS","SEPTODONT SAS"]
["Sequent Medical GmbH","Sequent Medical GmbH"]
["Sequent Medical Inc.","Sequent Medical Inc."]
["SERB","SERB"]
["SERF","SERF"]
["SERF EXTREMITY","SERF EXTREMITY"]
["Serial Creative","Serial Creative"]
["SESC","SESC"]
["SETMI","SETMI"]
["SGP AUDIO","SGP AUDIO"]
["SHAMIR FRANCE SARL","SHAMIR FRANCE SARL"]
["SHIRE France S.A.","SHIRE France S.A."]
["SHISEIDO INTERNATIONAL FRANCE SIF","SHISEIDO INTERNATIONAL FRANCE SIF"]
["SHOCKWAVE MEDICAL INC.","SHOCKWAVE MEDICAL INC."]
["SIEMENS AUDIOLOGIE","SIEMENS AUDIOLOGIE"]
["Siemens Healthcare Diagnostics SAS","Siemens Healthcare Diagnostics SAS"]
["SIEMENS HEALTHCARE SAS","SIEMENS HEALTHCARE SAS"]
["SIEMENS SAS","SIEMENS SAS"]
["Sigma-tau France","Sigma-tau France"]
["SIGVARIS","SIGVARIS"]
["Simon-Kucher & Partners","Simon-Kucher & Partners"]
["Simpson Carpenter","Simpson Carpenter"]
["SINCLAIR PHARMA","SINCLAIR PHARMA"]
["Sinclair pharmaceuticals limited french branch","Sinclair pharmaceuticals limited french branch"]
["SIRONA DENTAL SYSTEMS SAS","SIRONA DENTAL SYSTEMS SAS"]
["Sirtex Medical Europe GmbH","Sirtex Medical Europe GmbH"]
["SKY CONSULTING","SKY CONSULTING"]
["SM EUROPE","SM EUROPE"]
["Small Bone Innovations International SAS","Small Bone Innovations International SAS"]
["Smartsanté Gestion","Smartsanté Gestion"]
["Smith & Nephew FZE","Smith & Nephew FZE"]
["Smith & Nephew Inc.","Smith & Nephew Inc."]
["Smith & Nephew Orthopaedics AG","Smith & Nephew Orthopaedics AG"]
["Smith & Nephew Orthopaedics France SAS","Smith & Nephew Orthopaedics France SAS"]
["Smith & Nephew S.A.S.","Smith & Nephew S.A.S."]
["Smith & Nephew UK Limited","Smith & Nephew UK Limited"]
["Smith & Nephew US - Ortho","Smith & Nephew US - Ortho"]
["Smith & Nephew, Inc. Recon","Smith & Nephew, Inc. Recon"]
["SMITHS MEDICAL FRANCE","SMITHS MEDICAL FRANCE"]
["SNC LCA de NICE","SNC LCA de NICE"]
["Sociable Data Ltd","Sociable Data Ltd"]
["SOCIETE CARIBEENNE DE L'AUDITION","SOCIETE CARIBEENNE DE L'AUDITION"]
["Société des gaz industriels de la Guadeloupe","Société des gaz industriels de la Guadeloupe"]
["Société Française de Cardiologie","Société Française de Cardiologie"]
["SOCIETE FRANCAISE D'ORTHOPEDIE","SOCIETE FRANCAISE D'ORTHOPEDIE"]
["Société Guyanaise de l'Air Liquide","Société Guyanaise de l'Air Liquide"]
["Société Martiniquaise de l'Air Liquide","Société Martiniquaise de l'Air Liquide"]
["SOCIETES DU GROUPE TEVA HORS FRANCE","SOCIETES DU GROUPE TEVA HORS FRANCE"]
["SOFIBEL","SOFIBEL"]
["SOFIBEL Laboratoires Fumouze","SOFIBEL Fumouze"]
["SOFRADIM PRODUCTION","SOFRADIM PRODUCTION"]
["Solutions Finances","Solutions Finances"]
["SomnoMed France","SomnoMed France"]
["SONATINE","SONATINE"]
["SONY EUROPE LIMITED","SONY EUROPE LIMITED"]
["Sophysa","Sophysa"]
["SOPRO ACTEON Group","SOPRO ACTEON Group"]
["SORIN GROUP FRANCE","SORIN GROUP FRANCE"]
["SOS MEDICAL","SOS MEDICAL"]
["SOS OXYGENE","SOS OXYGENE"]
["SOS OXYGENE ALSACE","SOS OXYGENE ALSACE"]
["SOS OXYGENE ANTILLES","SOS OXYGENE ANTILLES"]
["SOS OXYGENE ATLANTIQUE CENTRE","SOS OXYGENE ATLANTIQUE CENTRE"]
["SOS OXYGENE AUVERGNE","SOS OXYGENE AUVERGNE"]
["SOS OXYGENE BASSIN PARISIEN NORD","SOS OXYGENE BASSIN PARISIEN NORD"]
["SOS OXYGENE BASSIN PARISIEN SUD","SOS OXYGENE BASSIN PARISIEN SUD"]
["SOS OXYGENE CENTRE","SOS OXYGENE CENTRE"]
["SOS OXYGENE CENTRE EST","SOS OXYGENE CENTRE EST"]
["SOS OXYGENE CENTRE OUEST","SOS OXYGENE CENTRE OUEST"]
["SOS OXYGENE CHAMPAGNE ARDENNES","SOS OXYGENE CHAMPAGNE ARDENNES"]
["SOS OXYGENE FRANCHE COMTE","SOS OXYGENE FRANCHE COMTE"]
["SOS OXYGENE GARONNE","SOS OXYGENE GARONNE"]
["SOS OXYGENE GRAND EST","SOS OXYGENE GRAND EST"]
["SOS OXYGENE GRAND SUD","SOS OXYGENE GRAND SUD"]
["SOS OXYGENE ILE DE France EST","SOS OXYGENE ILE DE France EST"]
["SOS OXYGENE ILE DE FRANCE EST Vierzon 1","SOS OXYGENE ILE DE FRANCE EST Vierzon 1"]
["SOS OXYGENE ILE DE FRANCE EST Vierzon 2","SOS OXYGENE ILE DE FRANCE EST Vierzon 2"]
["SOS OXYGENE ILE DE France NORD","SOS OXYGENE ILE DE France NORD"]
["SOS OXYGENE ILE E FRANCE EST","SOS OXYGENE ILE E FRANCE EST"]
["SOS OXYGENE LORRAINE","SOS OXYGENE LORRAINE"]
["SOS OXYGENE MEDITERRANEE","SOS OXYGENE MEDITERRANEE"]
["SOS OXYGENE MOR-BIHAN / PENN AR BEDÂ Â ","SOS OXYGENE MOR-BIHAN / PENN AR BEDÂ Â "]
["SOS OXYGENE NORD JOLY MEDICAL","SOS OXYGENE NORD JOLY MEDICAL"]
["SOS OXYGENE NORD OUEST","SOS OXYGENE NORD OUEST"]
["SOS OXYGENE NORMANDIE","SOS OXYGENE NORMANDIE"]
["SOS OXYGENE PARTICIPATIONS","SOS OXYGENE PARTICIPATIONS"]
["SOS OXYGENE PAYS DE LOIRE","SOS OXYGENE PAYS DE LOIRE"]
["SOS OXYGENE PAYS DE LOIRE NORD","SOS OXYGENE PAYS DE LOIRE NORD"]
["SOS OXYGENE PROVENCE","SOS OXYGENE PROVENCE"]
["SOS OXYGENE PYRENEES CENTRE","SOS OXYGENE PYRENEES CENTRE"]
["SOS OXYGENE REUNION","SOS OXYGENE REUNION"]
["SOS OXYGENE REUNION St Leu","SOS OXYGENE REUNION St Leu"]
["SOS OXYGENE REUNION St Paul","SOS OXYGENE REUNION St Paul"]
["SOS OXYGENE RHONE ALPES","SOS OXYGENE RHONE ALPES"]
["SOS OXYGENE RHONE ALPES Vaulx","SOS OXYGENE RHONE ALPES Vaulx"]
["SOS OXYGENE SUD ALSACE","SOS OXYGENE SUD ALSACE"]
["SOS OXYGENE SUD LOIRE","SOS OXYGENE SUD LOIRE"]
["SOS OXYGENE VAR","SOS OXYGENE VAR"]
["SOSECAT","SOSECAT"]
["SOTHYS PARIS","SOTHYS PARIS"]
["sowadio","sowadio"]
["Spector Consulting","Spector Consulting"]
["SPECTRANETICS FRANCE SARL","SPECTRANETICS FRANCE SARL"]
["SPECTRANETICS INTERNATIONAL B.V.","SPECTRANETICS INTERNATIONAL B.V."]
["SPINEART SA","SPINEART SA"]
["SPINEGUARD","SPINEGUARD"]
["SPINEVISION","SPINEVISION"]
["SPINEWAY","SPINEWAY"]
["Springer Science+Business Media France","Springer Science+Business Media France"]
["SSL HEALTHCARE ITALIA","SSL HEALTHCARE ITALIA"]
["ST AUDITION","ST AUDITION"]
["St Jude Medical France SAS","St Jude Medical France SAS"]
["STALLERGENES SA","STALLERGENES SA"]
["Stanhome International","Stanhome International"]
["STARKEY FRANCE","STARKEY FRANCE"]
["STATESIA","STATESIA"]
["STENTYS S.A","STENTYS S.A"]
["STEPHANIX","STEPHANIX"]
["sterience","sterience"]
["STERIS","STERIS"]
["STERLING COOPER","STERLING COOPER"]
["STETHOS","STETHOS"]
["STETHOS INTERNATIONAL","STETHOS INTERNATIONAL"]
["Stragen France","Stragen France"]
["STRATEGIQUE SANTE","STRATEGIQUE SANTE"]
["StratLab81","StratLab81"]
["STRAUB MEDICAL (France)","STRAUB MEDICAL (France)"]
["Straumann France","Straumann France"]
["STRYKER FRANCE SAS","STRYKER FRANCE SAS"]
["Stryker Trauma GmbH","Stryker Trauma GmbH"]
["SUBSTIPHARM DEVELOPPEMENT","SUBSTIPHARM DEVELOPPEMENT"]
["SUBSTRATHOMME","SUBSTRATHOMME"]
["SUD OUEST ORTHOPEDIE","SUD OUEST ORTHOPEDIE"]
["SUN PHARMACEUTICALS FRANCE","SUN PHARMACEUTICALS FRANCE"]
["Sunesis Pharmaceuticals","Sunesis Pharmaceuticals"]
["Sunnikan Consulting","Sunnikan Consulting"]
["SUNSTAR FRANCE","SUNSTAR FRANCE"]
["SuperSonic Imagine","SuperSonic Imagine"]
["SURGIVIEW SAS","SURGIVIEW SAS"]
["SURGIVISIO","SURGIVISIO"]
["SWEDISH ORPHAN BIOVITRUM","SWEDISH ORPHAN BIOVITRUM"]
["SWEDISH ORPHAN BIOVITRUM AB (publ)","SWEDISH ORPHAN BIOVITRUM AB (publ)"]
["SWING TECHNOLOGIES","SWING TECHNOLOGIES"]
["SYLVESTRE AUDITION","SYLVESTRE AUDITION"]
["SYMATESE","SYMATESE"]
["SYMATESE AESTHETICS","SYMATESE AESTHETICS"]
["Symbios Orthopédie SA","Symbios Orthopédie SA"]
["symbios sas","symbios sas"]
["Synageva BioPharma SAS","Synageva BioPharma SAS"]
["SYNAPSE SANTE","SYNAPSE SANTE"]
["SynteractHCR France S.A.S.","SynteractHCR France S.A.S."]
["SYNTHES","SYNTHES"]
["SYSMED ASSISTANCE","SYSMED ASSISTANCE"]
["SYSMED PAS DE CALAIS","SYSMED PAS DE CALAIS"]
["SYSMEX FRANCE","SYSMEX FRANCE"]
["SYSTAGENIX WOUND MANAGEMENT FRANCE","SYSTAGENIX WOUND MANAGEMENT FRANCE"]
["System Assistance Medical","System Assistance Medical"]
["Takeda France","Takeda France"]
["TARA SANTE","TARA SANTE"]
["TBF GENIE TISSULAIRE","TBF GENIE TISSULAIRE"]
["TBWA\\ADELPHI","TBWA\\ADELPHI"]
["TEKNIMED","TEKNIMED"]
["TELEFLEX MEDICAL SAS","TELEFLEX MEDICAL SAS"]
["TEM-France","TEM-France"]
["TEOXANE","TEOXANE"]
["TEOXANE FRANCE","TEOXANE FRANCE"]
["TERALI","TERALI"]
["TERRA FIRMA","TERRA FIRMA"]
["TERRE NEUVE","TERRE NEUVE"]
["Terumo BCT Europe SA","Terumo BCT Europe SA"]
["Test","Test"]
["TEVA SANTE SAS","TEVA SANTE SAS"]
["TEXTILE HI-TEC","TEXTILE HI-TEC"]
["TFS TRIAL FORM SUPPORT SASU","TFS TRIAL FORM SUPPORT SASU"]
["THE BINDING SITE GROUP LTD","THE BINDING SITE GROUP LTD"]
["The KOL Connection","The KOL Connection"]
["The MarkeTech Group SARL","The MarkeTech Group SARL"]
["The Medicines Company France SAS","The Medicines Company France SAS"]
["The Research Partnership","The Research Partnership"]
["The Spectranetics Corporation","The Spectranetics Corporation"]
["Theorem Clinical Research SARL","Theorem Clinical Research SARL"]
["THERABEL LUCIEN PHARMA","THERABEL LUCIEN PHARMA"]
["THERACLION","THERACLION"]
["THERADIAG SA","THERADIAG SA"]
["THERADIAL SAS","THERADIAL SAS"]
["THERAKOS UK Ltd","THERAKOS UK Ltd"]
["Theravance, Inc.","Theravance, Inc."]
["THERMO ELECTRON LED SAS","THERMO ELECTRON LED SAS"]
["THERMO ELECTRON SAS","THERMO ELECTRON SAS"]
["Think Tuvalu","Think Tuvalu"]
["THORATEC EUROPE LTD","THORATEC EUROPE LTD"]
["THUASNE","THUASNE"]
["TIME RESEARCH LIMITED","TIME RESEARCH LIMITED"]
["to the heart ltd","to the heart ltd"]
["Topcon SARL","Topcon SARL"]
["TOP-Service für Lingualtechnik GmbH","TOP-Service für Lingualtechnik GmbH"]
["TORNIER","TORNIER"]
["TOSHIBA MEDICAL FRANCE","TOSHIBA MEDICAL FRANCE"]
["TOSOH EUROPE NV","TOSOH EUROPE NV"]
["TOURS CERAM","TOURS CERAM"]
["Trame Way","Trame Way"]
["Transgene SA","Transgene SA"]
["Transystème - JMT IMPLANTS","Transystème - JMT IMPLANTS"]
["TRANSYSTEME SN","TRANSYSTEME SN"]
["TRB CHEMEDICA","TRB CHEMEDICA"]
["TROIS PRIME","TROIS PRIME"]
["TROPHOS","TROPHOS"]
["TSP","TSP"]
["Tungsten-Software","Tungsten-Software"]
["Tutogen Médical France","Tutogen Médical France"]
["TxCell","TxCell"]
["UCB Pharma SA","UCB Pharma"]
["Ugam Solutions","Ugam Solutions"]
["Ultradent Products GmbH","Ultradent Products GmbH"]
["ULURU SANTE / VIGIE Pharma","ULURU SANTE / VIGIE Pharma"]
["UNILEVER FRANCE","UNILEVER FRANCE"]
["UNITHER DEVELOPPEMENT BORDEAUX","UNITHER DEVELOPPEMENT BORDEAUX"]
["UNITHER INDUSTRIES","UNITHER INDUSTRIES"]
["UNITHER LIQUID MANUFACTURING","UNITHER LIQUID MANUFACTURING"]
["UNITHER PHARMACEUTICALS","UNITHER PHARMACEUTICALS"]
["UNIVERSAL MEDICA","UNIVERSAL MEDICA"]
["Update France Terrain d'Etudes","Update France Terrain d'Etudes"]
["UPSA SAS","UPSA SAS"]
["URGO RECHERCHE INNOVATION ET DEVELOPPEMENT","URGO RECHERCHE INNOVATION ET DEVELOPPEMENT"]
["Use-Lab GmbH","Use-Lab GmbH"]
["Varian Medical Systems France Sarl","Varian Medical Systems France Sarl"]
["Vascular Solutions, Inc.","Vascular Solutions, Inc."]
["VASCUTEK FRANCE","VASCUTEK FRANCE"]
["Vatech France","Vatech France"]
["VECTEC","VECTEC"]
["Veniti, Inc.","Veniti, Inc."]
["Ventana Medical Systems, Inc.","Ventana Medical Systems, Inc."]
["Ventiléa","Ventiléa"]
["VERBAL","VERBAL"]
["Vertex Pharmaceuticals Incorporated","Vertex Pharmaceuticals Incorporated"]
["VEXIM SA","VEXIM SA"]
["Vibrant Med-El","Vibrant Med-El"]
["VIFOR FRANCE SA","VIFOR FRANCE SA"]
["VIFOR FRESENIUS MEDICAL CARE RENAL PHARMA","VIFOR FRESENIUS MEDICAL CARE RENAL PHARMA"]
["ViiV HEALTHCARE SAS","ViiV HEALTHCARE SAS"]
["VIROPHARMA","VIROPHARMA"]
["VIROPHARMA SPRL","VIROPHARMA SPRL"]
["VISION OUTRE MER","VISION OUTRE MER"]
["Vital Images France Sarl","Vital Images France Sarl"]
["VITALAIRE","VITALAIRE"]
["VITALEA MEDICAL","VITALEA MEDICAL"]
["VITALITEC INTERNATIONAL","VITALITEC INTERNATIONAL"]
["VIVACTIS MEDICAL EDUCATION","VIVACTIS MEDICAL EDUCATION"]
["Vivactis-M2Research","Vivactis-M2Research"]
["VIVISOL France","VIVISOL France"]
["VO Medica","VO Medica"]
["VOISIN CONSULTING","VOISIN CONSULTING"]
["VOLCANO EUROPE BVBA/SPRL","VOLCANO EUROPE BVBA/SPRL"]
["VOLUNTIS","VOLUNTIS"]
["VYGON","VYGON"]
["W L GORE & ASSOCIES","W L GORE & ASSOCIES"]
["W&H FRANCE","W&H FRANCE"]
["WAM","WAM"]
["Warner Chilcott France SAS","Warner Chilcott France SAS"]
["WEINMANN EMERGENCY FRANCE","WEINMANN EMERGENCY FRANCE"]
["WEINMANN SAS","WEINMANN SAS"]
["Weleda S.A.","Weleda S.A."]
["WELLSPECT HEALTHCARE","WELLSPECT HEALTHCARE"]
["WELLSPECT HEALTHCARE/DENTSPLY IH AB","WELLSPECT HEALTHCARE/DENTSPLY IH AB"]
["WERFEN","WERFEN"]
["WIDEX","WIDEX"]
["WOO YOUNG MEDICAL FRANCE","WOO YOUNG MEDICAL FRANCE"]
["WorldOne Group B.V.","WorldOne Group B.V."]
["WR CONSEIL","WR CONSEIL"]
["WRIGHT MEDICAL FRANCE","WRIGHT MEDICAL FRANCE"]
["XENIOS","XENIOS"]
["XNOV","XNOV"]
["XNOV Distribution","XNOV Distribution"]
["YPSOMED SAS","YPSOMED SAS"]
["YSSUP RESEARCH","YSSUP RESEARCH"]
["Zambon France","Zambon France"]
["Zeste Research","Zeste Research"]
["Zimmer BVBA","Zimmer BVBA"]
["Zimmer Dental SAS","Zimmer Dental SAS"]
["Zimmer France SAS","Zimmer France SAS"]
["Zimmer GmbH","Zimmer GmbH"]
["Zimmer Spine SAS","Zimmer Spine SAS"]
["ZOLL Médical France","ZOLL Médical France"]
["ZS Associates","ZS Associates"]
["ZYDUS FRANCE","ZYDUS FRANCE"]

{"sheet":"Conception","index":5,"n_rows":18,"n_cols":4,"rows_kept":18,"cut":false,"hidden":false,"merged":[[6,3,10,8],[19,3,19,14],[20,3,20,14],[21,3,21,14],[22,3,22,14],[23,3,23,14],[17,1,17,14],[13,3,13,5],[16,3,16,14],[18,3,18,14]]}
[]
[null,"Concepteur :"]
[]
[null,null,null,"François PESTY"]
[null,null,null,"Pharmacien, Ancien Interne des Hôpitaux de Paris, Institut Supérieur de Gestion,"]
[null,null,null,"Consultant indépendant, "]
[null,null,null,"Expert-Conseil en organisation et informatisation du circuit du médicament / Optimisation des approvisionnements et des stocks pharmaceutiques / Pilotage \n« médico-économique » des médicaments et dispositifs médicaux / Campagne \n« pilotes » de visites médicalisées des délégués de l’assurance maladie sur le médicament / Pertinence des traitements médicamenteux"]
[]
[]
[]
[]
[null,null,null,"2, square Gay Lussac"]
[null,null,null,"78330 Fontenay le Fleury"]
[null,null,null,"Francois.PESTY@Wanadoo.fr"]
[null,null,null,"01 30 45 03 59 / 06 88 89 53 51"]
[]
[]
[null,"François PESTY est membre de l'association FORMINDEP, "]

{"sheet":"Cochin, Rhumato B","index":6,"n_rows":18,"n_cols":3,"rows_kept":18,"cut":false,"hidden":false,"merged":[]}
["Pr Maxime DOUGADOS","Chef de service","Hôpital COCHIN - Rhumato B"]
["Dr Xavier AYRAL",null,"Hôpital COCHIN - Rhumato B"]
["Dr Anne BEHR=BLANCHAIS",null,"Hôpital COCHIN - Rhumato B"]
["Dr Karine BRIOT",null,"Hôpital COCHIN - Rhumato B"]
["Dr Joel DAMIANO",null,"Hôpital COCHIN - Rhumato B"]
["Dr Jacques FECHTENBAUM",null,"Hôpital COCHIN - Rhumato B"]
["Dr Veronique GAUD LISTRAT",null,"Hôpital COCHIN - Rhumato B"]
["Dr Christophe HUDRY",null,"Hôpital COCHIN - Rhumato B"]
["Dr Jose JUHEL",null,"Hôpital COCHIN - Rhumato B"]
["Dr Sami KOLTA",null,"Hôpital COCHIN - Rhumato B"]
["Dr Matthieu LAVIELLE",null,"Hôpital COCHIN - Rhumato B"]
["Dr Agnes LEBRUN-FOISNET",null,"Hôpital COCHIN - Rhumato B"]
["Pr Corinne MICELI",null,"Hôpital COCHIN - Rhumato B"]
["Dr Anna MOLTO",null,"Hôpital COCHIN - Rhumato B"]
["Dr Severine NEVEU ROGEZ",null,"Hôpital COCHIN - Rhumato B"]
["Dr Minh NGUYEN",null,"Hôpital COCHIN - Rhumato B"]
["Pr Christian ROUX",null,"Hôpital COCHIN - Rhumato B"]
["Dr Axelle SALCION PICAUD",null,"Hôpital COCHIN - Rhumato B"]

{"sheet":"Tableaux de synthèse","index":7,"n_rows":25,"n_cols":141,"rows_kept":25,"cut":false,"hidden":false,"merged":[[2,2,2,4],[2,5,2,12],[2,13,2,23],[2,24,2,65],[2,66,2,107],[2,108,2,140]]}
[]
[]
[null,null,"Synthèse",null,null,"Avantages perçus",null,null,null,null,null,null,null,"Conventions signées",null,null,null,null,null,null,null,null,null,null,"Montants des avantages versés par les entreprises - Montants des avantages versés par les entreprises - Montants des avantages versés par les entreprises - Montants des avantages versés ",null,null,null,null,null,null,null,null,null,null,null,null,null,null,null,null,null,null,null,null,null,null,null,null,null,null,null,null,null,null,null,null,null,null,null,null,null,null,null,null,null,"Nombres d'avantages versés par les entreprises - Nombres d'avantages versés par les entreprises - Nombres d'avantages versés par les entreprises - Nombres d'avantages versés par les entreprises - Nombres d'avantages versés par les entreprises - ",null,null,null,null,null,null,null,null,null,null,null,null,null,null,null,null,null,null,null,null,null,null,null,null,null,null,null,null,null,null,null,null,null,null,null,null,null,null,null,null,null,"Nombres de conventions signées avec les entreprises - Nombres de conventions signées avec les entreprises - Nombres de conventions signées avec les entreprises - Nombres de conventions signées avec les entreprises - Nombres de conventions signées avec les entreprises - "]
[null,"Bénéficiaire","Total avantages perçus (€)","Nombre d'avantages perçus","Nombre de conventions signées","Transport","Hébergement","Repas","Hospitalité","Inscription","Conseil","Congrès","Autre","Hospitalité","Orateur","Réunion professionnelle","Expert","Conseil","Recherche Clinique","Etude de marché","Formateur","Rédacteur","Réunion de « Board »","Autre","AbbVie","Pfizer","Regeneron Pharma","MSD France","Roche","Bristol -Myers Squibb","NOVARTIS","Lilly","Janssen-Cilag","TRB CHEMEDICA","UCB Pharma","Amgen","ROTTAPHARM","CELGENE","Expanscience","IMPACT MEDICOM","PAREXEL International","NOVO NORDISK","LIVE ! BY GL EVENTS","Nordic Pharma","SWEDISH ORPHAN BIOVITRUM","Icomed","ASTRAZENECA","ConsuMed Research","PIERRE FABRE MEDICAMENT","GSK","MEDEXACT","MYLAN","GILEAD SCIENCES","MUNDIPHARMA","PRECIPHAR","GENEVRIER","Takeda France","FH ORTHOPEDICS","TEVA SANTE SAS","CHUGAI","UPSA SAS","MEDTRONIC France S.A.S","OVERCOME","CSL BEHRING SA","ABBOTT","LES OSTEAL MEDICAL","AbbVie","MSD France","Roche","Pfizer","Lilly","Bristol -Myers Squibb","UCB Pharma","Amgen","Regeneron Pharma","Expanscience","TRB CHEMEDICA","NOVARTIS","Icomed","CELGENE","LIVE ! BY GL EVENTS","ROTTAPHARM","Janssen-Cilag","SWEDISH ORPHAN BIOVITRUM","PIERRE FABRE MEDICAMENT","ASTRAZENECA","MEDEXACT","Nordic Pharma","MUNDIPHARMA","GSK","NOVO NORDISK","FH ORTHOPEDICS","MYLAN","UPSA SAS","GENEVRIER","ABBOTT","TEVA SANTE SAS","MEDTRONIC France S.A.S","ConsuMed Research","PRECIPHAR","PAREXEL International","CHUGAI","Takeda France","CSL BEHRING SA","LES OSTEAL MEDICAL","OVERCOME","IMPACT MEDICOM","GILEAD SCIENCES","MSD France","Pfizer","Amgen","AbbVie","Lilly","Roche","UCB Pharma","Bristol -Myers Squibb","Expanscience","NOVARTIS","Janssen-Cilag","A+A","Nordic Pharma","ASTRAZENECA","ROTTAPHARM","Arthritis Fondation Courtin","SANOFI-AVENTIS RECHERCHE & DEVELOPPEMENT","CHUGAI","PAREXEL International","LES SERVIER","PIERRE FABRE MEDICAMENT","GENEVRIER","CELGENE","LIVE ! BY GL EVENTS","ICON CLINICAL RESEARCH SARL","Theorem Clinical Research SARL","SANOFI-AVENTIS GROUPE","Regeneron Pharma","CONGRES COLLOQUES CONVENTIONS","SWEDISH ORPHAN BIOVITRUM","M3 Global Research Ltd","Alexion Pharma France","GILEAD SCIENCES"]
[null,"Maxime DOUGADOS",{"$f":"SUMPRODUCT(('Avantages perçus'!$A$2:$A$30000=B5)*('Avantages perçus'!$F$2:$F$30000))","v":46328},{"$f":"COUNTIFS('Avantages perçus'!$A$2:$A$30000,B5,'Avantages perçus'!$F$2:$F$30000,\">0\")","v":114},{"$f":"COUNTIFS('Conventions signées'!$A$2:$A$15000,B5,'Conventions signées'!$A$2:$A$15000,\"*\")","v":70},26023,1022,2484,526,3463,12586,130,94,11,11,11,18,17,0,0,1,0,0,1,11293,9206,18294,4810,148,1045,178,0,56,18,417,0,0,0,38,0,0,789,0,36,0,0,0,0,0,0,0,0,0,0,0,0,0,0,0,0,0,0,0,0,0,0,41,19,4,5,0,10,6,0,20,1,1,3,0,0,0,0,1,0,0,0,0,1,0,0,2,0,0,0,0,0,0,0,0,0,0,0,0,0,0,0,0,0,16,20,2,11,2,2,2,8,1,2,1,0,0,0,0,0,1,0,0,0,0,0,0,0,0,0,1,1,0,0,0,0,0]
[null,"Corinne MICELI-RICHARD",{"$f":"SUMPRODUCT(('Avantages perçus'!$A$2:$A$30000=B6)*('Avantages perçus'!$F$2:$F$30000))","v":18348},{"$f":"COUNTIFS('Avantages perçus'!$A$2:$A$30000,B6,'Avantages perçus'!$F$2:$F$30000,\">0\")","v":102},{"$f":"COUNTIFS('Conventions signées'!$A$2:$A$15000,B6,'Conventions signées'!$A$2:$A$15000,\"*\")","v":64},9219,3006,3093,245,2645,0,0,140,15,15,16,6,10,0,0,0,0,0,2,7076,4950,0,502,232,60,236,0,2882,0,19,0,59,1872,0,0,0,0,75,0,358,0,0,0,0,0,0,0,0,0,0,0,0,0,0,0,0,0,0,14,0,13,33,6,6,25,0,1,1,0,0,0,0,4,0,8,2,1,6,7,0,0,0,0,0,0,0,0,0,0,0,0,0,0,0,0,0,0,0,1,1,0,0,0,6,27,0,9,0,6,1,2,0,6,5,0,0,0,0,0,0,0,0,0,0,0,0,0,0,0,0,0,1,1,0,0,0]
[null,"Christian ROUX",{"$f":"SUMPRODUCT(('Avantages perçus'!$A$2:$A$30000=B7)*('Avantages perçus'!$F$2:$F$30000))","v":11308},{"$f":"COUNTIFS('Avantages perçus'!$A$2:$A$30000,B7,'Avantages perçus'!$F$2:$F$30000,\">0\")","v":62},{"$f":"COUNTIFS('Conventions signées'!$A$2:$A$15000,B7,'Conventions signées'!$A$2:$A$15000,\"*\")","v":68},4905,1383,1313,2125,275,0,0,1307,13,20,3,27,4,0,1,0,0,0,0,89,76,0,2727,0,0,4426,1539,0,18,485,610,0,0,0,1200,0,0,65,0,0,0,0,0,0,0,0,0,58,0,0,0,0,0,0,0,0,0,15,0,0,0,2,20,0,1,19,0,4,7,0,0,1,4,0,0,1,0,0,0,0,0,0,0,0,0,0,0,0,0,0,0,0,0,0,0,0,0,0,0,0,1,1,1,24,5,25,0,7,0,1,0,0,1,0,0,0,0,0,0,0,2,0,0,0,0,0,0,0,0,0,0,0,0,1,1,1]
[null,"Christophe HUDRY",{"$f":"SUMPRODUCT(('Avantages perçus'!$A$2:$A$30000=B8)*('Avantages perçus'!$F$2:$F$30000))","v":9040},{"$f":"COUNTIFS('Avantages perçus'!$A$2:$A$30000,B8,'Avantages perçus'!$F$2:$F$30000,\">0\")","v":65},{"$f":"COUNTIFS('Conventions signées'!$A$2:$A$15000,B8,'Conventions signées'!$A$2:$A$15000,\"*\")","v":48},2149,2006,2194,150,2455,0,0,86,13,11,6,8,4,4,0,2,0,0,0,3249,3471,0,1195,229,326,0,0,0,18,50,0,0,24,38,0,0,0,0,338,0,29,0,0,0,0,39,0,0,0,0,34,0,0,0,0,0,0,0,0,0,0,26,8,3,13,0,5,1,0,0,1,1,0,1,1,0,0,0,0,0,0,2,2,0,0,0,0,0,0,1,0,0,0,0,0,0,0,0,0,0,0,0,0,15,8,0,6,0,5,4,5,1,0,0,0,2,0,0,0,0,0,0,0,0,1,1,0,0,0,0,0,0,0,0,0,0]
[null,"Véronique GAUD-LISTRAT",{"$f":"SUMPRODUCT(('Avantages perçus'!$A$2:$A$30000=B9)*('Avantages perçus'!$F$2:$F$30000))","v":8775},{"$f":"COUNTIFS('Avantages perçus'!$A$2:$A$30000,B9,'Avantages perçus'!$F$2:$F$30000,\">0\")","v":75},{"$f":"COUNTIFS('Conventions signées'!$A$2:$A$15000,B9,'Conventions signées'!$A$2:$A$15000,\"*\")","v":33},1608,1528,2385,314,2253,0,0,687,8,1,12,3,0,3,0,6,0,0,0,4113,16,0,275,433,294,0,142,0,506,586,0,1813,0,159,0,0,0,0,0,0,0,228,0,128,0,0,60,0,0,0,0,0,0,0,0,22,0,0,0,0,0,26,5,3,1,6,6,7,0,0,4,3,0,0,0,0,5,0,0,3,4,0,0,0,0,0,0,1,1,0,0,0,0,0,0,0,0,0,0,0,0,0,0,4,4,0,5,2,3,3,1,2,0,0,0,1,4,2,1,0,0,0,0,1,0,0,0,0,0,0,0,0,0,0,0,0]
[null,"Karine BRIOT",{"$f":"SUMPRODUCT(('Avantages perçus'!$A$2:$A$30000=B10)*('Avantages perçus'!$F$2:$F$30000))","v":8525},{"$f":"COUNTIFS('Avantages perçus'!$A$2:$A$30000,B10,'Avantages perçus'!$F$2:$F$30000,\">0\")","v":79},{"$f":"COUNTIFS('Conventions signées'!$A$2:$A$15000,B10,'Conventions signées'!$A$2:$A$15000,\"*\")","v":72},2522,2180,2089,108,1515,0,0,111,19,32,6,9,5,0,1,0,0,0,0,89,317,0,2507,2788,0,0,1520,0,0,0,1208,0,0,0,0,0,0,65,0,0,31,0,0,0,0,0,0,0,0,0,0,0,0,0,0,0,0,0,0,0,0,2,13,17,3,24,0,0,18,0,0,0,0,1,0,1,0,0,0,0,0,0,0,0,0,0,0,0,0,0,0,0,0,0,0,0,0,0,0,0,0,0,0,14,7,28,0,19,2,0,0,0,1,0,1,0,0,0,0,0,0,0,0,0,0,0,0,0,0,0,0,0,0,0,0,0]
[null,"Anna MOLTO",{"$f":"SUMPRODUCT(('Avantages perçus'!$A$2:$A$30000=B11)*('Avantages perçus'!$F$2:$F$30000))","v":8127},{"$f":"COUNTIFS('Avantages perçus'!$A$2:$A$30000,B11,'Avantages perçus'!$F$2:$F$30000,\">0\")","v":50},{"$f":"COUNTIFS('Conventions signées'!$A$2:$A$15000,B11,'Conventions signées'!$A$2:$A$15000,\"*\")","v":25},1644,2077,1202,384,2660,0,0,160,10,1,4,6,0,1,2,1,0,0,0,1986,2424,0,276,2782,333,0,43,0,0,123,0,0,0,0,0,0,0,0,0,0,0,0,160,0,0,0,0,0,0,0,0,0,0,0,0,0,0,0,0,0,0,12,6,18,6,1,2,4,0,0,0,0,0,0,0,0,0,0,0,0,0,0,0,0,0,0,0,0,0,0,0,0,0,1,0,0,0,0,0,0,0,0,0,4,5,0,7,0,2,2,0,1,0,0,2,0,0,0,1,1,0,0,0,0,0,0,0,0,0,0,0,0,0,0,0,0]
[null,"Jacques FECHTENBAUM",{"$f":"SUMPRODUCT(('Avantages perçus'!$A$2:$A$30000=B12)*('Avantages perçus'!$F$2:$F$30000))","v":5341},{"$f":"COUNTIFS('Avantages perçus'!$A$2:$A$30000,B12,'Avantages perçus'!$F$2:$F$30000,\">0\")","v":51},{"$f":"COUNTIFS('Conventions signées'!$A$2:$A$15000,B12,'Conventions signées'!$A$2:$A$15000,\"*\")","v":22},1041,1152,1576,502,1020,0,0,50,10,3,6,0,0,1,0,2,0,0,0,208,184,0,946,1608,60,0,559,0,0,0,168,55,0,1326,0,0,0,85,0,0,50,0,0,30,62,0,0,0,0,0,0,0,0,0,0,0,0,0,0,0,0,4,8,7,4,11,1,0,4,0,5,0,0,2,0,2,1,0,0,1,0,0,0,0,1,0,0,0,0,0,0,0,0,0,0,0,0,0,0,0,0,0,0,8,2,3,1,1,2,0,0,3,0,0,0,1,0,0,0,0,0,0,1,0,0,0,0,0,0,0,0,0,0,0,0,0]
[null,"Anne BLANCHAIS (BEHR)",{"$f":"SUMPRODUCT(('Avantages perçus'!$A$2:$A$30000=B13)*('Avantages perçus'!$F$2:$F$30000))","v":4302},{"$f":"COUNTIFS('Avantages perçus'!$A$2:$A$30000,B13,'Avantages perçus'!$F$2:$F$30000,\">0\")","v":41},{"$f":"COUNTIFS('Conventions signées'!$A$2:$A$15000,B13,'Conventions signées'!$A$2:$A$15000,\"*\")","v":13},912,1120,1095,125,1050,0,0,0,7,0,3,0,0,2,0,1,0,0,0,260,466,0,194,2957,125,0,43,0,0,219,0,0,0,38,0,0,0,0,0,0,0,0,0,0,0,0,0,0,0,0,0,0,0,0,0,0,0,0,0,0,0,5,4,18,2,1,4,6,0,0,1,0,0,0,0,0,0,0,0,0,0,0,0,0,0,0,0,0,0,0,0,0,0,0,0,0,0,0,0,0,0,0,0,3,2,0,0,0,3,3,0,1,0,0,0,0,0,0,0,0,0,1,0,0,0,0,0,0,0,0,0,0,0,0,0,0]
[null,"Axelle SALCION-MATOUB",{"$f":"SUMPRODUCT(('Avantages perçus'!$A$2:$A$30000=B14)*('Avantages perçus'!$F$2:$F$30000))","v":3484},{"$f":"COUNTIFS('Avantages perçus'!$A$2:$A$30000,B14,'Avantages perçus'!$F$2:$F$30000,\">0\")","v":30},{"$f":"COUNTIFS('Conventions signées'!$A$2:$A$15000,B14,'Conventions signées'!$A$2:$A$15000,\"*\")","v":8},49,660,757,1203,815,0,0,0,5,0,3,0,0,0,0,0,0,0,0,312,0,0,114,1409,1340,0,0,0,0,228,0,0,0,0,0,0,0,0,0,0,0,0,0,0,0,0,0,0,32,0,0,26,0,0,23,0,0,0,0,0,0,7,2,6,0,0,8,4,0,0,0,0,0,0,0,0,0,0,0,0,0,0,0,1,0,0,0,0,0,0,0,0,0,0,0,0,1,1,0,0,0,0,0,3,1,0,1,0,1,2,0,0,0,0,0,0,0,0,0,0,0,0,0,0,0,0,0,0,0,0,0,0,0,0,0,0]
[null,"Minh NGUYEN",{"$f":"SUMPRODUCT(('Avantages perçus'!$A$2:$A$30000=B15)*('Avantages perçus'!$F$2:$F$30000))","v":3168},{"$f":"COUNTIFS('Avantages perçus'!$A$2:$A$30000,B15,'Avantages perçus'!$F$2:$F$30000,\">0\")","v":21},{"$f":"COUNTIFS('Conventions signées'!$A$2:$A$15000,B15,'Conventions signées'!$A$2:$A$15000,\"*\")","v":10},1048,120,464,1320,0,0,0,216,4,0,1,1,0,4,0,0,0,0,0,113,0,0,1662,60,373,0,0,0,18,0,0,0,0,0,0,807,0,0,0,0,56,0,0,0,0,36,0,0,0,43,0,0,0,0,0,0,0,0,0,0,0,3,8,1,0,0,2,0,0,0,0,1,0,2,0,0,0,0,0,0,0,2,0,0,0,0,0,0,0,0,0,0,0,0,1,1,0,0,0,0,0,0,0,3,0,0,3,1,1,0,0,0,0,0,0,0,0,0,0,0,0,0,0,0,0,0,0,1,1,0,0,0,0,0,0,0]
[null,"Agnès LEBRUN-FOISNET",{"$f":"SUMPRODUCT(('Avantages perçus'!$A$2:$A$30000=B16)*('Avantages perçus'!$F$2:$F$30000))","v":2860},{"$f":"COUNTIFS('Avantages perçus'!$A$2:$A$30000,B16,'Avantages perçus'!$F$2:$F$30000,\">0\")","v":15},{"$f":"COUNTIFS('Conventions signées'!$A$2:$A$15000,B16,'Conventions signées'!$A$2:$A$15000,\"*\")","v":9},881,675,585,19,700,0,0,0,7,0,2,0,0,0,0,0,0,0,0,89,2446,0,162,0,83,0,13,0,0,0,48,0,0,0,0,0,0,0,0,0,0,0,0,0,0,0,0,0,0,0,0,0,0,0,0,0,19,0,0,0,0,2,3,0,6,1,1,0,1,0,0,0,0,0,0,0,0,0,0,0,0,0,0,0,0,0,0,0,0,0,0,0,1,0,0,0,0,0,0,0,0,0,0,3,5,1,0,0,0,0,0,0,0,0,0,0,0,0,0,0,0,0,0,0,0,0,0,0,0,0,0,0,0,0,0,0]
[null,"Xavier AYRAL",{"$f":"SUMPRODUCT(('Avantages perçus'!$A$2:$A$30000=B17)*('Avantages perçus'!$F$2:$F$30000))","v":2607},{"$f":"COUNTIFS('Avantages perçus'!$A$2:$A$30000,B17,'Avantages perçus'!$F$2:$F$30000,\">0\")","v":24},{"$f":"COUNTIFS('Conventions signées'!$A$2:$A$15000,B17,'Conventions signées'!$A$2:$A$15000,\"*\")","v":10},0,0,629,384,470,0,0,1124,6,0,3,0,0,0,0,1,0,0,0,135,172,0,442,83,59,0,0,0,1509,84,0,0,0,38,0,0,0,0,0,0,85,0,0,0,0,0,0,0,0,0,0,0,0,0,0,0,0,0,0,0,0,3,3,2,4,0,2,3,0,0,1,3,0,3,0,0,0,0,0,0,0,0,0,0,0,0,0,0,0,0,0,0,0,0,0,0,0,0,0,0,0,0,0,3,4,0,0,0,1,1,0,1,0,0,0,0,0,0,0,0,0,0,0,0,0,0,0,0,0,0,0,0,0,0,0,0]
[null,"Séverine NEVEU",{"$f":"SUMPRODUCT(('Avantages perçus'!$A$2:$A$30000=B18)*('Avantages perçus'!$F$2:$F$30000))","v":2591},{"$f":"COUNTIFS('Avantages perçus'!$A$2:$A$30000,B18,'Avantages perçus'!$F$2:$F$30000,\">0\")","v":16},{"$f":"COUNTIFS('Conventions signées'!$A$2:$A$15000,B18,'Conventions signées'!$A$2:$A$15000,\"*\")","v":11},454,450,425,94,1150,0,0,18,10,0,1,0,0,0,0,0,0,0,0,41,2054,0,315,0,59,0,0,0,18,104,0,0,0,0,0,0,0,0,0,0,0,0,0,0,0,0,0,0,0,0,0,0,0,0,0,0,0,0,0,0,0,1,5,0,4,0,2,3,0,0,0,1,0,0,0,0,0,0,0,0,0,0,0,0,0,0,0,0,0,0,0,0,0,0,0,0,0,0,0,0,0,0,0,5,3,0,0,0,0,3,0,0,0,0,0,0,0,0,0,0,0,0,0,0,0,0,0,0,0,0,0,0,0,0,0,0]
[null,"Joël DAMIANO",{"$f":"SUMPRODUCT(('Avantages perçus'!$A$2:$A$30000=B19)*('Avantages perçus'!$F$2:$F$30000))","v":1529},{"$f":"COUNTIFS('Avantages perçus'!$A$2:$A$30000,B19,'Avantages perçus'!$F$2:$F$30000,\">0\")","v":11},{"$f":"COUNTIFS('Conventions signées'!$A$2:$A$15000,B19,'Conventions signées'!$A$2:$A$15000,\"*\")","v":5},0,0,125,18,1286,0,0,100,4,0,1,0,0,0,0,0,0,0,0,936,0,0,97,23,0,0,0,0,439,0,0,0,0,0,0,0,0,0,0,0,0,0,0,0,0,0,0,0,11,0,0,0,23,0,0,0,0,0,0,0,0,2,4,1,0,0,0,0,0,0,0,2,0,0,0,0,0,0,0,0,0,0,0,1,0,0,1,0,0,0,0,0,0,0,0,0,0,0,0,0,0,0,0,1,1,1,2,0,0,0,0,0,0,0,0,0,0,0,0,0,0,0,0,0,0,0,0,0,0,0,0,0,0,0,0,0]
[null,"Sami KOLTA",{"$f":"SUMPRODUCT(('Avantages perçus'!$A$2:$A$30000=B20)*('Avantages perçus'!$F$2:$F$30000))","v":1176},{"$f":"COUNTIFS('Avantages perçus'!$A$2:$A$30000,B20,'Avantages perçus'!$F$2:$F$30000,\">0\")","v":13},{"$f":"COUNTIFS('Conventions signées'!$A$2:$A$15000,B20,'Conventions signées'!$A$2:$A$15000,\"*\")","v":9},0,0,438,700,20,0,0,18,3,0,3,0,0,0,2,1,0,0,0,89,0,0,129,60,700,0,34,0,18,0,23,0,0,38,0,0,0,85,0,0,0,0,0,0,0,0,0,0,0,0,0,0,0,0,0,0,0,0,0,0,0,2,3,1,0,1,1,0,1,0,1,1,0,0,0,2,0,0,0,0,0,0,0,0,0,0,0,0,0,0,0,0,0,0,0,0,0,0,0,0,0,0,0,3,1,0,0,0,1,0,0,1,0,0,2,0,0,0,0,0,0,0,0,0,0,0,1,0,0,0,0,0,0,0,0,0]
[null,"Matthieu LAVIELLE",{"$f":"SUMPRODUCT(('Avantages perçus'!$A$2:$A$30000=B21)*('Avantages perçus'!$F$2:$F$30000))","v":838},{"$f":"COUNTIFS('Avantages perçus'!$A$2:$A$30000,B21,'Avantages perçus'!$F$2:$F$30000,\">0\")","v":11},{"$f":"COUNTIFS('Conventions signées'!$A$2:$A$15000,B21,'Conventions signées'!$A$2:$A$15000,\"*\")","v":4},63,140,266,369,0,0,0,0,3,0,0,1,0,0,0,0,0,0,0,838,0,0,0,0,0,0,0,0,0,0,0,0,0,0,0,0,0,0,0,0,0,0,0,0,0,0,0,0,0,0,0,0,0,0,0,0,0,0,0,0,0,11,0,0,0,0,0,0,0,0,0,0,0,0,0,0,0,0,0,0,0,0,0,0,0,0,0,0,0,0,0,0,0,0,0,0,0,0,0,0,0,0,0,0,0,0,4,0,0,0,0,0,0,0,0,0,0,0,0,0,0,0,0,0,0,0,0,0,0,0,0,0,0,0,0,0]
[null,"José-Yves JUHEL",{"$f":"SUMPRODUCT(('Avantages perçus'!$A$2:$A$30000=B22)*('Avantages perçus'!$F$2:$F$30000))","v":56},{"$f":"COUNTIFS('Avantages perçus'!$A$2:$A$30000,B22,'Avantages perçus'!$F$2:$F$30000,\">0\")","v":3},{"$f":"COUNTIFS('Conventions signées'!$A$2:$A$15000,B22,'Conventions signées'!$A$2:$A$15000,\"*\")","v":0},0,0,36,20,0,0,0,0,0,0,0,0,0,0,0,0,0,0,0,0,0,0,0,0,0,0,0,0,0,0,0,0,0,0,0,0,0,0,0,0,0,0,0,0,20,0,0,0,0,0,0,0,0,23,0,0,0,0,0,13,0,0,0,0,0,0,0,0,0,0,0,0,0,0,0,0,0,0,0,0,0,0,0,0,1,0,0,0,0,0,1,1,0,0,0,0,0,0,0,0,0,0,0,0,0,0,0,0,0,0,0,0,0,0,0,0,0,0,0,0,0,0,0,0,0,0,0,0,0,0,0,0,0,0,0,0]
[null,"TOTAUX",138403,783,481,52518,17519,21156,8606,21777,12586,130,4111,148,94,81,79,40,15,6,15,0,0,3,30916,25782,18294,16353,12812,4857,4840,3893,2938,2562,2315,2057,1927,1896,1675,1200,807,789,375,374,358,251,228,160,158,82,75,60,58,43,43,34,26,23,23,23,22,19,15,14,13,13,182,117,87,74,64,45,39,31,20,14,14,11,9,9,8,7,7,7,4,4,4,3,2,2,2,1,1,1,1,1,1,1,1,1,1,1,1,1,1,1,1,1,115,95,60,49,32,29,22,16,11,10,6,5,4,4,2,2,2,2,1,1,1,1,1,1,1,1,1,1,1,1,1,1,1]
[]
[null,"Période d'étude","   1er semestre 2012 - 2ème semestre 2015, soient 4 années"]